{"text_format":"1","workbook":"xlsx","n_sheets":3,"sheets":["Office Manager's Report","Sheet1","Sanitation Report"],"not_rendered":{"charts":0,"images":40,"macros":0,"external_links":0,"defined_names":6,"comments":0,"pivot_tables":0},"unopened":[],"bounds":{"document_bytes":16777216,"sheet_cells":100000,"rows_first":2000,"rows_last":500,"rows_between":2000,"halvings":0,"cell_chars":16384,"cell_head_chars":4096},"cells_cut":0,"cells_raw":0,"read":"whole","date_system":"1900"}

{"sheet":"Office Manager's Report","index":0,"n_rows":65,"n_cols":31,"rows_kept":65,"cut":false,"hidden":true,"merged":[[32,0,32,25],[33,0,41,32],[43,0,43,32],[45,19,45,28],[45,29,45,31],[48,0,53,32],[56,0,61,14],[56,18,61,32],[63,0,63,14],[63,18,63,32],[64,0,64,14],[64,18,64,32],[27,30,27,32],[28,3,28,12],[28,14,28,15],[28,18,28,19],[28,20,28,22],[28,24,28,26],[28,28,28,29],[28,30,28,32],[29,3,29,12],[29,14,29,15],[29,18,29,19],[29,20,29,22],[29,24,29,26],[29,28,29,29],[29,30,29,32],[30,3,30,12],[30,14,30,15],[30,18,30,19],[30,20,30,22],[30,24,30,26],[30,28,30,29],[30,30,30,32],[21,26,21,28],[21,30,21,32],[22,3,22,16],[22,18,22,20],[22,23,22,25],[22,30,22,32],[23,3,23,16],[23,18,23,20],[23,23,23,25],[23,30,23,32],[24,3,24,16],[24,18,24,20],[24,23,24,25],[24,30,24,32],[26,3,26,12],[26,14,26,15],[26,18,26,19],[26,20,26,22],[26,24,26,26],[26,28,26,29],[26,30,26,32],[22,26,22,28],[23,26,23,28],[24,26,24,28],[15,0,15,3],[15,4,15,9],[15,13,15,16],[15,17,15,20],[15,24,15,28],[15,29,15,32],[16,0,16,3],[16,4,16,9],[16,13,16,16],[16,17,16,20],[16,24,16,28],[16,29,16,32],[17,13,17,16],[17,17,17,20],[17,24,17,28],[17,29,17,32],[20,0,20,2],[20,3,20,16],[20,18,20,20],[20,23,20,25],[20,26,20,28],[20,30,20,32],[17,4,17,9],[2,10,4,27],[2,28,4,32],[3,0,3,9],[4,0,4,8],[7,2,7,5],[7,8,7,11],[7,12,7,18],[7,21,7,25],[7,26,7,32],[9,5,9,32],[10,3,10,32],[12,0,12,4],[12,5,12,12],[12,14,12,15],[12,16,12,32],[14,0,14,9],[14,13,14,20],[14,24,14,32],[2,0,2,9],[9,0,9,4],[7,0,7,1],[10,0,10,2],[29,0,29,2],[30,0,30,2],[27,0,27,2],[28,0,28,2],[27,3,27,12],[27,14,27,15],[27,18,27,19],[27,20,27,22],[27,24,27,26],[27,28,27,29],[45,0,45,10],[45,11,45,14],[82,0,82,1],[79,0,79,1],[80,0,80,1],[79,7,79,8],[79,10,79,11],[81,7,81,8],[81,10,81,11],[73,0,73,1],[74,0,74,1],[73,21,73,28],[74,7,74,8],[74,10,74,11],[74,12,74,13],[74,16,74,20],[74,21,74,28],[77,12,77,13],[77,16,77,20],[77,21,77,28],[78,7,78,8],[78,10,78,11],[90,0,90,1],[87,0,87,1],[88,0,88,1],[87,7,87,8],[87,10,87,11],[89,7,89,8],[89,10,89,11],[75,12,75,13],[75,16,75,20],[75,21,75,28],[76,7,76,8],[76,10,76,11],[76,12,76,13],[76,16,76,20],[76,21,76,28],[77,0,77,1],[78,0,78,1],[75,0,75,1],[76,0,76,1],[75,7,75,8],[75,10,75,11],[77,7,77,8],[77,10,77,11],[79,12,79,13],[79,16,79,20],[79,21,79,28],[80,7,80,8],[80,10,80,11],[80,12,80,13],[80,16,80,20],[80,21,80,28],[81,0,81,1],[98,0,98,1],[95,0,95,1],[96,0,96,1],[95,7,95,8],[95,10,95,11],[97,7,97,8],[97,10,97,11],[83,12,83,13],[83,16,83,20],[83,21,83,28],[84,7,84,8],[84,10,84,11],[84,12,84,13],[84,16,84,20],[84,21,84,28],[85,0,85,1],[86,0,86,1],[83,0,83,1],[84,0,84,1],[83,7,83,8],[83,10,83,11],[85,7,85,8],[85,10,85,11],[87,12,87,13],[87,16,87,20],[87,21,87,28],[88,7,88,8],[88,10,88,11],[88,12,88,13],[88,16,88,20],[88,21,88,28],[89,0,89,1],[106,0,106,1],[103,0,103,1],[104,0,104,1],[103,7,103,8],[103,10,103,11],[105,7,105,8],[105,10,105,11],[91,12,91,13],[91,16,91,20],[91,21,91,28],[92,7,92,8],[92,10,92,11],[92,12,92,13],[92,16,92,20],[92,21,92,28],[93,0,93,1],[94,0,94,1],[91,0,91,1],[92,0,92,1],[91,7,91,8],[91,10,91,11],[93,7,93,8],[93,10,93,11],[95,12,95,13],[95,16,95,20],[95,21,95,28],[96,7,96,8],[96,10,96,11],[96,12,96,13],[96,16,96,20],[96,21,96,28],[97,0,97,1],[114,0,114,1],[111,0,111,1],[112,0,112,1],[111,7,111,8],[111,10,111,11],[113,7,113,8],[113,10,113,11],[99,12,99,13],[99,16,99,20],[99,21,99,28],[100,7,100,8],[100,10,100,11],[100,12,100,13],[100,16,100,20],[100,21,100,28],[101,0,101,1],[102,0,102,1],[99,0,99,1],[100,0,100,1],[99,7,99,8],[99,10,99,11],[101,7,101,8],[101,10,101,11],[103,12,103,13],[103,16,103,20],[103,21,103,28],[104,7,104,8],[104,10,104,11],[104,12,104,13],[104,16,104,20],[104,21,104,28],[105,0,105,1],[122,0,122,1],[119,0,119,1],[120,0,120,1],[119,7,119,8],[119,10,119,11],[121,7,121,8],[121,10,121,11],[107,12,107,13],[107,16,107,20],[107,21,107,28],[108,7,108,8],[108,10,108,11],[108,12,108,13],[108,16,108,20],[108,21,108,28],[109,0,109,1],[110,0,110,1],[107,0,107,1],[108,0,108,1],[107,7,107,8],[107,10,107,11],[109,7,109,8],[109,10,109,11],[111,12,111,13],[111,16,111,20],[111,21,111,28],[112,7,112,8],[112,10,112,11],[112,12,112,13],[112,16,112,20],[112,21,112,28],[113,0,113,1],[130,0,130,1],[127,0,127,1],[128,0,128,1],[127,7,127,8],[127,10,127,11],[129,7,129,8],[129,10,129,11],[115,12,115,13],[115,16,115,20],[115,21,115,28],[116,7,116,8],[116,10,116,11],[116,12,116,13],[116,16,116,20],[116,21,116,28],[117,0,117,1],[118,0,118,1],[115,0,115,1],[116,0,116,1],[115,7,115,8],[115,10,115,11],[117,7,117,8],[117,10,117,11],[119,12,119,13],[119,16,119,20],[119,21,119,28],[120,7,120,8],[120,10,120,11],[120,12,120,13],[120,16,120,20],[120,21,120,28],[121,0,121,1],[138,0,138,1],[135,0,135,1],[136,0,136,1],[135,7,135,8],[135,10,135,11],[137,7,137,8],[137,10,137,11],[123,12,123,13],[123,16,123,20],[123,21,123,28],[124,7,124,8],[124,10,124,11],[124,12,124,13],[124,16,124,20],[124,21,124,28],[125,0,125,1],[126,0,126,1],[123,0,123,1],[124,0,124,1],[123,7,123,8],[123,10,123,11],[125,7,125,8],[125,10,125,11],[127,12,127,13],[127,16,127,20],[127,21,127,28],[128,7,128,8],[128,10,128,11],[128,12,128,13],[128,16,128,20],[128,21,128,28],[129,0,129,1],[146,0,146,1],[143,0,143,1],[144,0,144,1],[143,7,143,8],[143,10,143,11],[145,7,145,8],[145,10,145,11],[131,12,131,13],[131,16,131,20],[131,21,131,28],[132,7,132,8],[132,10,132,11],[132,12,132,13],[132,16,132,20],[132,21,132,28],[133,0,133,1],[134,0,134,1],[131,0,131,1],[132,0,132,1],[131,7,131,8],[131,10,131,11],[133,7,133,8],[133,10,133,11],[135,12,135,13],[135,16,135,20],[135,21,135,28],[136,7,136,8],[136,10,136,11],[136,12,136,13],[136,16,136,20],[136,21,136,28],[137,0,137,1],[154,0,154,1],[151,0,151,1],[152,0,152,1],[151,7,151,8],[151,10,151,11],[153,7,153,8],[153,10,153,11],[139,12,139,13],[139,16,139,20],[139,21,139,28],[140,7,140,8],[140,10,140,11],[140,12,140,13],[140,16,140,20],[140,21,140,28],[141,0,141,1],[142,0,142,1],[139,0,139,1],[140,0,140,1],[139,7,139,8],[139,10,139,11],[141,7,141,8],[141,10,141,11],[143,12,143,13],[143,16,143,20],[143,21,143,28],[144,7,144,8],[144,10,144,11],[144,12,144,13],[144,16,144,20],[144,21,144,28],[145,0,145,1],[162,0,162,1],[159,0,159,1],[160,0,160,1],[159,7,159,8],[159,10,159,11],[161,7,161,8],[161,10,161,11],[147,12,147,13],[147,16,147,20],[147,21,147,28],[148,7,148,8],[148,10,148,11],[148,12,148,13],[148,16,148,20],[148,21,148,28],[149,0,149,1],[150,0,150,1],[147,0,147,1],[148,0,148,1],[147,7,147,8],[147,10,147,11],[149,7,149,8],[149,10,149,11],[151,12,151,13],[151,16,151,20],[151,21,151,28],[152,7,152,8],[152,10,152,11],[152,12,152,13],[152,16,152,20],[152,21,152,28],[153,0,153,1],[170,0,170,1],[167,0,167,1],[168,0,168,1],[167,7,167,8],[167,10,167,11],[169,7,169,8],[169,10,169,11],[155,12,155,13],[155,16,155,20],[155,21,155,28],[156,7,156,8],[156,10,156,11],[156,12,156,13],[156,16,156,20],[156,21,156,28],[157,0,157,1],[158,0,158,1],[155,0,155,1],[156,0,156,1],[155,7,155,8],[155,10,155,11],[157,7,157,8],[157,10,157,11],[159,12,159,13],[159,16,159,20],[159,21,159,28],[160,7,160,8],[160,10,160,11],[160,12,160,13],[160,16,160,20],[160,21,160,28],[161,0,161,1],[178,0,178,1],[175,0,175,1],[176,0,176,1],[175,7,175,8],[175,10,175,11],[177,7,177,8],[177,10,177,11],[163,12,163,13],[163,16,163,20],[163,21,163,28],[164,7,164,8],[164,10,164,11],[164,12,164,13],[164,16,164,20],[164,21,164,28],[165,0,165,1],[166,0,166,1],[163,0,163,1],[164,0,164,1],[163,7,163,8],[163,10,163,11],[165,7,165,8],[165,10,165,11],[167,12,167,13],[167,16,167,20],[167,21,167,28],[168,7,168,8],[168,10,168,11],[168,12,168,13],[168,16,168,20],[168,21,168,28],[169,0,169,1],[186,0,186,1],[183,0,183,1],[184,0,184,1],[183,7,183,8],[183,10,183,11],[185,7,185,8],[185,10,185,11],[171,12,171,13],[171,16,171,20],[171,21,171,28],[172,7,172,8],[172,10,172,11],[172,12,172,13],[172,16,172,20],[172,21,172,28],[173,0,173,1],[174,0,174,1],[171,0,171,1],[172,0,172,1],[171,7,171,8],[171,10,171,11],[173,7,173,8],[173,10,173,11],[175,12,175,13],[175,16,175,20],[175,21,175,28],[176,7,176,8],[176,10,176,11],[176,12,176,13],[176,16,176,20],[176,21,176,28],[177,0,177,1],[194,0,194,1],[191,0,191,1],[192,0,192,1],[191,7,191,8],[191,10,191,11],[193,7,193,8],[193,10,193,11],[179,12,179,13],[179,16,179,20],[179,21,179,28],[180,7,180,8],[180,10,180,11],[180,12,180,13],[180,16,180,20],[180,21,180,28],[181,0,181,1],[182,0,182,1],[179,0,179,1],[180,0,180,1],[179,7,179,8],[179,10,179,11],[181,7,181,8],[181,10,181,11],[183,12,183,13],[183,16,183,20],[183,21,183,28],[184,7,184,8],[184,10,184,11],[184,12,184,13],[184,16,184,20],[184,21,184,28],[185,0,185,1],[202,0,202,1],[199,0,199,1],[200,0,200,1],[199,7,199,8],[199,10,199,11],[201,7,201,8],[201,10,201,11],[187,12,187,13],[187,16,187,20],[187,21,187,28],[188,7,188,8],[188,10,188,11],[188,12,188,13],[188,16,188,20],[188,21,188,28],[189,0,189,1],[190,0,190,1],[187,0,187,1],[188,0,188,1],[187,7,187,8],[187,10,187,11],[189,7,189,8],[189,10,189,11],[191,12,191,13],[191,16,191,20],[191,21,191,28],[192,7,192,8],[192,10,192,11],[192,12,192,13],[192,16,192,20],[192,21,192,28],[193,0,193,1],[210,0,210,1],[207,0,207,1],[208,0,208,1],[207,7,207,8],[207,10,207,11],[209,7,209,8],[209,10,209,11],[195,12,195,13],[195,16,195,20],[195,21,195,28],[196,7,196,8],[196,10,196,11],[196,12,196,13],[196,16,196,20],[196,21,196,28],[197,0,197,1],[198,0,198,1],[195,0,195,1],[196,0,196,1],[195,7,195,8],[195,10,195,11],[197,7,197,8],[197,10,197,11],[199,12,199,13],[199,16,199,20],[199,21,199,28],[200,7,200,8],[200,10,200,11],[200,12,200,13],[200,16,200,20],[200,21,200,28],[201,0,201,1],[218,0,218,1],[215,0,215,1],[216,0,216,1],[215,7,215,8],[215,10,215,11],[217,7,217,8],[217,10,217,11],[203,12,203,13],[203,16,203,20],[203,21,203,28],[204,7,204,8],[204,10,204,11],[204,12,204,13],[204,16,204,20],[204,21,204,28],[205,0,205,1],[206,0,206,1],[203,0,203,1],[204,0,204,1],[203,7,203,8],[203,10,203,11],[205,7,205,8],[205,10,205,11],[207,12,207,13],[207,16,207,20],[207,21,207,28],[208,7,208,8],[208,10,208,11],[208,12,208,13],[208,16,208,20],[208,21,208,28],[209,0,209,1],[226,0,226,1],[223,0,223,1],[224,0,224,1],[223,7,223,8],[223,10,223,11],[225,7,225,8],[225,10,225,11],[211,12,211,13],[211,16,211,20],[211,21,211,28],[212,7,212,8],[212,10,212,11],[212,12,212,13],[212,16,212,20],[212,21,212,28],[213,0,213,1],[214,0,214,1],[211,0,211,1],[212,0,212,1],[211,7,211,8],[211,10,211,11],[213,7,213,8],[213,10,213,11],[215,12,215,13],[215,16,215,20],[215,21,215,28],[216,7,216,8],[216,10,216,11],[216,12,216,13],[216,16,216,20],[216,21,216,28],[217,0,217,1],[234,0,234,1],[231,0,231,1],[232,0,232,1],[231,7,231,8],[231,10,231,11],[233,7,233,8],[233,10,233,11],[219,12,219,13],[219,16,219,20],[219,21,219,28],[220,7,220,8],[220,10,220,11],[220,12,220,13],[220,16,220,20],[220,21,220,28],[221,0,221,1],[222,0,222,1],[219,0,219,1],[220,0,220,1],[219,7,219,8],[219,10,219,11],[221,7,221,8],[221,10,221,11],[223,12,223,13],[223,16,223,20],[223,21,223,28],[224,7,224,8],[224,10,224,11],[224,12,224,13],[224,16,224,20],[224,21,224,28],[225,0,225,1],[242,0,242,1],[239,0,239,1],[240,0,240,1],[239,8,239,9],[239,11,239,12],[241,8,241,9],[241,11,241,12],[227,12,227,13],[227,16,227,20],[227,21,227,28],[228,7,228,8],[228,10,228,11],[228,12,228,13],[228,16,228,20],[228,21,228,28],[229,0,229,1],[230,0,230,1],[227,0,227,1],[228,0,228,1],[227,7,227,8],[227,10,227,11],[229,7,229,8],[229,10,229,11],[231,12,231,13],[231,16,231,20],[231,21,231,28],[232,7,232,8],[232,10,232,11],[232,12,232,13],[232,16,232,20],[232,21,232,28],[233,0,233,1],[250,0,250,1],[247,0,247,1],[248,0,248,1],[247,8,247,9],[247,11,247,12],[249,8,249,9],[249,11,249,12],[235,12,235,13],[235,16,235,20],[235,21,235,28],[236,7,236,8],[236,10,236,11],[236,12,236,13],[236,16,236,20],[236,21,236,28],[237,0,237,1],[238,0,238,1],[235,0,235,1],[236,0,236,1],[235,7,235,8],[235,10,235,11],[237,7,237,8],[237,10,237,11],[239,13,239,14],[239,17,239,21],[239,22,239,29],[240,8,240,9],[240,11,240,12],[240,13,240,14],[240,17,240,21],[240,22,240,29],[241,0,241,1],[258,0,258,1],[255,0,255,1],[256,0,256,1],[255,8,255,9],[255,11,255,12],[257,8,257,9],[257,11,257,12],[243,13,243,14],[243,17,243,21],[243,22,243,29],[244,8,244,9],[244,11,244,12],[244,13,244,14],[244,17,244,21],[244,22,244,29],[245,0,245,1],[246,0,246,1],[243,0,243,1],[244,0,244,1],[243,8,243,9],[243,11,243,12],[245,8,245,9],[245,11,245,12],[247,13,247,14],[247,17,247,21],[247,22,247,29],[248,8,248,9],[248,11,248,12],[248,13,248,14],[248,17,248,21],[248,22,248,29],[249,0,249,1],[266,0,266,1],[263,0,263,1],[264,0,264,1],[263,8,263,9],[263,11,263,12],[265,8,265,9],[265,11,265,12],[251,13,251,14],[251,17,251,21],[251,22,251,29],[252,8,252,9],[252,11,252,12],[252,13,252,14],[252,17,252,21],[252,22,252,29],[253,0,253,1],[254,0,254,1],[251,0,251,1],[252,0,252,1],[251,8,251,9],[251,11,251,12],[253,8,253,9],[253,11,253,12],[255,13,255,14],[255,17,255,21],[255,22,255,29],[256,8,256,9],[256,11,256,12],[256,13,256,14],[256,17,256,21],[256,22,256,29],[257,0,257,1],[274,0,274,1],[271,0,271,1],[272,0,272,1],[271,8,271,9],[271,11,271,12],[273,8,273,9],[273,11,273,12],[259,13,259,14],[259,17,259,21],[259,22,259,29],[260,8,260,9],[260,11,260,12],[260,13,260,14],[260,17,260,21],[260,22,260,29],[261,0,261,1],[262,0,262,1],[259,0,259,1],[260,0,260,1],[259,8,259,9],[259,11,259,12],[261,8,261,9],[261,11,261,12],[263,13,263,14],[263,17,263,21],[263,22,263,29],[264,8,264,9],[264,11,264,12],[264,13,264,14],[264,17,264,21],[264,22,264,29],[265,0,265,1],[282,0,282,1],[279,0,279,1],[280,0,280,1],[279,8,279,9],[279,11,279,12],[281,8,281,9],[281,11,281,12],[267,13,267,14],[267,17,267,21],[267,22,267,29],[268,8,268,9],[268,11,268,12],[268,13,268,14],[268,17,268,21],[268,22,268,29],[269,0,269,1],[270,0,270,1],[267,0,267,1],[268,0,268,1],[267,8,267,9],[267,11,267,12],[269,8,269,9],[269,11,269,12],[271,13,271,14],[271,17,271,21],[271,22,271,29],[272,8,272,9],[272,11,272,12],[272,13,272,14],[272,17,272,21],[272,22,272,29],[273,0,273,1],[290,0,290,1],[287,0,287,1],[288,0,288,1],[287,8,287,9],[287,11,287,12],[289,8,289,9],[289,11,289,12],[275,13,275,14],[275,17,275,21],[275,22,275,29],[276,8,276,9],[276,11,276,12],[276,13,276,14],[276,17,276,21],[276,22,276,29],[277,0,277,1],[278,0,278,1],[275,0,275,1],[276,0,276,1],[275,8,275,9],[275,11,275,12],[277,8,277,9],[277,11,277,12],[279,13,279,14],[279,17,279,21],[279,22,279,29],[280,8,280,9],[280,11,280,12],[280,13,280,14],[280,17,280,21],[280,22,280,29],[281,0,281,1],[298,0,298,1],[295,0,295,1],[296,0,296,1],[295,8,295,9],[295,11,295,12],[297,8,297,9],[297,11,297,12],[283,13,283,14],[283,17,283,21],[283,22,283,29],[284,8,284,9],[284,11,284,12],[284,13,284,14],[284,17,284,21],[284,22,284,29],[285,0,285,1],[286,0,286,1],[283,0,283,1],[284,0,284,1],[283,8,283,9],[283,11,283,12],[285,8,285,9],[285,11,285,12],[287,13,287,14],[287,17,287,21],[287,22,287,29],[288,8,288,9],[288,11,288,12],[288,13,288,14],[288,17,288,21],[288,22,288,29],[289,0,289,1],[306,0,306,1]],"merged_total":2626,"flags":["merged_cut"]}
["No"]
["No"]
["Corbett Exterminating",null,null,null,null,null,null,null,null,null,"Office Manager's Report"]
["Integrated Pest Management"]
["1-800-888-Pest"]
[]
[]
["Date:",null,"02/19/2016",null,null,null,null,null,"Time of arrival:",null,null,null,"09:33 AM",null,null,null,null,null,null,null,null,"Time of Departure:",null,null,null,null,"03:39 PM"]
[]
["Name of Complex:",null,null,null,null,"Rowan Towers"]
["Address:",null,null,"620 W State St, Trenton, NJ 08618"]
[]
["Foundation Type:",null,null,null,null,"{Foundation}",null,null,null,null,null,null,null,null,"Other:",null,"{foundation_Other}"]
[]
["Interior Rodent Stations",null,null,null,null,null,null,null,null,null,null,null,null,"Exterior Rodent Stations",null,null,null,null,null,null,null,null,null,null,"Rodent Trapping"]
["# of Stations",null,null,null,"{Int_Number_of_Stations}",null,null,null,null,null,null,null,null,"# of Stations",null,null,null,"{Ext_Number_of_Stations}",null,null,null,null,null,null,"Mice Glue Boards",null,null,null,null,"{Mice_Glue_Boards}"]
["Replaced",null,null,null,"{Int_Replaced}",null,null,null,null,null,null,null,null,"Missing",null,null,null,"{Ext_Replaced}",null,null,null,null,null,null,"Rat Glue Boards",null,null,null,null,"{Rat_Glue_Boards}"]
["Mice Stations",null,null,null,"{Int_Mice_Stations}",null,null,null,null,null,null,null,null,"Damaged",null,null,null,"{Ext_Mice_Stations}",null,null,null,null,null,null,"Snap Traps",null,null,null,null,"{Snap_Traps}"]
[]
["Chemical Usage:"]
["Chemical",null,null,"{Chemical(1)}",null,null,null,null,null,null,null,null,null,null,null,null,null,null,"{Percentage(1)}",null,null,"%",null,"Amount",null,null,"{Amount(1)}",null,null,null,"{UOM1(1)}"]
["Chemical",null,null,"{Chemical(2)}",null,null,null,null,null,null,null,null,null,null,null,null,null,null,"{Percentage(2)}",null,null,"%",null,"Amount",null,null,"{Amount(2)}",null,null,null,"{UOM1(2)}"]
["Chemical",null,null,"{Chemical(3)}",null,null,null,null,null,null,null,null,null,null,null,null,null,null,"{Percentage(3)}",null,null,"%",null,"Amount",null,null,"{Amount(3)}",null,null,null,"{UOM1(3)}"]
["Chemical",null,null,"{Chemical(4)}",null,null,null,null,null,null,null,null,null,null,null,null,null,null,"{Percentage(4)}",null,null,"%",null,"Amount",null,null,"{Amount(4)}",null,null,null,"{UOM1(4)}"]
["Chemical",null,null,"{Chemical(5)}",null,null,null,null,null,null,null,null,null,null,null,null,null,null,"{Percentage(5)}",null,null,"%",null,"Amount",null,null,"{Amount(5)}",null,null,null,"{UOM1(5)}"]
[]
["Rodenticide",null,null,"{Rodenticides(1)}",null,null,null,null,null,null,null,null,null,null,"{Rod_Percentage(1)}",null,"%",null,"Amount",null,"{Rod_Amount(1)}",null,null,null,"{UOM2(1)}",null,null,null,"Rate",null,"{Rod_rate(1)}"]
["Rodenticide",null,null,"{Rodenticides(2)}",null,null,null,null,null,null,null,null,null,null,"{Rod_Percentage(2)}",null,"%",null,"Amount",null,"{Rod_Amount(2)}",null,null,null,"{UOM2(2)}",null,null,null,"Rate",null,"{Rod_rate(1)}"]
["Rodenticide",null,null,"{Rodenticides(3)}",null,null,null,null,null,null,null,null,null,null,"{Rod_Percentage(3)}",null,"%",null,"Amount",null,"{Rod_Amount(3)}",null,null,null,"{UOM2(3)}",null,null,null,"Rate",null,"{Rod_rate(1)}"]
["Rodenticide",null,null,"{Rodenticides(4)}",null,null,null,null,null,null,null,null,null,null,"{Rod_Percentage(4)}",null,"%",null,"Amount",null,"{Rod_Amount(4)}",null,null,null,"{UOM2(4)}",null,null,null,"Rate",null,"{Rod_rate(1)}"]
["Rodenticide",null,null,"{Rodenticides(5)}",null,null,null,null,null,null,null,null,null,null,"{Rod_Percentage(5)}",null,"%",null,"Amount",null,"{Rod_Amount(5)}",null,null,null,"{UOM2(5)}",null,null,null,"Rate",null,"{Rod_rate(1)}"]
[]
["P.C.O. Comments:"]
[]
[]
[]
[]
[]
[]
[]
[]
[]
[]
["Site Manager Section"]
[]
["Were you satisfied with the technician(s)?",null,null,null,null,null,null,null,null,null,null,"{Were_you_satisfied_tech(1)}",null,null,null,null,null,null,null,"Were you satisfied with the service?",null,null,null,null,null,null,null,null,null,"{Were_you_satisfied_service(1)}"]
[]
["Manager's Comments:"]
["{Managers_Comments(1)}"]
[]
[]
[]
[]
[]
[]
[]
["{Site_Manager(1)}",null,null,null,null,null,null,null,null,null,null,null,null,null,null,null,null,null,""]
[]
[]
[]
[]
[]
[]
["{Site_Managers_Name(1)}",null,null,null,null,null,null,null,null,null,null,null,null,null,null,null,null,null,"Leroy Baker demikia smith"]
["Manager's Name",null,null,null,null,null,null,null,null,null,null,null,null,null,null,null,null,null,"Technician"]

{"sheet":"Sheet1","index":1,"n_rows":486,"n_cols":74,"rows_kept":486,"cut":false,"hidden":false,"merged":[[4,0,4,4],[4,5,4,14],[466,60,468,63],[466,64,468,67],[469,60,471,63],[469,64,471,67],[472,60,474,63],[472,64,474,67],[475,60,477,63],[475,64,477,67],[478,60,480,63],[478,64,480,67],[481,60,483,63],[481,64,483,67],[484,60,486,63],[484,64,486,67],[439,60,441,63],[439,64,441,67],[442,60,444,63],[442,64,444,67],[445,60,447,63],[445,64,447,67],[448,60,450,63],[448,64,450,67],[451,60,453,63],[451,64,453,67],[454,60,456,63],[454,64,456,67],[457,60,459,63],[457,64,459,67],[460,60,462,63],[460,64,462,67],[463,60,465,63],[463,64,465,67],[412,60,414,63],[412,64,414,67],[415,60,417,63],[415,64,417,67],[418,60,420,63],[418,64,420,67],[421,60,423,63],[421,64,423,67],[424,60,426,63],[424,64,426,67],[427,60,429,63],[427,64,429,67],[430,60,432,63],[430,64,432,67],[433,60,435,63],[433,64,435,67],[436,60,438,63],[436,64,438,67],[385,60,387,63],[385,64,387,67],[388,60,390,63],[388,64,390,67],[391,60,393,63],[391,64,393,67],[394,60,396,63],[394,64,396,67],[397,60,399,63],[397,64,399,67],[400,60,402,63],[400,64,402,67],[403,60,405,63],[403,64,405,67],[406,60,408,63],[406,64,408,67],[409,60,411,63],[409,64,411,67],[358,60,360,63],[358,64,360,67],[361,60,363,63],[361,64,363,67],[364,60,366,63],[364,64,366,67],[367,60,369,63],[367,64,369,67],[370,60,372,63],[370,64,372,67],[373,60,375,63],[373,64,375,67],[376,60,378,63],[376,64,378,67],[379,60,381,63],[379,64,381,67],[382,60,384,63],[382,64,384,67],[331,60,333,63],[331,64,333,67],[334,60,336,63],[334,64,336,67],[337,60,339,63],[337,64,339,67],[340,60,342,63],[340,64,342,67],[343,60,345,63],[343,64,345,67],[346,60,348,63],[346,64,348,67],[349,60,351,63],[349,64,351,67],[352,60,354,63],[352,64,354,67],[355,60,357,63],[355,64,357,67],[304,60,306,63],[304,64,306,67],[307,60,309,63],[307,64,309,67],[310,60,312,63],[310,64,312,67],[313,60,315,63],[313,64,315,67],[316,60,318,63],[316,64,318,67],[319,60,321,63],[319,64,321,67],[322,60,324,63],[322,64,324,67],[325,60,327,63],[325,64,327,67],[328,60,330,63],[328,64,330,67],[277,60,279,63],[277,64,279,67],[280,60,282,63],[280,64,282,67],[283,60,285,63],[283,64,285,67],[286,60,288,63],[286,64,288,67],[289,60,291,63],[289,64,291,67],[292,60,294,63],[292,64,294,67],[295,60,297,63],[295,64,297,67],[298,60,300,63],[298,64,300,67],[301,60,303,63],[301,64,303,67],[250,60,252,63],[250,64,252,67],[253,60,255,63],[253,64,255,67],[256,60,258,63],[256,64,258,67],[259,60,261,63],[259,64,261,67],[262,60,264,63],[262,64,264,67],[265,60,267,63],[265,64,267,67],[268,60,270,63],[268,64,270,67],[271,60,273,63],[271,64,273,67],[274,60,276,63],[274,64,276,67],[223,60,225,63],[223,64,225,67],[226,60,228,63],[226,64,228,67],[229,60,231,63],[229,64,231,67],[232,60,234,63],[232,64,234,67],[235,60,237,63],[235,64,237,67],[238,60,240,63],[238,64,240,67],[241,60,243,63],[241,64,243,67],[244,60,246,63],[244,64,246,67],[247,60,249,63],[247,64,249,67],[196,60,198,63],[196,64,198,67],[199,60,201,63],[199,64,201,67],[202,60,204,63],[202,64,204,67],[205,60,207,63],[205,64,207,67],[208,60,210,63],[208,64,210,67],[211,60,213,63],[211,64,213,67],[214,60,216,63],[214,64,216,67],[217,60,219,63],[217,64,219,67],[220,60,222,63],[220,64,222,67],[169,60,171,63],[169,64,171,67],[172,60,174,63],[172,64,174,67],[175,60,177,63],[175,64,177,67],[178,60,180,63],[178,64,180,67],[181,60,183,63],[181,64,183,67],[184,60,186,63],[184,64,186,67],[187,60,189,63],[187,64,189,67],[190,60,192,63],[190,64,192,67],[193,60,195,63],[193,64,195,67],[142,60,144,63],[142,64,144,67],[145,60,147,63],[145,64,147,67],[148,60,150,63],[148,64,150,67],[151,60,153,63],[151,64,153,67],[154,60,156,63],[154,64,156,67],[157,60,159,63],[157,64,159,67],[160,60,162,63],[160,64,162,67],[163,60,165,63],[163,64,165,67],[166,60,168,63],[166,64,168,67],[115,60,117,63],[115,64,117,67],[118,60,120,63],[118,64,120,67],[121,60,123,63],[121,64,123,67],[124,60,126,63],[124,64,126,67],[127,60,129,63],[127,64,129,67],[130,60,132,63],[130,64,132,67],[133,60,135,63],[133,64,135,67],[136,60,138,63],[136,64,138,67],[139,60,141,63],[139,64,141,67],[88,60,90,63],[88,64,90,67],[91,60,93,63],[91,64,93,67],[94,60,96,63],[94,64,96,67],[97,60,99,63],[97,64,99,67],[100,60,102,63],[100,64,102,67],[103,60,105,63],[103,64,105,67],[106,60,108,63],[106,64,108,67],[109,60,111,63],[109,64,111,67],[112,60,114,63],[112,64,114,67],[61,60,63,63],[61,64,63,67],[64,60,66,63],[64,64,66,67],[67,60,69,63],[67,64,69,67],[70,60,72,63],[70,64,72,67],[73,60,75,63],[73,64,75,67],[76,60,78,63],[76,64,78,67],[79,60,81,63],[79,64,81,67],[82,60,84,63],[82,64,84,67],[85,60,87,63],[85,64,87,67],[34,60,36,63],[34,64,36,67],[37,60,39,63],[37,64,39,67],[40,60,42,63],[40,64,42,67],[43,60,45,63],[43,64,45,67],[46,60,48,63],[46,64,48,67],[49,60,51,63],[49,64,51,67],[52,60,54,63],[52,64,54,67],[55,60,57,63],[55,64,57,67],[58,60,60,63],[58,64,60,67],[7,60,9,63],[7,64,9,67],[10,60,12,63],[10,64,12,67],[13,60,15,63],[13,64,15,67],[16,60,18,63],[16,64,18,67],[19,60,21,63],[19,64,21,67],[22,60,24,63],[22,64,24,67],[25,60,27,63],[25,64,27,67],[28,60,30,63],[28,64,30,67],[31,60,33,63],[31,64,33,67],[1,16,1,40],[2,27,2,33],[2,34,2,40],[3,27,4,33],[3,34,4,40],[482,32,482,40],[448,31,448,41],[449,32,449,40],[450,31,450,41],[451,31,451,41],[452,32,452,40],[453,31,453,41],[454,31,454,41],[455,32,455,40],[456,31,456,41],[457,31,457,41],[458,32,458,40],[459,31,459,41],[460,31,460,41],[461,32,461,40],[462,31,462,41],[463,31,463,41],[464,32,464,40],[431,32,431,40],[432,31,432,41],[433,31,433,41],[434,32,434,40],[435,31,435,41],[436,31,436,41],[437,32,437,40],[438,31,438,41],[439,31,439,41],[483,31,483,41],[484,31,484,41],[485,32,485,40],[486,31,486,41],[465,31,465,41],[466,31,466,41],[467,32,467,40],[468,31,468,41],[469,31,469,41],[470,32,470,40],[471,31,471,41],[472,31,472,41],[473,32,473,40],[474,31,474,41],[475,31,475,41],[476,32,476,40],[477,31,477,41],[478,31,478,41],[479,32,479,40],[480,31,480,41],[481,31,481,41],[441,31,441,41],[442,31,442,41],[443,32,443,40],[444,31,444,41],[445,31,445,41],[446,32,446,40],[447,31,447,41],[413,32,413,40],[414,31,414,41],[415,31,415,41],[416,32,416,40],[417,31,417,41],[418,31,418,41],[419,32,419,40],[420,31,420,41],[421,31,421,41],[422,32,422,40],[423,31,423,41],[424,31,424,41],[425,32,425,40],[426,31,426,41],[427,31,427,41],[428,32,428,40],[429,31,429,41],[430,31,430,41],[397,31,397,41],[398,32,398,40],[399,31,399,41],[400,31,400,41],[401,32,401,40],[402,31,402,41],[403,31,403,41],[404,32,404,40],[405,31,405,41],[406,31,406,41],[407,32,407,40],[408,31,408,41],[409,31,409,41],[410,32,410,40],[411,31,411,41],[412,31,412,41],[440,32,440,40],[371,32,371,40],[372,31,372,41],[373,31,373,41],[374,32,374,40],[375,31,375,41],[376,31,376,41],[377,32,377,40],[378,31,378,41],[379,31,379,41],[380,32,380,40],[381,31,381,41],[382,31,382,41],[383,32,383,40],[384,31,384,41],[385,31,385,41],[386,32,386,40],[396,31,396,41],[354,31,354,41],[355,31,355,41],[356,32,356,40],[357,31,357,41],[358,31,358,41],[359,32,359,40],[360,31,360,41],[361,31,361,41],[362,32,362,40],[363,31,363,41],[364,31,364,41],[365,32,365,40],[366,31,366,41],[367,31,367,41],[368,32,368,40],[369,31,369,41],[370,31,370,41],[337,31,337,41],[338,32,338,40],[339,31,339,41],[340,31,340,41],[341,32,341,40],[342,31,342,41],[343,31,343,41],[344,32,344,40],[345,31,345,41],[346,31,346,41],[347,32,347,40],[348,31,348,41],[349,31,349,41],[350,32,350,40],[351,31,351,41],[352,31,352,41],[353,32,353,40],[320,32,320,40],[321,31,321,41],[322,31,322,41],[323,32,323,40],[324,31,324,41],[325,31,325,41],[326,32,326,40],[327,31,327,41],[328,31,328,41],[329,32,329,40],[330,31,330,41],[331,31,331,41],[332,32,332,40],[333,31,333,41],[334,31,334,41],[335,32,335,40],[336,31,336,41],[303,31,303,41],[304,31,304,41],[305,32,305,40],[306,31,306,41],[307,31,307,41],[308,32,308,40],[309,31,309,41],[310,31,310,41],[311,32,311,40],[312,31,312,41],[313,31,313,41],[314,32,314,40],[315,31,315,41],[316,31,316,41],[317,32,317,40],[318,31,318,41],[319,31,319,41],[286,31,286,41],[287,32,287,40],[288,31,288,41],[289,31,289,41],[290,32,290,40],[291,31,291,41],[292,31,292,41],[293,32,293,40],[294,31,294,41],[295,31,295,41],[296,32,296,40],[297,31,297,41],[298,31,298,41],[299,32,299,40],[300,31,300,41],[301,31,301,41],[302,32,302,40],[264,31,264,41],[277,31,277,41],[278,32,278,40],[279,31,279,41],[280,31,280,41],[281,32,281,40],[282,31,282,41],[283,31,283,41],[284,32,284,40],[273,31,273,41],[274,31,274,41],[275,32,275,40],[276,31,276,41],[270,31,270,41],[271,31,271,41],[272,32,272,40],[285,31,285,41],[265,31,265,41],[266,32,266,40],[267,31,267,41],[268,31,268,41],[269,32,269,40],[247,31,247,41],[248,32,248,40],[249,31,249,41],[250,31,250,41],[251,32,251,40],[252,31,252,41],[253,31,253,41],[254,32,254,40],[255,31,255,41],[256,31,256,41],[257,32,257,40],[258,31,258,41],[259,31,259,41],[260,32,260,40],[261,31,261,41],[262,31,262,41],[263,32,263,40],[199,31,199,41],[200,32,200,40],[201,31,201,41],[202,31,202,41],[203,32,203,40],[173,32,173,40],[174,31,174,41],[175,31,175,41],[176,32,176,40],[177,31,177,41],[178,31,178,41],[179,32,179,40],[180,31,180,41],[181,31,181,41],[182,32,182,40],[183,31,183,41],[184,31,184,41],[185,32,185,40],[186,31,186,41],[187,31,187,41],[188,32,188,40],[194,32,194,40],[195,31,195,41],[196,31,196,41],[197,32,197,40],[198,31,198,41],[158,32,158,40],[159,31,159,41],[160,31,160,41],[161,32,161,40],[162,31,162,41],[163,31,163,41],[164,32,164,40],[165,31,165,41],[166,31,166,41],[167,32,167,40],[168,31,168,41],[81,31,81,41],[82,31,82,41],[83,32,83,40],[84,31,84,41],[85,31,85,41],[86,32,86,40],[87,31,87,41],[88,31,88,41],[89,32,89,40],[90,31,90,41],[91,31,91,41],[92,32,92,40],[93,31,93,41],[94,31,94,41],[95,32,95,40],[96,31,96,41],[97,31,97,41],[49,31,49,41],[50,32,50,40],[51,31,51,41],[52,31,52,41],[53,32,53,40],[54,31,54,41],[55,31,55,41],[56,32,56,40],[57,31,57,41],[58,31,58,41],[59,32,59,40],[60,31,60,41],[61,31,61,41],[62,32,62,40],[63,31,63,41],[64,31,64,41],[65,32,65,40],[32,32,32,40],[33,31,33,41],[34,31,34,41],[35,32,35,40],[36,31,36,41],[37,31,37,41],[38,32,38,40],[39,31,39,41],[40,31,40,41],[41,32,41,40],[42,31,42,41],[43,31,43,41],[44,32,44,40],[45,31,45,41],[46,31,46,41],[47,32,47,40],[48,31,48,41],[475,19,477,30],[478,19,480,30],[481,19,483,30],[484,19,486,30],[6,31,6,40],[8,32,8,40],[7,31,7,41],[9,31,9,41],[10,31,10,41],[11,32,11,40],[12,31,12,41],[13,31,13,41],[14,32,14,40],[15,31,15,41],[16,31,16,41],[17,32,17,40],[18,31,18,41],[19,31,19,41],[20,32,20,40],[21,31,21,41],[22,31,22,41],[23,32,23,40],[24,31,24,41],[25,31,25,41],[26,32,26,40],[27,31,27,41],[28,31,28,41],[29,32,29,40],[30,31,30,41],[31,31,31,41],[370,19,372,30],[373,19,375,30],[415,19,417,30],[418,19,420,30],[241,19,243,30],[244,19,246,30],[247,19,249,30],[250,19,252,30],[253,19,255,30],[256,19,258,30],[259,19,261,30],[262,19,264,30],[265,19,267,30],[268,19,270,30],[271,19,273,30],[274,19,276,30],[277,19,279,30],[280,19,282,30],[283,19,285,30],[286,19,288,30],[289,19,291,30],[292,19,294,30],[304,19,306,30],[307,19,309,30],[310,19,312,30],[313,19,315,30],[316,19,318,30],[379,19,381,30],[382,19,384,30],[385,19,387,30],[388,19,390,30],[391,19,393,30],[394,19,396,30],[397,19,399,30],[400,19,402,30],[403,19,405,30],[406,19,408,30],[409,19,411,30],[412,19,414,30],[196,19,198,30],[199,19,201,30],[202,19,204,30],[205,19,207,30],[208,19,210,30],[217,19,219,30],[220,19,222,30],[223,19,225,30],[226,19,228,30],[229,19,231,30],[232,19,234,30],[235,19,237,30],[238,19,240,30],[376,19,378,30],[325,19,327,30],[328,19,330,30],[331,19,333,30],[334,19,336,30],[337,19,339,30],[340,19,342,30],[343,19,345,30],[346,19,348,30],[349,19,351,30],[352,19,354,30],[355,19,357,30],[358,19,360,30],[361,19,363,30],[364,19,366,30],[367,19,369,30],[295,19,297,30],[298,19,300,30],[301,19,303,30],[109,19,111,30],[112,19,114,30],[115,19,117,30],[118,19,120,30],[121,19,123,30],[124,19,126,30],[127,19,129,30],[130,19,132,30],[133,19,135,30],[136,19,138,30],[139,19,141,30],[142,19,144,30],[145,19,147,30],[148,19,150,30],[151,19,153,30],[154,19,156,30],[157,19,159,30],[319,19,321,30],[322,19,324,30],[463,13,465,17],[466,13,468,17],[469,13,471,17],[472,13,474,17],[475,13,477,17],[478,13,480,17],[481,13,483,17],[484,13,486,17],[7,19,9,30],[10,19,12,30],[13,19,15,30],[16,19,18,30],[19,19,21,30],[22,19,24,30],[25,19,27,30],[28,19,30,30],[31,19,33,30],[34,19,36,30],[37,19,39,30],[40,19,42,30],[43,19,45,30],[46,19,48,30],[49,19,51,30],[52,19,54,30],[55,19,57,30],[88,19,90,30],[91,19,93,30],[94,19,96,30],[97,19,99,30],[100,19,102,30],[103,19,105,30],[106,19,108,30],[352,13,354,17],[355,13,357,17],[358,13,360,17],[436,13,438,17],[439,13,441,17],[442,13,444,17],[403,13,405,17],[406,13,408,17],[409,13,411,17],[412,13,414,17],[415,13,417,17],[418,13,420,17],[421,13,423,17],[424,13,426,17],[427,13,429,17],[430,13,432,17],[433,13,435,17],[373,13,375,17],[376,13,378,17],[379,13,381,17],[241,13,243,17],[244,13,246,17],[247,13,249,17],[250,13,252,17],[253,13,255,17],[295,13,297,17],[298,13,300,17],[301,13,303,17],[304,13,306,17],[307,13,309,17],[319,13,321,17],[322,13,324,17],[325,13,327,17],[328,13,330,17],[331,13,333,17],[334,13,336,17],[337,13,339,17],[100,13,102,17],[103,13,105,17],[106,13,108,17],[199,13,201,17],[202,13,204,17],[205,13,207,17],[208,13,210,17],[211,13,213,17],[214,13,216,17],[217,13,219,17],[220,13,222,17],[223,13,225,17],[226,13,228,17],[229,13,231,17],[232,13,234,17],[235,13,237,17],[238,13,240,17],[109,13,111,17],[112,13,114,17],[115,13,117,17],[118,13,120,17],[160,13,162,17],[163,13,165,17],[166,13,168,17],[169,13,171,17],[172,13,174,17],[175,13,177,17],[178,13,180,17],[181,13,183,17],[184,13,186,17],[187,13,189,17],[190,13,192,17],[7,13,9,17],[10,13,12,17],[13,13,15,17],[16,13,18,17],[19,13,21,17],[22,13,24,17],[25,13,27,17],[28,13,30,17],[31,13,33,17],[34,13,36,17],[37,13,39,17],[40,13,42,17],[43,13,45,17],[46,13,48,17],[49,13,51,17],[52,13,54,17],[55,13,57,17],[6,9,6,12],[6,13,6,17],[6,19,6,30],[445,50,447,54],[448,50,450,54],[451,50,453,54],[454,50,456,54],[457,50,459,54],[460,50,462,54],[394,50,396,54],[397,50,399,54],[400,50,402,54],[403,50,405,54],[406,50,408,54],[409,50,411,54],[412,50,414,54],[415,50,417,54],[418,50,420,54],[421,50,423,54],[424,50,426,54],[427,50,429,54],[430,50,432,54],[433,50,435,54],[436,50,438,54],[439,50,441,54],[442,50,444,54],[337,50,339,54],[340,50,342,54],[343,50,345,54],[346,50,348,54],[349,50,351,54],[352,50,354,54],[280,50,282,54],[283,50,285,54],[361,50,363,54],[364,50,366,54],[367,50,369,54],[370,50,372,54],[373,50,375,54],[376,50,378,54],[379,50,381,54],[382,50,384,54],[385,50,387,54],[388,50,390,54],[391,50,393,54],[286,50,288,54],[289,50,291,54],[292,50,294,54],[295,50,297,54],[298,50,300,54],[301,50,303,54],[304,50,306,54],[307,50,309,54],[310,50,312,54],[313,50,315,54],[316,50,318,54],[319,50,321,54],[322,50,324,54],[325,50,327,54],[328,50,330,54],[331,50,333,54],[334,50,336,54],[355,50,357,54],[358,50,360,54],[229,50,231,54],[232,50,234,54],[235,50,237,54],[238,50,240,54],[241,50,243,54],[244,50,246,54],[247,50,249,54],[250,50,252,54],[253,50,255,54],[256,50,258,54],[259,50,261,54],[262,50,264,54],[265,50,267,54],[268,50,270,54],[271,50,273,54],[274,50,276,54],[277,50,279,54],[178,50,180,54],[181,50,183,54],[184,50,186,54],[187,50,189,54],[190,50,192,54],[193,50,195,54],[196,50,198,54],[199,50,201,54],[202,50,204,54],[205,50,207,54],[208,50,210,54],[211,50,213,54],[214,50,216,54],[217,50,219,54],[220,50,222,54],[223,50,225,54],[226,50,228,54],[127,50,129,54],[130,50,132,54],[133,50,135,54],[136,50,138,54],[139,50,141,54],[142,50,144,54],[145,50,147,54],[148,50,150,54],[151,50,153,54],[154,50,156,54],[157,50,159,54],[160,50,162,54],[163,50,165,54],[166,50,168,54],[169,50,171,54],[172,50,174,54],[175,50,177,54],[472,43,474,47]],"merged_total":2104,"flags":["merged_cut"]}
["Date: ",null,null,"02/19/2016"]
["Complex Name:",null,null,null,null,{"$f":"BR4","v":"{Customer_Name}"},null,null,null,null,null,null,null,null,null,null,"Conditions Conducive Legend",null,null,null,null,null,null,null,null,null,null,null,null,null,null,null,null,null,null,null,null,null,null,null,null,null,null,null,null,null,null,null,null,null,null,null,null,null,null,null,null,null,null,null,null,null,null,null,null,null,null,null,null,"Rowan Towers",{"$f":"LEN(BR2)","v":12.0},{"$f":"FIND(\"(\",BR2)-1","v":{"$error":"#VALUE!"}},{"$f":"LEFT(BR2,BT2)","v":{"$error":"#VALUE!"}},{"$f":"IF(ISNUMBER(SEARCH(\"*(NHA*\",BR2)),BR2,BU2)","v":{"$error":"#VALUE!"}}]
[null,null,null,null,null,null,null,null,null,null,null,null,null,null,null,null,"DD - Dirty Dishes",null,null,null,null,"OF - Open Foods in Unit",null,null,null,null,null,"ER - Excess Rubbish in Unit",null,null,null,null,null,null,"RNC - Rubbish not in container",null,null,null,null,null,null,null,null,null,null,null,null,null,null,null,null,null,null,null,null,null,null,null,null,null,null,null,null,null,null,null,null,null,null,{"$f":"IF(ISNUMBER(SEARCH(\"*(NHA*\",#REF!)),BR2,IF(ISNUMBER(SEARCH(\"*(NJT*\",BR2)),BR2,BV2))","v":{"$error":"#VALUE!"}}]
["Address:",null,null,null,null,"620 W State St, Trenton, NJ 08618",null,null,null,null,null,null,null,null,null,null,"DL - Dirty Laundry",null,null,null,null,"SA - Stored/stacked articles",null,null,null,null,null,"G/F-FW - Grease/Food on floors or walls",null,null,null,null,null,null,"G/F-STC - Grease/Food Debris on stove, table or countertops",null,null,null,null,null,null,null,null,null,null,null,null,null,null,null,null,null,null,null,null,null,null,null,null,null,null,null,null,null,null,null,null,null,null,{"$f":"IFERROR(BR3,BR2)","v":"{Customer_Name}"}]
["Technician(s):",null,null,null,null,"Leroy Baker demikia smith"]
[{"$f":"COUNTA(B8:F487)*3","v":57.0},null,null,null,null,null,{"$f":"COUNTA(B50:F91)*3","v":18.0}]
[null,"Unit #  . ",null,null,null,null,"Unit Access  .",null,null," Treatment Location",null,null,null,"       Treatment Type\nT=Treatment     C=Cleanout\nG=Glue Traps",null,null,null,null,{"$f":"BF7","v":"NJ Decal"},"PCT Comments\nIncludes Conditions Conducive, NJ Decal & Pets",null,null,null,null,null,null,null,null,null,null,null,"Resident's Signature",null,null,null,null,null,null,null,null,null,null,null,null,null,null,null,null,null,null,null,null,null,null,null,null,null,{"$f":"IF(BG7<>\"NJ\",\"\",\"NJ Decal\")","v":"NJ Decal"},"NJ"]
[null,null,null,null,null,null,"Yes",null,null,{"$f":"BM8","v":"Kitchen & Bathroom"},null,null,null,{"$f":"AR8","v":""},null,null,null,null,"Yes",null,null,null,null,null,null,null,null,null,null,null,null,null,null,null,null,null,null,null,null,null,null,null,null,{"$f":"SUBSTITUTE($AY8,\",\",\", \")","v":""},null,null,null,null,null,null,null,null,null,null,null,null,null,null,null,null,"Kitchen & Bathroom",null,null,null,{"$f":"SUBSTITUTE(BI8,\",\",\", \")","v":"Kitchen & Bathroom"}]
[null,null,null,null,null,null,null,null,null,null,null,null,null,null,null,null,null,null,null,null,null,null,null,null,null,null,null,null,null,null,null,null,""]
[]
[null,"8l",null,null,null,null,"Keyed",null,null,{"$f":"BM11","v":"Kitchen & Bathroom"},null,null,null,{"$f":"AR11","v":""},null,null,null,null,"Yes",null,null,null,null,null,null,null,null,null,null,null,null,null,null,null,null,null,null,null,null,null,null,null,null,{"$f":"SUBSTITUTE($AY11,\",\",\", \")","v":""},null,null,null,null,null,null,null,null,null,null,null,null,null,null,null,null,"Kitchen & Bathroom",null,null,null,{"$f":"SUBSTITUTE(BI11,\",\",\", \")","v":"Kitchen & Bathroom"}]
[null,null,null,null,null,null,null,null,null,null,null,null,null,null,null,null,null,null,null,null,null,null,null,null,null,null,null,null,null,null,null,null,""]
[]
[null,"8n",null,null,null,null,"Keyed",null,null,{"$f":"BM14","v":"Kitchen & Bathroom"},null,null,null,{"$f":"AR14","v":""},null,null,null,null,"Yes",null,null,null,null,null,null,null,null,null,null,null,null,null,null,null,null,null,null,null,null,null,null,null,null,{"$f":"SUBSTITUTE($AY14,\",\",\", \")","v":""},null,null,null,null,null,null,null,null,null,null,null,null,null,null,null,null,"Kitchen & Bathroom",null,null,null,{"$f":"SUBSTITUTE(BI14,\",\",\", \")","v":"Kitchen & Bathroom"}]
[null,null,null,null,null,null,null,null,null,null,null,null,null,null,null,null,null,null,null,null,null,null,null,null,null,null,null,null,null,null,null,null,""]
[]
[null,"8D",null,null,null,null,"Keyed",null,null,{"$f":"BM17","v":"Kitchen & Bathroom"},null,null,null,{"$f":"AR17","v":""},null,null,null,null,"Yes",null,null,null,null,null,null,null,null,null,null,null,null,null,null,null,null,null,null,null,null,null,null,null,null,{"$f":"SUBSTITUTE($AY17,\",\",\", \")","v":""},null,null,null,null,null,null,null,null,null,null,null,null,null,null,null,null,"Kitchen & Bathroom",null,null,null,{"$f":"SUBSTITUTE(BI17,\",\",\", \")","v":"Kitchen & Bathroom"}]
[null,null,null,null,null,null,null,null,null,null,null,null,null,null,null,null,null,null,null,null,null,null,null,null,null,null,null,null,null,null,null,null,""]
[]
[null,"8f",null,null,null,null,"Keyed",null,null,{"$f":"BM20","v":"Kitchen & Bathroom"},null,null,null,{"$f":"AR20","v":""},null,null,null,null,"Yes",null,null,null,null,null,null,null,null,null,null,null,null,null,null,null,null,null,null,null,null,null,null,null,null,{"$f":"SUBSTITUTE($AY20,\",\",\", \")","v":""},null,null,null,null,null,null,null,null,null,null,null,null,null,null,null,null,"Kitchen & Bathroom",null,null,null,{"$f":"SUBSTITUTE(BI20,\",\",\", \")","v":"Kitchen & Bathroom"}]
[null,null,null,null,null,null,null,null,null,null,null,null,null,null,null,null,null,null,null,null,null,null,null,null,null,null,null,null,null,null,null,null,""]
[]
[null,"8K",null,null,null,null,"Keyed",null,null,{"$f":"BM23","v":"Kitchen & Bathroom"},null,null,null,{"$f":"AR23","v":""},null,null,null,null,"Yes",null,null,null,null,null,null,null,null,null,null,null,null,null,null,null,null,null,null,null,null,null,null,null,null,{"$f":"SUBSTITUTE($AY23,\",\",\", \")","v":""},null,null,null,null,null,null,null,null,null,null,null,null,null,null,null,null,"Kitchen & Bathroom",null,null,null,{"$f":"SUBSTITUTE(BI23,\",\",\", \")","v":"Kitchen & Bathroom"}]
[null,null,null,null,null,null,null,null,null,null,null,null,null,null,null,null,null,null,null,null,null,null,null,null,null,null,null,null,null,null,null,null,""]
[]
[null,"7F",null,null,null,null,"Keyed",null,null,{"$f":"BM26","v":"Kitchen & Bathroom"},null,null,null,{"$f":"AR26","v":""},null,null,null,null,"Yes",null,null,null,null,null,null,null,null,null,null,null,null,null,null,null,null,null,null,null,null,null,null,null,null,{"$f":"SUBSTITUTE($AY26,\",\",\", \")","v":""},null,null,null,null,null,null,null,null,null,null,null,null,null,null,null,null,"Kitchen & Bathroom",null,null,null,{"$f":"SUBSTITUTE(BI26,\",\",\", \")","v":"Kitchen & Bathroom"}]
[null,null,null,null,null,null,null,null,null,null,null,null,null,null,null,null,null,null,null,null,null,null,null,null,null,null,null,null,null,null,null,null,""]
[]
[null,"7b",null,null,null,null,"Yes",null,null,{"$f":"BM29","v":"Kitchen & Bathroom"},null,null,null,{"$f":"AR29","v":""},null,null,null,null,"Yes","Tenet him 7B claims the problem has worsened and would appreciate the follow up",null,null,null,null,null,null,null,null,null,null,null,null,null,null,null,null,null,null,null,null,null,null,null,{"$f":"SUBSTITUTE($AY29,\",\",\", \")","v":""},null,null,null,null,null,null,null,null,null,null,null,null,null,null,null,null,"Kitchen & Bathroom",null,null,null,{"$f":"SUBSTITUTE(BI29,\",\",\", \")","v":"Kitchen & Bathroom"}]
[null,null,null,null,null,null,null,null,null,null,null,null,null,null,null,null,null,null,null,null,null,null,null,null,null,null,null,null,null,null,null,null,""]
[]
[null,"7J",null,null,null,null,"Yes",null,null,{"$f":"BM32","v":"Kitchen & Bathroom"},null,null,null,{"$f":"AR32","v":""},null,null,null,null,"Yes",null,null,null,null,null,null,null,null,null,null,null,null,null,null,null,null,null,null,null,null,null,null,null,null,{"$f":"SUBSTITUTE($AY32,\",\",\", \")","v":""},null,null,null,null,null,null,null,null,null,null,null,null,null,null,null,null,"Kitchen & Bathroom",null,null,null,{"$f":"SUBSTITUTE(BI32,\",\",\", \")","v":"Kitchen & Bathroom"}]
[null,null,null,null,null,null,null,null,null,null,null,null,null,null,null,null,null,null,null,null,null,null,null,null,null,null,null,null,null,null,null,null,""]
[]
[null,"7a",null,null,null,null,"Keyed",null,null,{"$f":"BM35","v":"Kitchen & Bathroom"},null,null,null,{"$f":"AR35","v":""},null,null,null,null,"Yes",null,null,null,null,null,null,null,null,null,null,null,null,null,null,null,null,null,null,null,null,null,null,null,null,{"$f":"SUBSTITUTE($AY35,\",\",\", \")","v":""},null,null,null,null,null,null,null,null,null,null,null,null,null,null,null,null,"Kitchen & Bathroom",null,null,null,{"$f":"SUBSTITUTE(BI35,\",\",\", \")","v":"Kitchen & Bathroom"}]
[null,null,null,null,null,null,null,null,null,null,null,null,null,null,null,null,null,null,null,null,null,null,null,null,null,null,null,null,null,null,null,null,""]
[]
[null,"Y7l",null,null,null,null,"Yes",null,null,{"$f":"BM38","v":"Kitchen & Bathroom"},null,null,null,{"$f":"AR38","v":""},null,null,null,null,"Yes",null,null,null,null,null,null,null,null,null,null,null,null,null,null,null,null,null,null,null,null,null,null,null,null,{"$f":"SUBSTITUTE($AY38,\",\",\", \")","v":""},null,null,null,null,null,null,null,null,null,null,null,null,null,null,null,null,"Kitchen & Bathroom",null,null,null,{"$f":"SUBSTITUTE(BI38,\",\",\", \")","v":"Kitchen & Bathroom"}]
[null,null,null,null,null,null,null,null,null,null,null,null,null,null,null,null,null,null,null,null,null,null,null,null,null,null,null,null,null,null,null,null,""]
[]
[null,"7M",null,null,null,null,"Yes",null,null,{"$f":"BM41","v":"Kitchen & Bathroom"},null,null,null,{"$f":"AR41","v":""},null,null,null,null,"Yes",null,null,null,null,null,null,null,null,null,null,null,null,null,null,null,null,null,null,null,null,null,null,null,null,{"$f":"SUBSTITUTE($AY41,\",\",\", \")","v":""},null,null,null,null,null,null,null,null,null,null,null,null,null,null,null,null,"Kitchen & Bathroom",null,null,null,{"$f":"SUBSTITUTE(BI41,\",\",\", \")","v":"Kitchen & Bathroom"}]
[null,null,null,null,null,null,null,null,null,null,null,null,null,null,null,null,null,null,null,null,null,null,null,null,null,null,null,null,null,null,null,null,""]
[]
[null,"7N",null,null,null,null,"Yes",null,null,{"$f":"BM44","v":"Kitchen & Bathroom"},null,null,null,{"$f":"AR44","v":""},null,null,null,null,"Yes",null,null,null,null,null,null,null,null,null,null,null,null,null,null,null,null,null,null,null,null,null,null,null,null,{"$f":"SUBSTITUTE($AY44,\",\",\", \")","v":""},null,null,null,null,null,null,null,null,null,null,null,null,null,null,null,null,"Kitchen & Bathroom",null,null,null,{"$f":"SUBSTITUTE(BI44,\",\",\", \")","v":"Kitchen & Bathroom"}]
[null,null,null,null,null,null,null,null,null,null,null,null,null,null,null,null,null,null,null,null,null,null,null,null,null,null,null,null,null,null,null,null,""]
[]
[null,"7p",null,null,null,null,"Keyed",null,null,{"$f":"BM47","v":"Kitchen & Bathroom"},null,null,null,{"$f":"AR47","v":""},null,null,null,null,"Yes",null,null,null,null,null,null,null,null,null,null,null,null,null,null,null,null,null,null,null,null,null,null,null,null,{"$f":"SUBSTITUTE($AY47,\",\",\", \")","v":""},null,null,null,null,null,null,null,null,null,null,null,null,null,null,null,null,"Kitchen & Bathroom",null,null,null,{"$f":"SUBSTITUTE(BI47,\",\",\", \")","v":"Kitchen & Bathroom"}]
[null,null,null,null,null,null,null,null,null,null,null,null,null,null,null,null,null,null,null,null,null,null,null,null,null,null,null,null,null,null,null,null,""]
[]
[null,"7G",null,null,null,null,"Yes",null,null,{"$f":"BM50","v":"Kitchen & Bathroom"},null,null,null,{"$f":"AR50","v":""},null,null,null,null,"Yes",null,null,null,null,null,null,null,null,null,null,null,null,null,null,null,null,null,null,null,null,null,null,null,null,{"$f":"SUBSTITUTE($AY50,\",\",\", \")","v":""},null,null,null,null,null,null,null,null,null,null,null,null,null,null,null,null,"Kitchen & Bathroom",null,null,null,{"$f":"SUBSTITUTE(BI50,\",\",\", \")","v":"Kitchen & Bathroom"}]
[null,null,null,null,null,null,null,null,null,null,null,null,null,null,null,null,null,null,null,null,null,null,null,null,null,null,null,null,null,null,null,null,""]
[]
[null,"7D",null,null,null,null,"Keyed",null,null,{"$f":"BM53","v":"Kitchen & Bathroom"},null,null,null,{"$f":"AR53","v":""},null,null,null,null,"Yes",null,null,null,null,null,null,null,null,null,null,null,null,null,null,null,null,null,null,null,null,null,null,null,null,{"$f":"SUBSTITUTE($AY53,\",\",\", \")","v":""},null,null,null,null,null,null,null,null,null,null,null,null,null,null,null,null,"Kitchen & Bathroom",null,null,null,{"$f":"SUBSTITUTE(BI53,\",\",\", \")","v":"Kitchen & Bathroom"}]
[null,null,null,null,null,null,null,null,null,null,null,null,null,null,null,null,null,null,null,null,null,null,null,null,null,null,null,null,null,null,null,null,""]
[]
[null,"6g",null,null,null,null,"Yes",null,null,{"$f":"BM56","v":"Kitchen & Bathroom"},null,null,null,{"$f":"AR56","v":""},null,null,null,null,"Yes",null,null,null,null,null,null,null,null,null,null,null,null,null,null,null,null,null,null,null,null,null,null,null,null,{"$f":"SUBSTITUTE($AY56,\",\",\", \")","v":""},null,null,null,null,null,null,null,null,null,null,null,null,null,null,null,null,"Kitchen & Bathroom",null,null,null,{"$f":"SUBSTITUTE(BI56,\",\",\", \")","v":"Kitchen & Bathroom"}]
[null,null,null,null,null,null,null,null,null,null,null,null,null,null,null,null,null,null,null,null,null,null,null,null,null,null,null,null,null,null,null,null,""]
[]
[null,"6J",null,null,null,null,"Keyed",null,null,{"$f":"BM59","v":"Kitchen & Bathroom"},null,null,null,{"$f":"AR59","v":""},null,null,null,null,"Yes",null,null,null,null,null,null,null,null,null,null,null,null,null,null,null,null,null,null,null,null,null,null,null,null,{"$f":"SUBSTITUTE($AY59,\",\",\", \")","v":""},null,null,null,null,null,null,null,null,null,null,null,null,null,null,null,null,"Kitchen & Bathroom",null,null,null,{"$f":"SUBSTITUTE(BI59,\",\",\", \")","v":"Kitchen & Bathroom"}]
[null,null,null,null,null,null,null,null,null,null,null,null,null,null,null,null,null,null,null,null,null,null,null,null,null,null,null,null,null,null,null,null,""]
[]
[null,"6B",null,null,null,null,"Keyed",null,null,{"$f":"BM62","v":"Kitchen & Bathroom"},null,null,null,{"$f":"AR62","v":""},null,null,null,null,"Yes",null,null,null,null,null,null,null,null,null,null,null,null,null,null,null,null,null,null,null,null,null,null,null,null,{"$f":"SUBSTITUTE($AY62,\",\",\", \")","v":""},null,null,null,null,null,null,null,null,null,null,null,null,null,null,null,null,"Kitchen & Bathroom",null,null,null,{"$f":"SUBSTITUTE(BI62,\",\",\", \")","v":"Kitchen & Bathroom"}]
[null,null,null,null,null,null,null,null,null,null,null,null,null,null,null,null,null,null,null,null,null,null,null,null,null,null,null,null,null,null,null,null,""]
[]
[null,"6L",null,null,null,null,"Keyed",null,null,{"$f":"BM65","v":"Kitchen & Bathroom"},null,null,null,{"$f":"AR65","v":""},null,null,null,null,"Yes",null,null,null,null,null,null,null,null,null,null,null,null,null,null,null,null,null,null,null,null,null,null,null,null,{"$f":"SUBSTITUTE($AY65,\",\",\", \")","v":""},null,null,null,null,null,null,null,null,null,null,null,null,null,null,null,null,"Kitchen & Bathroom",null,null,null,{"$f":"SUBSTITUTE(BI65,\",\",\", \")","v":"Kitchen & Bathroom"}]
[null,null,null,null,null,null,null,null,null,null,null,null,null,null,null,null,null,null,null,null,null,null,null,null,null,null,null,null,null,null,null,null,""]
[]
[null,null,null,null,null,null,null,null,null,{"$f":"BM68","v":""},null,null,null,{"$f":"AR68","v":""},null,null,null,null,null,null,null,null,null,null,null,null,null,null,null,null,null,null,null,null,null,null,null,null,null,null,null,null,null,{"$f":"SUBSTITUTE($AY68,\",\",\", \")","v":""},null,null,null,null,null,null,null,null,null,null,null,null,null,null,null,null,null,null,null,null,{"$f":"SUBSTITUTE(BI68,\",\",\", \")","v":""}]
[null,null,null,null,null,null,null,null,null,null,null,null,null,null,null,null,null,null,null,null,null,null,null,null,null,null,null,null,null,null,null,null,""]
[]
[null,null,null,null,null,null,null,null,null,{"$f":"BM71","v":""},null,null,null,{"$f":"AR71","v":""},null,null,null,null,null,null,null,null,null,null,null,null,null,null,null,null,null,null,null,null,null,null,null,null,null,null,null,null,null,{"$f":"SUBSTITUTE($AY71,\",\",\", \")","v":""},null,null,null,null,null,null,null,null,null,null,null,null,null,null,null,null,null,null,null,null,{"$f":"SUBSTITUTE(BI71,\",\",\", \")","v":""}]
[null,null,null,null,null,null,null,null,null,null,null,null,null,null,null,null,null,null,null,null,null,null,null,null,null,null,null,null,null,null,null,null,""]
[]
[null,null,null,null,null,null,null,null,null,{"$f":"BM74","v":""},null,null,null,{"$f":"AR74","v":""},null,null,null,null,null,null,null,null,null,null,null,null,null,null,null,null,null,null,null,null,null,null,null,null,null,null,null,null,null,{"$f":"SUBSTITUTE($AY74,\",\",\", \")","v":""},null,null,null,null,null,null,null,null,null,null,null,null,null,null,null,null,null,null,null,null,{"$f":"SUBSTITUTE(BI74,\",\",\", \")","v":""}]
[null,null,null,null,null,null,null,null,null,null,null,null,null,null,null,null,null,null,null,null,null,null,null,null,null,null,null,null,null,null,null,null,""]
[]
[null,null,null,null,null,null,null,null,null,{"$f":"BM77","v":""},null,null,null,{"$f":"AR77","v":""},null,null,null,null,null,null,null,null,null,null,null,null,null,null,null,null,null,null,null,null,null,null,null,null,null,null,null,null,null,{"$f":"SUBSTITUTE($AY77,\",\",\", \")","v":""},null,null,null,null,null,null,null,null,null,null,null,null,null,null,null,null,null,null,null,null,{"$f":"SUBSTITUTE(BI77,\",\",\", \")","v":""}]
[null,null,null,null,null,null,null,null,null,null,null,null,null,null,null,null,null,null,null,null,null,null,null,null,null,null,null,null,null,null,null,null,""]
[]
[null,null,null,null,null,null,null,null,null,{"$f":"BM80","v":""},null,null,null,{"$f":"AR80","v":""},null,null,null,null,null,null,null,null,null,null,null,null,null,null,null,null,null,null,null,null,null,null,null,null,null,null,null,null,null,{"$f":"SUBSTITUTE($AY80,\",\",\", \")","v":""},null,null,null,null,null,null,null,null,null,null,null,null,null,null,null,null,null,null,null,null,{"$f":"SUBSTITUTE(BI80,\",\",\", \")","v":""}]
[null,null,null,null,null,null,null,null,null,null,null,null,null,null,null,null,null,null,null,null,null,null,null,null,null,null,null,null,null,null,null,null,""]
[]
[null,null,null,null,null,null,null,null,null,{"$f":"BM83","v":""},null,null,null,{"$f":"AR83","v":""},null,null,null,null,null,null,null,null,null,null,null,null,null,null,null,null,null,null,null,null,null,null,null,null,null,null,null,null,null,{"$f":"SUBSTITUTE($AY83,\",\",\", \")","v":""},null,null,null,null,null,null,null,null,null,null,null,null,null,null,null,null,null,null,null,null,{"$f":"SUBSTITUTE(BI83,\",\",\", \")","v":""}]
[null,null,null,null,null,null,null,null,null,null,null,null,null,null,null,null,null,null,null,null,null,null,null,null,null,null,null,null,null,null,null,null,""]
[]
[null,null,null,null,null,null,null,null,null,{"$f":"BM86","v":""},null,null,null,{"$f":"AR86","v":""},null,null,null,null,null,null,null,null,null,null,null,null,null,null,null,null,null,null,null,null,null,null,null,null,null,null,null,null,null,{"$f":"SUBSTITUTE($AY86,\",\",\", \")","v":""},null,null,null,null,null,null,null,null,null,null,null,null,null,null,null,null,null,null,null,null,{"$f":"SUBSTITUTE(BI86,\",\",\", \")","v":""}]
[null,null,null,null,null,null,null,null,null,null,null,null,null,null,null,null,null,null,null,null,null,null,null,null,null,null,null,null,null,null,null,null,""]
[]
[null,null,null,null,null,null,null,null,null,{"$f":"BM89","v":""},null,null,null,{"$f":"AR89","v":""},null,null,null,null,null,null,null,null,null,null,null,null,null,null,null,null,null,null,null,null,null,null,null,null,null,null,null,null,null,{"$f":"SUBSTITUTE($AY89,\",\",\", \")","v":""},null,null,null,null,null,null,null,null,null,null,null,null,null,null,null,null,null,null,null,null,{"$f":"SUBSTITUTE(BI89,\",\",\", \")","v":""}]
[null,null,null,null,null,null,null,null,null,null,null,null,null,null,null,null,null,null,null,null,null,null,null,null,null,null,null,null,null,null,null,null,""]
[]
[null,null,null,null,null,null,null,null,null,{"$f":"BM92","v":""},null,null,null,{"$f":"AR92","v":""},null,null,null,null,null,null,null,null,null,null,null,null,null,null,null,null,null,null,null,null,null,null,null,null,null,null,null,null,null,{"$f":"SUBSTITUTE($AY92,\",\",\", \")","v":""},null,null,null,null,null,null,null,null,null,null,null,null,null,null,null,null,null,null,null,null,{"$f":"SUBSTITUTE(BI92,\",\",\", \")","v":""}]
[null,null,null,null,null,null,null,null,null,null,null,null,null,null,null,null,null,null,null,null,null,null,null,null,null,null,null,null,null,null,null,null,""]
[]
[null,null,null,null,null,null,null,null,null,{"$f":"BM95","v":""},null,null,null,{"$f":"AR95","v":""},null,null,null,null,null,null,null,null,null,null,null,null,null,null,null,null,null,null,null,null,null,null,null,null,null,null,null,null,null,{"$f":"SUBSTITUTE($AY95,\",\",\", \")","v":""},null,null,null,null,null,null,null,null,null,null,null,null,null,null,null,null,null,null,null,null,{"$f":"SUBSTITUTE(BI95,\",\",\", \")","v":""}]
[null,null,null,null,null,null,null,null,null,null,null,null,null,null,null,null,null,null,null,null,null,null,null,null,null,null,null,null,null,null,null,null,""]
[]
[null,null,null,null,null,null,null,null,null,{"$f":"BM98","v":""},null,null,null,{"$f":"AR98","v":""},null,null,null,null,null,null,null,null,null,null,null,null,null,null,null,null,null,null,null,null,null,null,null,null,null,null,null,null,null,{"$f":"SUBSTITUTE($AY98,\",\",\", \")","v":""},null,null,null,null,null,null,null,null,null,null,null,null,null,null,null,null,null,null,null,null,{"$f":"SUBSTITUTE(BI98,\",\",\", \")","v":""}]
[null,null,null,null,null,null,null,null,null,null,null,null,null,null,null,null,null,null,null,null,null,null,null,null,null,null,null,null,null,null,null,null,""]
[]
[null,null,null,null,null,null,null,null,null,{"$f":"BM101","v":""},null,null,null,{"$f":"AR101","v":""},null,null,null,null,null,null,null,null,null,null,null,null,null,null,null,null,null,null,null,null,null,null,null,null,null,null,null,null,null,{"$f":"SUBSTITUTE($AY101,\",\",\", \")","v":""},null,null,null,null,null,null,null,null,null,null,null,null,null,null,null,null,null,null,null,null,{"$f":"SUBSTITUTE(BI101,\",\",\", \")","v":""}]
[null,null,null,null,null,null,null,null,null,null,null,null,null,null,null,null,null,null,null,null,null,null,null,null,null,null,null,null,null,null,null,null,""]
[]
[null,null,null,null,null,null,null,null,null,{"$f":"BM104","v":""},null,null,null,{"$f":"AR104","v":""},null,null,null,null,null,null,null,null,null,null,null,null,null,null,null,null,null,null,null,null,null,null,null,null,null,null,null,null,null,{"$f":"SUBSTITUTE($AY104,\",\",\", \")","v":""},null,null,null,null,null,null,null,null,null,null,null,null,null,null,null,null,null,null,null,null,{"$f":"SUBSTITUTE(BI104,\",\",\", \")","v":""}]
[null,null,null,null,null,null,null,null,null,null,null,null,null,null,null,null,null,null,null,null,null,null,null,null,null,null,null,null,null,null,null,null,""]
[]
[null,null,null,null,null,null,null,null,null,{"$f":"BM107","v":""},null,null,null,{"$f":"AR107","v":""},null,null,null,null,null,null,null,null,null,null,null,null,null,null,null,null,null,null,null,null,null,null,null,null,null,null,null,null,null,{"$f":"SUBSTITUTE($AY107,\",\",\", \")","v":""},null,null,null,null,null,null,null,null,null,null,null,null,null,null,null,null,null,null,null,null,{"$f":"SUBSTITUTE(BI107,\",\",\", \")","v":""}]
[null,null,null,null,null,null,null,null,null,null,null,null,null,null,null,null,null,null,null,null,null,null,null,null,null,null,null,null,null,null,null,null,""]
[]
[null,null,null,null,null,null,null,null,null,{"$f":"BM110","v":""},null,null,null,{"$f":"AR110","v":""},null,null,null,null,null,null,null,null,null,null,null,null,null,null,null,null,null,null,null,null,null,null,null,null,null,null,null,null,null,{"$f":"SUBSTITUTE($AY110,\",\",\", \")","v":""},null,null,null,null,null,null,null,null,null,null,null,null,null,null,null,null,null,null,null,null,{"$f":"SUBSTITUTE(BI110,\",\",\", \")","v":""}]
[null,null,null,null,null,null,null,null,null,null,null,null,null,null,null,null,null,null,null,null,null,null,null,null,null,null,null,null,null,null,null,null,""]
[]
[null,null,null,null,null,null,null,null,null,{"$f":"BM113","v":""},null,null,null,{"$f":"AR113","v":""},null,null,null,null,null,null,null,null,null,null,null,null,null,null,null,null,null,null,null,null,null,null,null,null,null,null,null,null,null,{"$f":"SUBSTITUTE($AY113,\",\",\", \")","v":""},null,null,null,null,null,null,null,null,null,null,null,null,null,null,null,null,null,null,null,null,{"$f":"SUBSTITUTE(BI113,\",\",\", \")","v":""}]
[null,null,null,null,null,null,null,null,null,null,null,null,null,null,null,null,null,null,null,null,null,null,null,null,null,null,null,null,null,null,null,null,""]
[]
[null,null,null,null,null,null,null,null,null,{"$f":"BM116","v":""},null,null,null,{"$f":"AR116","v":""},null,null,null,null,null,null,null,null,null,null,null,null,null,null,null,null,null,null,null,null,null,null,null,null,null,null,null,null,null,{"$f":"SUBSTITUTE($AY116,\",\",\", \")","v":""},null,null,null,null,null,null,null,null,null,null,null,null,null,null,null,null,null,null,null,null,{"$f":"SUBSTITUTE(BI116,\",\",\", \")","v":""}]
[null,null,null,null,null,null,null,null,null,null,null,null,null,null,null,null,null,null,null,null,null,null,null,null,null,null,null,null,null,null,null,null,""]
[]
[null,null,null,null,null,null,null,null,null,{"$f":"BM119","v":""},null,null,null,{"$f":"AR119","v":""},null,null,null,null,null,null,null,null,null,null,null,null,null,null,null,null,null,null,null,null,null,null,null,null,null,null,null,null,null,{"$f":"SUBSTITUTE($AY119,\",\",\", \")","v":""},null,null,null,null,null,null,null,null,null,null,null,null,null,null,null,null,null,null,null,null,{"$f":"SUBSTITUTE(BI119,\",\",\", \")","v":""}]
[null,null,null,null,null,null,null,null,null,null,null,null,null,null,null,null,null,null,null,null,null,null,null,null,null,null,null,null,null,null,null,null,""]
[]
[null,null,null,null,null,null,null,null,null,{"$f":"BM122","v":""},null,null,null,{"$f":"AR122","v":""},null,null,null,null,null,null,null,null,null,null,null,null,null,null,null,null,null,null,null,null,null,null,null,null,null,null,null,null,null,{"$f":"SUBSTITUTE($AY122,\",\",\", \")","v":""},null,null,null,null,null,null,null,null,null,null,null,null,null,null,null,null,null,null,null,null,{"$f":"SUBSTITUTE(BI122,\",\",\", \")","v":""}]
[null,null,null,null,null,null,null,null,null,null,null,null,null,null,null,null,null,null,null,null,null,null,null,null,null,null,null,null,null,null,null,null,""]
[]
[null,null,null,null,null,null,null,null,null,{"$f":"BM125","v":""},null,null,null,{"$f":"AR125","v":""},null,null,null,null,null,null,null,null,null,null,null,null,null,null,null,null,null,null,null,null,null,null,null,null,null,null,null,null,null,{"$f":"SUBSTITUTE($AY125,\",\",\", \")","v":""},null,null,null,null,null,null,null,null,null,null,null,null,null,null,null,null,null,null,null,null,{"$f":"SUBSTITUTE(BI125,\",\",\", \")","v":""}]
[null,null,null,null,null,null,null,null,null,null,null,null,null,null,null,null,null,null,null,null,null,null,null,null,null,null,null,null,null,null,null,null,""]
[]
[null,null,null,null,null,null,null,null,null,{"$f":"BM128","v":""},null,null,null,{"$f":"AR128","v":""},null,null,null,null,null,null,null,null,null,null,null,null,null,null,null,null,null,null,null,null,null,null,null,null,null,null,null,null,null,{"$f":"SUBSTITUTE($AY128,\",\",\", \")","v":""},null,null,null,null,null,null,null,null,null,null,null,null,null,null,null,null,null,null,null,null,{"$f":"SUBSTITUTE(BI128,\",\",\", \")","v":""}]
[null,null,null,null,null,null,null,null,null,null,null,null,null,null,null,null,null,null,null,null,null,null,null,null,null,null,null,null,null,null,null,null,""]
[]
[null,null,null,null,null,null,null,null,null,{"$f":"BM131","v":""},null,null,null,{"$f":"AR131","v":""},null,null,null,null,null,null,null,null,null,null,null,null,null,null,null,null,null,null,null,null,null,null,null,null,null,null,null,null,null,{"$f":"SUBSTITUTE($AY131,\",\",\", \")","v":""},null,null,null,null,null,null,null,null,null,null,null,null,null,null,null,null,null,null,null,null,{"$f":"SUBSTITUTE(BI131,\",\",\", \")","v":""}]
[null,null,null,null,null,null,null,null,null,null,null,null,null,null,null,null,null,null,null,null,null,null,null,null,null,null,null,null,null,null,null,null,""]
[]
[null,null,null,null,null,null,null,null,null,{"$f":"BM134","v":""},null,null,null,{"$f":"AR134","v":""},null,null,null,null,null,null,null,null,null,null,null,null,null,null,null,null,null,null,null,null,null,null,null,null,null,null,null,null,null,{"$f":"SUBSTITUTE($AY134,\",\",\", \")","v":""},null,null,null,null,null,null,null,null,null,null,null,null,null,null,null,null,null,null,null,null,{"$f":"SUBSTITUTE(BI134,\",\",\", \")","v":""}]
[null,null,null,null,null,null,null,null,null,null,null,null,null,null,null,null,null,null,null,null,null,null,null,null,null,null,null,null,null,null,null,null,""]
[]
[null,null,null,null,null,null,null,null,null,{"$f":"BM137","v":""},null,null,null,{"$f":"AR137","v":""},null,null,null,null,null,null,null,null,null,null,null,null,null,null,null,null,null,null,null,null,null,null,null,null,null,null,null,null,null,{"$f":"SUBSTITUTE($AY137,\",\",\", \")","v":""},null,null,null,null,null,null,null,null,null,null,null,null,null,null,null,null,null,null,null,null,{"$f":"SUBSTITUTE(BI137,\",\",\", \")","v":""}]
[null,null,null,null,null,null,null,null,null,null,null,null,null,null,null,null,null,null,null,null,null,null,null,null,null,null,null,null,null,null,null,null,""]
[]
[null,null,null,null,null,null,null,null,null,{"$f":"BM140","v":""},null,null,null,{"$f":"AR140","v":""},null,null,null,null,null,null,null,null,null,null,null,null,null,null,null,null,null,null,null,null,null,null,null,null,null,null,null,null,null,{"$f":"SUBSTITUTE($AY140,\",\",\", \")","v":""},null,null,null,null,null,null,null,null,null,null,null,null,null,null,null,null,null,null,null,null,{"$f":"SUBSTITUTE(BI140,\",\",\", \")","v":""}]
[null,null,null,null,null,null,null,null,null,null,null,null,null,null,null,null,null,null,null,null,null,null,null,null,null,null,null,null,null,null,null,null,""]
[]
[null,null,null,null,null,null,null,null,null,{"$f":"BM143","v":""},null,null,null,{"$f":"AR143","v":""},null,null,null,null,null,null,null,null,null,null,null,null,null,null,null,null,null,null,null,null,null,null,null,null,null,null,null,null,null,{"$f":"SUBSTITUTE($AY143,\",\",\", \")","v":""},null,null,null,null,null,null,null,null,null,null,null,null,null,null,null,null,null,null,null,null,{"$f":"SUBSTITUTE(BI143,\",\",\", \")","v":""}]
[null,null,null,null,null,null,null,null,null,null,null,null,null,null,null,null,null,null,null,null,null,null,null,null,null,null,null,null,null,null,null,null,""]
[]
[null,null,null,null,null,null,null,null,null,{"$f":"BM146","v":""},null,null,null,{"$f":"AR146","v":""},null,null,null,null,null,null,null,null,null,null,null,null,null,null,null,null,null,null,null,null,null,null,null,null,null,null,null,null,null,{"$f":"SUBSTITUTE($AY146,\",\",\", \")","v":""},null,null,null,null,null,null,null,null,null,null,null,null,null,null,null,null,null,null,null,null,{"$f":"SUBSTITUTE(BI146,\",\",\", \")","v":""}]
[null,null,null,null,null,null,null,null,null,null,null,null,null,null,null,null,null,null,null,null,null,null,null,null,null,null,null,null,null,null,null,null,""]
[]
[null,null,null,null,null,null,null,null,null,{"$f":"BM149","v":""},null,null,null,{"$f":"AR149","v":""},null,null,null,null,null,null,null,null,null,null,null,null,null,null,null,null,null,null,null,null,null,null,null,null,null,null,null,null,null,{"$f":"SUBSTITUTE($AY149,\",\",\", \")","v":""},null,null,null,null,null,null,null,null,null,null,null,null,null,null,null,null,null,null,null,null,{"$f":"SUBSTITUTE(BI149,\",\",\", \")","v":""}]
[null,null,null,null,null,null,null,null,null,null,null,null,null,null,null,null,null,null,null,null,null,null,null,null,null,null,null,null,null,null,null,null,""]
[]
[null,null,null,null,null,null,null,null,null,{"$f":"BM152","v":""},null,null,null,{"$f":"AR152","v":""},null,null,null,null,null,null,null,null,null,null,null,null,null,null,null,null,null,null,null,null,null,null,null,null,null,null,null,null,null,{"$f":"SUBSTITUTE($AY152,\",\",\", \")","v":""},null,null,null,null,null,null,null,null,null,null,null,null,null,null,null,null,null,null,null,null,{"$f":"SUBSTITUTE(BI152,\",\",\", \")","v":""}]
[null,null,null,null,null,null,null,null,null,null,null,null,null,null,null,null,null,null,null,null,null,null,null,null,null,null,null,null,null,null,null,null,""]
[]
[null,null,null,null,null,null,null,null,null,{"$f":"BM155","v":""},null,null,null,{"$f":"AR155","v":""},null,null,null,null,null,null,null,null,null,null,null,null,null,null,null,null,null,null,null,null,null,null,null,null,null,null,null,null,null,{"$f":"SUBSTITUTE($AY155,\",\",\", \")","v":""},null,null,null,null,null,null,null,null,null,null,null,null,null,null,null,null,null,null,null,null,{"$f":"SUBSTITUTE(BI155,\",\",\", \")","v":""}]
[null,null,null,null,null,null,null,null,null,null,null,null,null,null,null,null,null,null,null,null,null,null,null,null,null,null,null,null,null,null,null,null,""]
[]
[null,null,null,null,null,null,null,null,null,{"$f":"BM158","v":""},null,null,null,{"$f":"AR158","v":""},null,null,null,null,null,null,null,null,null,null,null,null,null,null,null,null,null,null,null,null,null,null,null,null,null,null,null,null,null,{"$f":"SUBSTITUTE($AY158,\",\",\", \")","v":""},null,null,null,null,null,null,null,null,null,null,null,null,null,null,null,null,null,null,null,null,{"$f":"SUBSTITUTE(BI158,\",\",\", \")","v":""}]
[null,null,null,null,null,null,null,null,null,null,null,null,null,null,null,null,null,null,null,null,null,null,null,null,null,null,null,null,null,null,null,null,""]
[]
[null,null,null,null,null,null,null,null,null,{"$f":"BM161","v":""},null,null,null,{"$f":"AR161","v":""},null,null,null,null,null,null,null,null,null,null,null,null,null,null,null,null,null,null,null,null,null,null,null,null,null,null,null,null,null,{"$f":"SUBSTITUTE($AY161,\",\",\", \")","v":""},null,null,null,null,null,null,null,null,null,null,null,null,null,null,null,null,null,null,null,null,{"$f":"SUBSTITUTE(BI161,\",\",\", \")","v":""}]
[null,null,null,null,null,null,null,null,null,null,null,null,null,null,null,null,null,null,null,null,null,null,null,null,null,null,null,null,null,null,null,null,""]
[]
[null,null,null,null,null,null,null,null,null,{"$f":"BM164","v":""},null,null,null,{"$f":"AR164","v":""},null,null,null,null,null,null,null,null,null,null,null,null,null,null,null,null,null,null,null,null,null,null,null,null,null,null,null,null,null,{"$f":"SUBSTITUTE($AY164,\",\",\", \")","v":""},null,null,null,null,null,null,null,null,null,null,null,null,null,null,null,null,null,null,null,null,{"$f":"SUBSTITUTE(BI164,\",\",\", \")","v":""}]
[null,null,null,null,null,null,null,null,null,null,null,null,null,null,null,null,null,null,null,null,null,null,null,null,null,null,null,null,null,null,null,null,""]
[]
[null,null,null,null,null,null,null,null,null,{"$f":"BM167","v":""},null,null,null,{"$f":"AR167","v":""},null,null,null,null,null,null,null,null,null,null,null,null,null,null,null,null,null,null,null,null,null,null,null,null,null,null,null,null,null,{"$f":"SUBSTITUTE($AY167,\",\",\", \")","v":""},null,null,null,null,null,null,null,null,null,null,null,null,null,null,null,null,null,null,null,null,{"$f":"SUBSTITUTE(BI167,\",\",\", \")","v":""}]
[null,null,null,null,null,null,null,null,null,null,null,null,null,null,null,null,null,null,null,null,null,null,null,null,null,null,null,null,null,null,null,null,""]
[]
[null,null,null,null,null,null,null,null,null,{"$f":"BM170","v":""},null,null,null,{"$f":"AR170","v":""},null,null,null,null,null,null,null,null,null,null,null,null,null,null,null,null,null,null,null,null,null,null,null,null,null,null,null,null,null,{"$f":"SUBSTITUTE($AY170,\",\",\", \")","v":""},null,null,null,null,null,null,null,null,null,null,null,null,null,null,null,null,null,null,null,null,{"$f":"SUBSTITUTE(BI170,\",\",\", \")","v":""}]
[null,null,null,null,null,null,null,null,null,null,null,null,null,null,null,null,null,null,null,null,null,null,null,null,null,null,null,null,null,null,null,null,""]
[]
[null,null,null,null,null,null,null,null,null,{"$f":"BM173","v":""},null,null,null,{"$f":"AR173","v":""},null,null,null,null,null,null,null,null,null,null,null,null,null,null,null,null,null,null,null,null,null,null,null,null,null,null,null,null,null,{"$f":"SUBSTITUTE($AY173,\",\",\", \")","v":""},null,null,null,null,null,null,null,null,null,null,null,null,null,null,null,null,null,null,null,null,{"$f":"SUBSTITUTE(BI173,\",\",\", \")","v":""}]
[null,null,null,null,null,null,null,null,null,null,null,null,null,null,null,null,null,null,null,null,null,null,null,null,null,null,null,null,null,null,null,null,""]
[]
[null,null,null,null,null,null,null,null,null,{"$f":"BM176","v":""},null,null,null,{"$f":"AR176","v":""},null,null,null,null,null,null,null,null,null,null,null,null,null,null,null,null,null,null,null,null,null,null,null,null,null,null,null,null,null,{"$f":"SUBSTITUTE($AY176,\",\",\", \")","v":""},null,null,null,null,null,null,null,null,null,null,null,null,null,null,null,null,null,null,null,null,{"$f":"SUBSTITUTE(BI176,\",\",\", \")","v":""}]
[null,null,null,null,null,null,null,null,null,null,null,null,null,null,null,null,null,null,null,null,null,null,null,null,null,null,null,null,null,null,null,null,""]
[]
[null,null,null,null,null,null,null,null,null,{"$f":"BM179","v":""},null,null,null,{"$f":"AR179","v":""},null,null,null,null,null,null,null,null,null,null,null,null,null,null,null,null,null,null,null,null,null,null,null,null,null,null,null,null,null,{"$f":"SUBSTITUTE($AY179,\",\",\", \")","v":""},null,null,null,null,null,null,null,null,null,null,null,null,null,null,null,null,null,null,null,null,{"$f":"SUBSTITUTE(BI179,\",\",\", \")","v":""}]
[null,null,null,null,null,null,null,null,null,null,null,null,null,null,null,null,null,null,null,null,null,null,null,null,null,null,null,null,null,null,null,null,""]
[]
[null,null,null,null,null,null,null,null,null,{"$f":"BM182","v":""},null,null,null,{"$f":"AR182","v":""},null,null,null,null,null,null,null,null,null,null,null,null,null,null,null,null,null,null,null,null,null,null,null,null,null,null,null,null,null,{"$f":"SUBSTITUTE($AY182,\",\",\", \")","v":""},null,null,null,null,null,null,null,null,null,null,null,null,null,null,null,null,null,null,null,null,{"$f":"SUBSTITUTE(BI182,\",\",\", \")","v":""}]
[null,null,null,null,null,null,null,null,null,null,null,null,null,null,null,null,null,null,null,null,null,null,null,null,null,null,null,null,null,null,null,null,""]
[]
[null,null,null,null,null,null,null,null,null,{"$f":"BM185","v":""},null,null,null,{"$f":"AR185","v":""},null,null,null,null,null,null,null,null,null,null,null,null,null,null,null,null,null,null,null,null,null,null,null,null,null,null,null,null,null,{"$f":"SUBSTITUTE($AY185,\",\",\", \")","v":""},null,null,null,null,null,null,null,null,null,null,null,null,null,null,null,null,null,null,null,null,{"$f":"SUBSTITUTE(BI185,\",\",\", \")","v":""}]
[null,null,null,null,null,null,null,null,null,null,null,null,null,null,null,null,null,null,null,null,null,null,null,null,null,null,null,null,null,null,null,null,""]
[]
[null,null,null,null,null,null,null,null,null,{"$f":"BM188","v":""},null,null,null,{"$f":"AR188","v":""},null,null,null,null,null,null,null,null,null,null,null,null,null,null,null,null,null,null,null,null,null,null,null,null,null,null,null,null,null,{"$f":"SUBSTITUTE($AY188,\",\",\", \")","v":""},null,null,null,null,null,null,null,null,null,null,null,null,null,null,null,null,null,null,null,null,{"$f":"SUBSTITUTE(BI188,\",\",\", \")","v":""}]
[null,null,null,null,null,null,null,null,null,null,null,null,null,null,null,null,null,null,null,null,null,null,null,null,null,null,null,null,null,null,null,null,""]
[]
[null,null,null,null,null,null,null,null,null,{"$f":"BM191","v":""},null,null,null,{"$f":"AR191","v":""},null,null,null,null,null,null,null,null,null,null,null,null,null,null,null,null,null,null,null,null,null,null,null,null,null,null,null,null,null,{"$f":"SUBSTITUTE($AY191,\",\",\", \")","v":""},null,null,null,null,null,null,null,null,null,null,null,null,null,null,null,null,null,null,null,null,{"$f":"SUBSTITUTE(BI191,\",\",\", \")","v":""}]
[null,null,null,null,null,null,null,null,null,null,null,null,null,null,null,null,null,null,null,null,null,null,null,null,null,null,null,null,null,null,null,null,""]
[]
[null,null,null,null,null,null,null,null,null,{"$f":"BM194","v":""},null,null,null,{"$f":"AR194","v":""},null,null,null,null,null,null,null,null,null,null,null,null,null,null,null,null,null,null,null,null,null,null,null,null,null,null,null,null,null,{"$f":"SUBSTITUTE($AY194,\",\",\", \")","v":""},null,null,null,null,null,null,null,null,null,null,null,null,null,null,null,null,null,null,null,null,{"$f":"SUBSTITUTE(BI194,\",\",\", \")","v":""}]
[null,null,null,null,null,null,null,null,null,null,null,null,null,null,null,null,null,null,null,null,null,null,null,null,null,null,null,null,null,null,null,null,""]
[]
[null,null,null,null,null,null,null,null,null,{"$f":"BM197","v":""},null,null,null,{"$f":"AR197","v":""},null,null,null,null,null,null,null,null,null,null,null,null,null,null,null,null,null,null,null,null,null,null,null,null,null,null,null,null,null,{"$f":"SUBSTITUTE($AY197,\",\",\", \")","v":""},null,null,null,null,null,null,null,null,null,null,null,null,null,null,null,null,null,null,null,null,{"$f":"SUBSTITUTE(BI197,\",\",\", \")","v":""}]
[null,null,null,null,null,null,null,null,null,null,null,null,null,null,null,null,null,null,null,null,null,null,null,null,null,null,null,null,null,null,null,null,""]
[]
[null,null,null,null,null,null,null,null,null,{"$f":"BM200","v":""},null,null,null,{"$f":"AR200","v":""},null,null,null,null,null,null,null,null,null,null,null,null,null,null,null,null,null,null,null,null,null,null,null,null,null,null,null,null,null,{"$f":"SUBSTITUTE($AY200,\",\",\", \")","v":""},null,null,null,null,null,null,null,null,null,null,null,null,null,null,null,null,null,null,null,null,{"$f":"SUBSTITUTE(BI200,\",\",\", \")","v":""}]
[null,null,null,null,null,null,null,null,null,null,null,null,null,null,null,null,null,null,null,null,null,null,null,null,null,null,null,null,null,null,null,null,""]
[]
[null,null,null,null,null,null,null,null,null,{"$f":"BM203","v":""},null,null,null,{"$f":"AR203","v":""},null,null,null,null,null,null,null,null,null,null,null,null,null,null,null,null,null,null,null,null,null,null,null,null,null,null,null,null,null,{"$f":"SUBSTITUTE($AY203,\",\",\", \")","v":""},null,null,null,null,null,null,null,null,null,null,null,null,null,null,null,null,null,null,null,null,{"$f":"SUBSTITUTE(BI203,\",\",\", \")","v":""}]
[null,null,null,null,null,null,null,null,null,null,null,null,null,null,null,null,null,null,null,null,null,null,null,null,null,null,null,null,null,null,null,null,""]
[]
[null,null,null,null,null,null,null,null,null,{"$f":"BM206","v":""},null,null,null,{"$f":"AR206","v":""},null,null,null,null,null,null,null,null,null,null,null,null,null,null,null,null,null,null,null,null,null,null,null,null,null,null,null,null,null,{"$f":"SUBSTITUTE($AY206,\",\",\", \")","v":""},null,null,null,null,null,null,null,null,null,null,null,null,null,null,null,null,null,null,null,null,{"$f":"SUBSTITUTE(BI206,\",\",\", \")","v":""}]
[null,null,null,null,null,null,null,null,null,null,null,null,null,null,null,null,null,null,null,null,null,null,null,null,null,null,null,null,null,null,null,null,""]
[]
[null,null,null,null,null,null,null,null,null,{"$f":"BM209","v":""},null,null,null,{"$f":"AR209","v":""},null,null,null,null,null,null,null,null,null,null,null,null,null,null,null,null,null,null,null,null,null,null,null,null,null,null,null,null,null,{"$f":"SUBSTITUTE($AY209,\",\",\", \")","v":""},null,null,null,null,null,null,null,null,null,null,null,null,null,null,null,null,null,null,null,null,{"$f":"SUBSTITUTE(BI209,\",\",\", \")","v":""}]
[null,null,null,null,null,null,null,null,null,null,null,null,null,null,null,null,null,null,null,null,null,null,null,null,null,null,null,null,null,null,null,null,""]
[]
[null,null,null,null,null,null,null,null,null,{"$f":"BM212","v":""},null,null,null,{"$f":"AR212","v":""},null,null,null,null,null,null,null,null,null,null,null,null,null,null,null,null,null,null,null,null,null,null,null,null,null,null,null,null,null,{"$f":"SUBSTITUTE($AY212,\",\",\", \")","v":""},null,null,null,null,null,null,null,null,null,null,null,null,null,null,null,null,null,null,null,null,{"$f":"SUBSTITUTE(BI212,\",\",\", \")","v":""}]
[null,null,null,null,null,null,null,null,null,null,null,null,null,null,null,null,null,null,null,null,null,null,null,null,null,null,null,null,null,null,null,null,""]
[]
[null,null,null,null,null,null,null,null,null,{"$f":"BM215","v":""},null,null,null,{"$f":"AR215","v":""},null,null,null,null,null,null,null,null,null,null,null,null,null,null,null,null,null,null,null,null,null,null,null,null,null,null,null,null,null,{"$f":"SUBSTITUTE($AY215,\",\",\", \")","v":""},null,null,null,null,null,null,null,null,null,null,null,null,null,null,null,null,null,null,null,null,{"$f":"SUBSTITUTE(BI215,\",\",\", \")","v":""}]
[null,null,null,null,null,null,null,null,null,null,null,null,null,null,null,null,null,null,null,null,null,null,null,null,null,null,null,null,null,null,null,null,""]
[]
[null,null,null,null,null,null,null,null,null,{"$f":"BM218","v":""},null,null,null,{"$f":"AR218","v":""},null,null,null,null,null,null,null,null,null,null,null,null,null,null,null,null,null,null,null,null,null,null,null,null,null,null,null,null,null,{"$f":"SUBSTITUTE($AY218,\",\",\", \")","v":""},null,null,null,null,null,null,null,null,null,null,null,null,null,null,null,null,null,null,null,null,{"$f":"SUBSTITUTE(BI218,\",\",\", \")","v":""}]
[null,null,null,null,null,null,null,null,null,null,null,null,null,null,null,null,null,null,null,null,null,null,null,null,null,null,null,null,null,null,null,null,""]
[]
[null,null,null,null,null,null,null,null,null,{"$f":"BM221","v":""},null,null,null,{"$f":"AR221","v":""},null,null,null,null,null,null,null,null,null,null,null,null,null,null,null,null,null,null,null,null,null,null,null,null,null,null,null,null,null,{"$f":"SUBSTITUTE($AY221,\",\",\", \")","v":""},null,null,null,null,null,null,null,null,null,null,null,null,null,null,null,null,null,null,null,null,{"$f":"SUBSTITUTE(BI221,\",\",\", \")","v":""}]
[null,null,null,null,null,null,null,null,null,null,null,null,null,null,null,null,null,null,null,null,null,null,null,null,null,null,null,null,null,null,null,null,""]
[]
[null,null,null,null,null,null,null,null,null,{"$f":"BM224","v":""},null,null,null,{"$f":"AR224","v":""},null,null,null,null,null,null,null,null,null,null,null,null,null,null,null,null,null,null,null,null,null,null,null,null,null,null,null,null,null,{"$f":"SUBSTITUTE($AY224,\",\",\", \")","v":""},null,null,null,null,null,null,null,null,null,null,null,null,null,null,null,null,null,null,null,null,{"$f":"SUBSTITUTE(BI224,\",\",\", \")","v":""}]
[null,null,null,null,null,null,null,null,null,null,null,null,null,null,null,null,null,null,null,null,null,null,null,null,null,null,null,null,null,null,null,null,""]
[]
[null,null,null,null,null,null,null,null,null,{"$f":"BM227","v":""},null,null,null,{"$f":"AR227","v":""},null,null,null,null,null,null,null,null,null,null,null,null,null,null,null,null,null,null,null,null,null,null,null,null,null,null,null,null,null,{"$f":"SUBSTITUTE($AY227,\",\",\", \")","v":""},null,null,null,null,null,null,null,null,null,null,null,null,null,null,null,null,null,null,null,null,{"$f":"SUBSTITUTE(BI227,\",\",\", \")","v":""}]
[null,null,null,null,null,null,null,null,null,null,null,null,null,null,null,null,null,null,null,null,null,null,null,null,null,null,null,null,null,null,null,null,""]
[]
[null,null,null,null,null,null,null,null,null,{"$f":"BM230","v":""},null,null,null,{"$f":"AR230","v":""},null,null,null,null,null,null,null,null,null,null,null,null,null,null,null,null,null,null,null,null,null,null,null,null,null,null,null,null,null,{"$f":"SUBSTITUTE($AY230,\",\",\", \")","v":""},null,null,null,null,null,null,null,null,null,null,null,null,null,null,null,null,null,null,null,null,{"$f":"SUBSTITUTE(BI230,\",\",\", \")","v":""}]
[null,null,null,null,null,null,null,null,null,null,null,null,null,null,null,null,null,null,null,null,null,null,null,null,null,null,null,null,null,null,null,null,""]
[]
[null,null,null,null,null,null,null,null,null,{"$f":"BM233","v":""},null,null,null,{"$f":"AR233","v":""},null,null,null,null,null,null,null,null,null,null,null,null,null,null,null,null,null,null,null,null,null,null,null,null,null,null,null,null,null,{"$f":"SUBSTITUTE($AY233,\",\",\", \")","v":""},null,null,null,null,null,null,null,null,null,null,null,null,null,null,null,null,null,null,null,null,{"$f":"SUBSTITUTE(BI233,\",\",\", \")","v":""}]
[null,null,null,null,null,null,null,null,null,null,null,null,null,null,null,null,null,null,null,null,null,null,null,null,null,null,null,null,null,null,null,null,""]
[]
[null,null,null,null,null,null,null,null,null,{"$f":"BM236","v":""},null,null,null,{"$f":"AR236","v":""},null,null,null,null,null,null,null,null,null,null,null,null,null,null,null,null,null,null,null,null,null,null,null,null,null,null,null,null,null,{"$f":"SUBSTITUTE($AY236,\",\",\", \")","v":""},null,null,null,null,null,null,null,null,null,null,null,null,null,null,null,null,null,null,null,null,{"$f":"SUBSTITUTE(BI236,\",\",\", \")","v":""}]
[null,null,null,null,null,null,null,null,null,null,null,null,null,null,null,null,null,null,null,null,null,null,null,null,null,null,null,null,null,null,null,null,""]
[]
[null,null,null,null,null,null,null,null,null,{"$f":"BM239","v":""},null,null,null,{"$f":"AR239","v":""},null,null,null,null,null,null,null,null,null,null,null,null,null,null,null,null,null,null,null,null,null,null,null,null,null,null,null,null,null,{"$f":"SUBSTITUTE($AY239,\",\",\", \")","v":""},null,null,null,null,null,null,null,null,null,null,null,null,null,null,null,null,null,null,null,null,{"$f":"SUBSTITUTE(BI239,\",\",\", \")","v":""}]
[null,null,null,null,null,null,null,null,null,null,null,null,null,null,null,null,null,null,null,null,null,null,null,null,null,null,null,null,null,null,null,null,""]
[]
[null,null,null,null,null,null,null,null,null,{"$f":"BM242","v":""},null,null,null,{"$f":"AR242","v":""},null,null,null,null,null,null,null,null,null,null,null,null,null,null,null,null,null,null,null,null,null,null,null,null,null,null,null,null,null,{"$f":"SUBSTITUTE($AY242,\",\",\", \")","v":""},null,null,null,null,null,null,null,null,null,null,null,null,null,null,null,null,null,null,null,null,{"$f":"SUBSTITUTE(BI242,\",\",\", \")","v":""}]
[null,null,null,null,null,null,null,null,null,null,null,null,null,null,null,null,null,null,null,null,null,null,null,null,null,null,null,null,null,null,null,null,""]
[]
[null,null,null,null,null,null,null,null,null,{"$f":"BM245","v":""},null,null,null,{"$f":"AR245","v":""},null,null,null,null,null,null,null,null,null,null,null,null,null,null,null,null,null,null,null,null,null,null,null,null,null,null,null,null,null,{"$f":"SUBSTITUTE($AY245,\",\",\", \")","v":""},null,null,null,null,null,null,null,null,null,null,null,null,null,null,null,null,null,null,null,null,{"$f":"SUBSTITUTE(BI245,\",\",\", \")","v":""}]
[null,null,null,null,null,null,null,null,null,null,null,null,null,null,null,null,null,null,null,null,null,null,null,null,null,null,null,null,null,null,null,null,""]
[]
[null,null,null,null,null,null,null,null,null,{"$f":"BM248","v":""},null,null,null,{"$f":"AR248","v":""},null,null,null,null,null,null,null,null,null,null,null,null,null,null,null,null,null,null,null,null,null,null,null,null,null,null,null,null,null,{"$f":"SUBSTITUTE($AY248,\",\",\", \")","v":""},null,null,null,null,null,null,null,null,null,"{Roach_Infestation5(1)}",null,null,null,null,null,null,null,null,null,null,{"$f":"SUBSTITUTE(BI248,\",\",\", \")","v":""}]
[null,null,null,null,null,null,null,null,null,null,null,null,null,null,null,null,null,null,null,null,null,null,null,null,null,null,null,null,null,null,null,null,""]
[]
[null,null,null,null,null,null,null,null,null,{"$f":"BM251","v":""},null,null,null,{"$f":"AR251","v":""},null,null,null,null,null,null,null,null,null,null,null,null,null,null,null,null,null,null,null,null,null,null,null,null,null,null,null,null,null,{"$f":"SUBSTITUTE($AY251,\",\",\", \")","v":""},null,null,null,null,null,null,null,null,null,"{Roach_Infestation5(2)}",null,null,null,null,null,null,null,null,null,null,{"$f":"SUBSTITUTE(BI251,\",\",\", \")","v":""}]
[null,null,null,null,null,null,null,null,null,null,null,null,null,null,null,null,null,null,null,null,null,null,null,null,null,null,null,null,null,null,null,null,""]
[]
[null,null,null,null,null,null,null,null,null,{"$f":"BM254","v":""},null,null,null,{"$f":"AR254","v":""},null,null,null,null,null,null,null,null,null,null,null,null,null,null,null,null,null,null,null,null,null,null,null,null,null,null,null,null,null,{"$f":"SUBSTITUTE($AY254,\",\",\", \")","v":""},null,null,null,null,null,null,null,null,null,"{Roach_Infestation5(3)}",null,null,null,null,null,null,null,null,null,null,{"$f":"SUBSTITUTE(BI254,\",\",\", \")","v":""}]
[null,null,null,null,null,null,null,null,null,null,null,null,null,null,null,null,null,null,null,null,null,null,null,null,null,null,null,null,null,null,null,null,""]
[]
[null,null,null,null,null,null,null,null,null,{"$f":"BM257","v":""},null,null,null,{"$f":"AR257","v":""},null,null,null,null,null,null,null,null,null,null,null,null,null,null,null,null,null,null,null,null,null,null,null,null,null,null,null,null,null,{"$f":"SUBSTITUTE($AY257,\",\",\", \")","v":""},null,null,null,null,null,null,null,null,null,"{Roach_Infestation5(4)}",null,null,null,null,null,null,null,null,null,null,{"$f":"SUBSTITUTE(BI257,\",\",\", \")","v":""}]
[null,null,null,null,null,null,null,null,null,null,null,null,null,null,null,null,null,null,null,null,null,null,null,null,null,null,null,null,null,null,null,null,""]
[]
[null,null,null,null,null,null,null,null,null,{"$f":"BM260","v":""},null,null,null,{"$f":"AR260","v":""},null,null,null,null,null,null,null,null,null,null,null,null,null,null,null,null,null,null,null,null,null,null,null,null,null,null,null,null,null,{"$f":"SUBSTITUTE($AY260,\",\",\", \")","v":""},null,null,null,null,null,null,null,null,null,"{Roach_Infestation5(5)}",null,null,null,null,null,null,null,null,null,null,{"$f":"SUBSTITUTE(BI260,\",\",\", \")","v":""}]
[null,null,null,null,null,null,null,null,null,null,null,null,null,null,null,null,null,null,null,null,null,null,null,null,null,null,null,null,null,null,null,null,""]
[]
[null,null,null,null,null,null,null,null,null,{"$f":"BM263","v":""},null,null,null,{"$f":"AR263","v":""},null,null,null,null,null,null,null,null,null,null,null,null,null,null,null,null,null,null,null,null,null,null,null,null,null,null,null,null,null,{"$f":"SUBSTITUTE($AY263,\",\",\", \")","v":""},null,null,null,null,null,null,null,null,null,"{Roach_Infestation5(6)}",null,null,null,null,null,null,null,null,null,null,{"$f":"SUBSTITUTE(BI263,\",\",\", \")","v":""}]
[null,null,null,null,null,null,null,null,null,null,null,null,null,null,null,null,null,null,null,null,null,null,null,null,null,null,null,null,null,null,null,null,""]
[]
[null,null,null,null,null,null,null,null,null,{"$f":"BM266","v":""},null,null,null,{"$f":"AR266","v":""},null,null,null,null,null,null,null,null,null,null,null,null,null,null,null,null,null,null,null,null,null,null,null,null,null,null,null,null,null,{"$f":"SUBSTITUTE($AY266,\",\",\", \")","v":""},null,null,null,null,null,null,null,null,null,"{Roach_Infestation5(7)}",null,null,null,null,null,null,null,null,null,null,{"$f":"SUBSTITUTE(BI266,\",\",\", \")","v":""}]
[null,null,null,null,null,null,null,null,null,null,null,null,null,null,null,null,null,null,null,null,null,null,null,null,null,null,null,null,null,null,null,null,""]
[]
[null,null,null,null,null,null,null,null,null,{"$f":"BM269","v":""},null,null,null,{"$f":"AR269","v":""},null,null,null,null,null,null,null,null,null,null,null,null,null,null,null,null,null,null,null,null,null,null,null,null,null,null,null,null,null,{"$f":"SUBSTITUTE($AY269,\",\",\", \")","v":""},null,null,null,null,null,null,null,null,null,"{Roach_Infestation5(8)}",null,null,null,null,null,null,null,null,null,null,{"$f":"SUBSTITUTE(BI269,\",\",\", \")","v":""}]
[null,null,null,null,null,null,null,null,null,null,null,null,null,null,null,null,null,null,null,null,null,null,null,null,null,null,null,null,null,null,null,null,""]
[]
[null,null,null,null,null,null,null,null,null,{"$f":"BM272","v":""},null,null,null,{"$f":"AR272","v":""},null,null,null,null,null,null,null,null,null,null,null,null,null,null,null,null,null,null,null,null,null,null,null,null,null,null,null,null,null,{"$f":"SUBSTITUTE($AY272,\",\",\", \")","v":""},null,null,null,null,null,null,null,null,null,"{Roach_Infestation5(9)}",null,null,null,null,null,null,null,null,null,null,{"$f":"SUBSTITUTE(BI272,\",\",\", \")","v":""}]
[null,null,null,null,null,null,null,null,null,null,null,null,null,null,null,null,null,null,null,null,null,null,null,null,null,null,null,null,null,null,null,null,""]
[]
[null,null,null,null,null,null,null,null,null,{"$f":"BM275","v":""},null,null,null,{"$f":"AR275","v":""},null,null,null,null,null,null,null,null,null,null,null,null,null,null,null,null,null,null,null,null,null,null,null,null,null,null,null,null,null,{"$f":"SUBSTITUTE($AY275,\",\",\", \")","v":""},null,null,null,null,null,null,null,null,null,"{Roach_Infestation5(10)}",null,null,null,null,null,null,null,null,null,null,{"$f":"SUBSTITUTE(BI275,\",\",\", \")","v":""}]
[null,null,null,null,null,null,null,null,null,null,null,null,null,null,null,null,null,null,null,null,null,null,null,null,null,null,null,null,null,null,null,null,""]
[]
[null,null,null,null,null,null,null,null,null,{"$f":"BM278","v":""},null,null,null,{"$f":"AR278","v":""},null,null,null,null,null,null,null,null,null,null,null,null,null,null,null,null,null,null,null,null,null,null,null,null,null,null,null,null,null,{"$f":"SUBSTITUTE($AY278,\",\",\", \")","v":""},null,null,null,null,null,null,null,null,null,"{Roach_Infestation5(11)}",null,null,null,null,null,null,null,null,null,null,{"$f":"SUBSTITUTE(BI278,\",\",\", \")","v":""}]
[null,null,null,null,null,null,null,null,null,null,null,null,null,null,null,null,null,null,null,null,null,null,null,null,null,null,null,null,null,null,null,null,""]
[]
[null,null,null,null,null,null,null,null,null,{"$f":"BM281","v":""},null,null,null,{"$f":"AR281","v":""},null,null,null,null,null,null,null,null,null,null,null,null,null,null,null,null,null,null,null,null,null,null,null,null,null,null,null,null,null,{"$f":"SUBSTITUTE($AY281,\",\",\", \")","v":""},null,null,null,null,null,null,null,null,null,"{Roach_Infestation5(12)}",null,null,null,null,null,null,null,null,null,null,{"$f":"SUBSTITUTE(BI281,\",\",\", \")","v":""}]
[null,null,null,null,null,null,null,null,null,null,null,null,null,null,null,null,null,null,null,null,null,null,null,null,null,null,null,null,null,null,null,null,""]
[]
[null,null,null,null,null,null,null,null,null,{"$f":"BM284","v":""},null,null,null,{"$f":"AR284","v":""},null,null,null,null,null,null,null,null,null,null,null,null,null,null,null,null,null,null,null,null,null,null,null,null,null,null,null,null,null,{"$f":"SUBSTITUTE($AY284,\",\",\", \")","v":""},null,null,null,null,null,null,null,null,null,"{Roach_Infestation5(13)}",null,null,null,null,null,null,null,null,null,null,{"$f":"SUBSTITUTE(BI284,\",\",\", \")","v":""}]
[null,null,null,null,null,null,null,null,null,null,null,null,null,null,null,null,null,null,null,null,null,null,null,null,null,null,null,null,null,null,null,null,""]
[]
[null,null,null,null,null,null,null,null,null,{"$f":"BM287","v":""},null,null,null,{"$f":"AR287","v":""},null,null,null,null,null,null,null,null,null,null,null,null,null,null,null,null,null,null,null,null,null,null,null,null,null,null,null,null,null,{"$f":"SUBSTITUTE($AY287,\",\",\", \")","v":""},null,null,null,null,null,null,null,null,null,"{Roach_Infestation5(14)}",null,null,null,null,null,null,null,null,null,null,{"$f":"SUBSTITUTE(BI287,\",\",\", \")","v":""}]
[null,null,null,null,null,null,null,null,null,null,null,null,null,null,null,null,null,null,null,null,null,null,null,null,null,null,null,null,null,null,null,null,""]
[]
[null,null,null,null,null,null,null,null,null,{"$f":"BM290","v":""},null,null,null,{"$f":"AR290","v":""},null,null,null,null,null,null,null,null,null,null,null,null,null,null,null,null,null,null,null,null,null,null,null,null,null,null,null,null,null,{"$f":"SUBSTITUTE($AY290,\",\",\", \")","v":""},null,null,null,null,null,null,null,null,null,"{Roach_Infestation5(15)}",null,null,null,null,null,null,null,null,null,null,{"$f":"SUBSTITUTE(BI290,\",\",\", \")","v":""}]
[null,null,null,null,null,null,null,null,null,null,null,null,null,null,null,null,null,null,null,null,null,null,null,null,null,null,null,null,null,null,null,null,""]
[]
[null,null,null,null,null,null,null,null,null,{"$f":"BM293","v":""},null,null,null,{"$f":"AR293","v":""},null,null,null,null,null,null,null,null,null,null,null,null,null,null,null,null,null,null,null,null,null,null,null,null,null,null,null,null,null,{"$f":"SUBSTITUTE($AY293,\",\",\", \")","v":""},null,null,null,null,null,null,null,null,null,"{Roach_Infestation5(16)}",null,null,null,null,null,null,null,null,null,null,{"$f":"SUBSTITUTE(BI293,\",\",\", \")","v":""}]
[null,null,null,null,null,null,null,null,null,null,null,null,null,null,null,null,null,null,null,null,null,null,null,null,null,null,null,null,null,null,null,null,""]
[]
[null,null,null,null,null,null,null,null,null,{"$f":"BM296","v":""},null,null,null,{"$f":"AR296","v":""},null,null,null,null,null,null,null,null,null,null,null,null,null,null,null,null,null,null,null,null,null,null,null,null,null,null,null,null,null,{"$f":"SUBSTITUTE($AY296,\",\",\", \")","v":""},null,null,null,null,null,null,null,null,null,"{Roach_Infestation5(17)}",null,null,null,null,null,null,null,null,null,null,{"$f":"SUBSTITUTE(BI296,\",\",\", \")","v":""}]
[null,null,null,null,null,null,null,null,null,null,null,null,null,null,null,null,null,null,null,null,null,null,null,null,null,null,null,null,null,null,null,null,""]
[]
[null,null,null,null,null,null,null,null,null,{"$f":"BM299","v":""},null,null,null,{"$f":"AR299","v":""},null,null,null,null,null,null,null,null,null,null,null,null,null,null,null,null,null,null,null,null,null,null,null,null,null,null,null,null,null,{"$f":"SUBSTITUTE($AY299,\",\",\", \")","v":""},null,null,null,null,null,null,null,null,null,"{Roach_Infestation5(18)}",null,null,null,null,null,null,null,null,null,null,{"$f":"SUBSTITUTE(BI299,\",\",\", \")","v":""}]
[null,null,null,null,null,null,null,null,null,null,null,null,null,null,null,null,null,null,null,null,null,null,null,null,null,null,null,null,null,null,null,null,""]
[]
[null,null,null,null,null,null,null,null,null,{"$f":"BM302","v":""},null,null,null,{"$f":"AR302","v":""},null,null,null,null,null,null,null,null,null,null,null,null,null,null,null,null,null,null,null,null,null,null,null,null,null,null,null,null,null,{"$f":"SUBSTITUTE($AY302,\",\",\", \")","v":""},null,null,null,null,null,null,null,null,null,"{Roach_Infestation5(19)}",null,null,null,null,null,null,null,null,null,null,{"$f":"SUBSTITUTE(BI302,\",\",\", \")","v":""}]
[null,null,null,null,null,null,null,null,null,null,null,null,null,null,null,null,null,null,null,null,null,null,null,null,null,null,null,null,null,null,null,null,""]
[]
[null,null,null,null,null,null,null,null,null,{"$f":"BM305","v":""},null,null,null,{"$f":"AR305","v":""},null,null,null,null,null,null,null,null,null,null,null,null,null,null,null,null,null,null,null,null,null,null,null,null,null,null,null,null,null,{"$f":"SUBSTITUTE($AY305,\",\",\", \")","v":""},null,null,null,null,null,null,null,null,null,"{Roach_Infestation5(20)}",null,null,null,null,null,null,null,null,null,null,{"$f":"SUBSTITUTE(BI305,\",\",\", \")","v":""}]
[null,null,null,null,null,null,null,null,null,null,null,null,null,null,null,null,null,null,null,null,null,null,null,null,null,null,null,null,null,null,null,null,""]
[]
[null,null,null,null,null,null,null,null,null,{"$f":"BM308","v":""},null,null,null,{"$f":"AR308","v":""},null,null,null,null,null,null,null,null,null,null,null,null,null,null,null,null,null,null,null,null,null,null,null,null,null,null,null,null,null,{"$f":"SUBSTITUTE($AY308,\",\",\", \")","v":""},null,null,null,null,null,null,null,null,null,"{Roach_Infestation6(1)}",null,null,null,null,null,null,null,null,null,null,{"$f":"SUBSTITUTE(BI308,\",\",\", \")","v":""}]
[null,null,null,null,null,null,null,null,null,null,null,null,null,null,null,null,null,null,null,null,null,null,null,null,null,null,null,null,null,null,null,null,""]
[]
[null,null,null,null,null,null,null,null,null,{"$f":"BM311","v":""},null,null,null,{"$f":"AR311","v":""},null,null,null,null,null,null,null,null,null,null,null,null,null,null,null,null,null,null,null,null,null,null,null,null,null,null,null,null,null,{"$f":"SUBSTITUTE($AY311,\",\",\", \")","v":""},null,null,null,null,null,null,null,null,null,"{Roach_Infestation6(2)}",null,null,null,null,null,null,null,null,null,null,{"$f":"SUBSTITUTE(BI311,\",\",\", \")","v":""}]
[null,null,null,null,null,null,null,null,null,null,null,null,null,null,null,null,null,null,null,null,null,null,null,null,null,null,null,null,null,null,null,null,""]
[]
[null,null,null,null,null,null,null,null,null,{"$f":"BM314","v":""},null,null,null,{"$f":"AR314","v":""},null,null,null,null,null,null,null,null,null,null,null,null,null,null,null,null,null,null,null,null,null,null,null,null,null,null,null,null,null,{"$f":"SUBSTITUTE($AY314,\",\",\", \")","v":""},null,null,null,null,null,null,null,null,null,"{Roach_Infestation6(3)}",null,null,null,null,null,null,null,null,null,null,{"$f":"SUBSTITUTE(BI314,\",\",\", \")","v":""}]
[null,null,null,null,null,null,null,null,null,null,null,null,null,null,null,null,null,null,null,null,null,null,null,null,null,null,null,null,null,null,null,null,""]
[]
[null,null,null,null,null,null,null,null,null,{"$f":"BM317","v":""},null,null,null,{"$f":"AR317","v":""},null,null,null,null,null,null,null,null,null,null,null,null,null,null,null,null,null,null,null,null,null,null,null,null,null,null,null,null,null,{"$f":"SUBSTITUTE($AY317,\",\",\", \")","v":""},null,null,null,null,null,null,null,null,null,"{Roach_Infestation6(4)}",null,null,null,null,null,null,null,null,null,null,{"$f":"SUBSTITUTE(BI317,\",\",\", \")","v":""}]
[null,null,null,null,null,null,null,null,null,null,null,null,null,null,null,null,null,null,null,null,null,null,null,null,null,null,null,null,null,null,null,null,""]
[]
[null,null,null,null,null,null,null,null,null,{"$f":"BM320","v":""},null,null,null,{"$f":"AR320","v":""},null,null,null,null,null,null,null,null,null,null,null,null,null,null,null,null,null,null,null,null,null,null,null,null,null,null,null,null,null,{"$f":"SUBSTITUTE($AY320,\",\",\", \")","v":""},null,null,null,null,null,null,null,null,null,"{Roach_Infestation6(5)}",null,null,null,null,null,null,null,null,null,null,{"$f":"SUBSTITUTE(BI320,\",\",\", \")","v":""}]
[null,null,null,null,null,null,null,null,null,null,null,null,null,null,null,null,null,null,null,null,null,null,null,null,null,null,null,null,null,null,null,null,""]
[]
[null,null,null,null,null,null,null,null,null,{"$f":"BM323","v":""},null,null,null,{"$f":"AR323","v":""},null,null,null,null,null,null,null,null,null,null,null,null,null,null,null,null,null,null,null,null,null,null,null,null,null,null,null,null,null,{"$f":"SUBSTITUTE($AY323,\",\",\", \")","v":""},null,null,null,null,null,null,null,null,null,"{Roach_Infestation6(6)}",null,null,null,null,null,null,null,null,null,null,{"$f":"SUBSTITUTE(BI323,\",\",\", \")","v":""}]
[null,null,null,null,null,null,null,null,null,null,null,null,null,null,null,null,null,null,null,null,null,null,null,null,null,null,null,null,null,null,null,null,""]
[]
[null,null,null,null,null,null,null,null,null,{"$f":"BM326","v":""},null,null,null,{"$f":"AR326","v":""},null,null,null,null,null,null,null,null,null,null,null,null,null,null,null,null,null,null,null,null,null,null,null,null,null,null,null,null,null,{"$f":"SUBSTITUTE($AY326,\",\",\", \")","v":""},null,null,null,null,null,null,null,null,null,"{Roach_Infestation6(7)}",null,null,null,null,null,null,null,null,null,null,{"$f":"SUBSTITUTE(BI326,\",\",\", \")","v":""}]
[null,null,null,null,null,null,null,null,null,null,null,null,null,null,null,null,null,null,null,null,null,null,null,null,null,null,null,null,null,null,null,null,""]
[]
[null,null,null,null,null,null,null,null,null,{"$f":"BM329","v":""},null,null,null,{"$f":"AR329","v":""},null,null,null,null,null,null,null,null,null,null,null,null,null,null,null,null,null,null,null,null,null,null,null,null,null,null,null,null,null,{"$f":"SUBSTITUTE($AY329,\",\",\", \")","v":""},null,null,null,null,null,null,null,null,null,"{Roach_Infestation6(8)}",null,null,null,null,null,null,null,null,null,null,{"$f":"SUBSTITUTE(BI329,\",\",\", \")","v":""}]
[null,null,null,null,null,null,null,null,null,null,null,null,null,null,null,null,null,null,null,null,null,null,null,null,null,null,null,null,null,null,null,null,""]
[]
[null,null,null,null,null,null,null,null,null,{"$f":"BM332","v":""},null,null,null,{"$f":"AR332","v":""},null,null,null,null,null,null,null,null,null,null,null,null,null,null,null,null,null,null,null,null,null,null,null,null,null,null,null,null,null,{"$f":"SUBSTITUTE($AY332,\",\",\", \")","v":""},null,null,null,null,null,null,null,null,null,"{Roach_Infestation6(9)}",null,null,null,null,null,null,null,null,null,null,{"$f":"SUBSTITUTE(BI332,\",\",\", \")","v":""}]
[null,null,null,null,null,null,null,null,null,null,null,null,null,null,null,null,null,null,null,null,null,null,null,null,null,null,null,null,null,null,null,null,""]
[]
[null,null,null,null,null,null,null,null,null,{"$f":"BM335","v":""},null,null,null,{"$f":"AR335","v":""},null,null,null,null,null,null,null,null,null,null,null,null,null,null,null,null,null,null,null,null,null,null,null,null,null,null,null,null,null,{"$f":"SUBSTITUTE($AY335,\",\",\", \")","v":""},null,null,null,null,null,null,null,null,null,"{Roach_Infestation6(10)}",null,null,null,null,null,null,null,null,null,null,{"$f":"SUBSTITUTE(BI335,\",\",\", \")","v":""}]
[null,null,null,null,null,null,null,null,null,null,null,null,null,null,null,null,null,null,null,null,null,null,null,null,null,null,null,null,null,null,null,null,""]
[]
[null,null,null,null,null,null,null,null,null,{"$f":"BM338","v":""},null,null,null,{"$f":"AR338","v":""},null,null,null,null,null,null,null,null,null,null,null,null,null,null,null,null,null,null,null,null,null,null,null,null,null,null,null,null,null,{"$f":"SUBSTITUTE($AY338,\",\",\", \")","v":""},null,null,null,null,null,null,null,null,null,"{Roach_Infestation6(11)}",null,null,null,null,null,null,null,null,null,null,{"$f":"SUBSTITUTE(BI338,\",\",\", \")","v":""}]
[null,null,null,null,null,null,null,null,null,null,null,null,null,null,null,null,null,null,null,null,null,null,null,null,null,null,null,null,null,null,null,null,""]
[]
[null,null,null,null,null,null,null,null,null,{"$f":"BM341","v":""},null,null,null,{"$f":"AR341","v":""},null,null,null,null,null,null,null,null,null,null,null,null,null,null,null,null,null,null,null,null,null,null,null,null,null,null,null,null,null,{"$f":"SUBSTITUTE($AY341,\",\",\", \")","v":""},null,null,null,null,null,null,null,null,null,"{Roach_Infestation6(12)}",null,null,null,null,null,null,null,null,null,null,{"$f":"SUBSTITUTE(BI341,\",\",\", \")","v":""}]
[null,null,null,null,null,null,null,null,null,null,null,null,null,null,null,null,null,null,null,null,null,null,null,null,null,null,null,null,null,null,null,null,""]
[]
[null,null,null,null,null,null,null,null,null,{"$f":"BM344","v":""},null,null,null,{"$f":"AR344","v":""},null,null,null,null,null,null,null,null,null,null,null,null,null,null,null,null,null,null,null,null,null,null,null,null,null,null,null,null,null,{"$f":"SUBSTITUTE($AY344,\",\",\", \")","v":""},null,null,null,null,null,null,null,null,null,"{Roach_Infestation6(13)}",null,null,null,null,null,null,null,null,null,null,{"$f":"SUBSTITUTE(BI344,\",\",\", \")","v":""}]
[null,null,null,null,null,null,null,null,null,null,null,null,null,null,null,null,null,null,null,null,null,null,null,null,null,null,null,null,null,null,null,null,""]
[]
[null,null,null,null,null,null,null,null,null,{"$f":"BM347","v":""},null,null,null,{"$f":"AR347","v":""},null,null,null,null,null,null,null,null,null,null,null,null,null,null,null,null,null,null,null,null,null,null,null,null,null,null,null,null,null,{"$f":"SUBSTITUTE($AY347,\",\",\", \")","v":""},null,null,null,null,null,null,null,null,null,"{Roach_Infestation6(14)}",null,null,null,null,null,null,null,null,null,null,{"$f":"SUBSTITUTE(BI347,\",\",\", \")","v":""}]
[null,null,null,null,null,null,null,null,null,null,null,null,null,null,null,null,null,null,null,null,null,null,null,null,null,null,null,null,null,null,null,null,""]
[]
[null,null,null,null,null,null,null,null,null,{"$f":"BM350","v":""},null,null,null,{"$f":"AR350","v":""},null,null,null,null,null,null,null,null,null,null,null,null,null,null,null,null,null,null,null,null,null,null,null,null,null,null,null,null,null,{"$f":"SUBSTITUTE($AY350,\",\",\", \")","v":""},null,null,null,null,null,null,null,null,null,"{Roach_Infestation6(15)}",null,null,null,null,null,null,null,null,null,null,{"$f":"SUBSTITUTE(BI350,\",\",\", \")","v":""}]
[null,null,null,null,null,null,null,null,null,null,null,null,null,null,null,null,null,null,null,null,null,null,null,null,null,null,null,null,null,null,null,null,""]
[]
[null,null,null,null,null,null,null,null,null,{"$f":"BM353","v":""},null,null,null,{"$f":"AR353","v":""},null,null,null,null,null,null,null,null,null,null,null,null,null,null,null,null,null,null,null,null,null,null,null,null,null,null,null,null,null,{"$f":"SUBSTITUTE($AY353,\",\",\", \")","v":""},null,null,null,null,null,null,null,null,null,"{Roach_Infestation6(16)}",null,null,null,null,null,null,null,null,null,null,{"$f":"SUBSTITUTE(BI353,\",\",\", \")","v":""}]
[null,null,null,null,null,null,null,null,null,null,null,null,null,null,null,null,null,null,null,null,null,null,null,null,null,null,null,null,null,null,null,null,""]
[]
[null,null,null,null,null,null,null,null,null,{"$f":"BM356","v":""},null,null,null,{"$f":"AR356","v":""},null,null,null,null,null,null,null,null,null,null,null,null,null,null,null,null,null,null,null,null,null,null,null,null,null,null,null,null,null,{"$f":"SUBSTITUTE($AY356,\",\",\", \")","v":""},null,null,null,null,null,null,null,null,null,"{Roach_Infestation6(17)}",null,null,null,null,null,null,null,null,null,null,{"$f":"SUBSTITUTE(BI356,\",\",\", \")","v":""}]
[null,null,null,null,null,null,null,null,null,null,null,null,null,null,null,null,null,null,null,null,null,null,null,null,null,null,null,null,null,null,null,null,""]
[]
[null,null,null,null,null,null,null,null,null,{"$f":"BM359","v":""},null,null,null,{"$f":"AR359","v":""},null,null,null,null,null,null,null,null,null,null,null,null,null,null,null,null,null,null,null,null,null,null,null,null,null,null,null,null,null,{"$f":"SUBSTITUTE($AY359,\",\",\", \")","v":""},null,null,null,null,null,null,null,null,null,"{Roach_Infestation6(18)}",null,null,null,null,null,null,null,null,null,null,{"$f":"SUBSTITUTE(BI359,\",\",\", \")","v":""}]
[null,null,null,null,null,null,null,null,null,null,null,null,null,null,null,null,null,null,null,null,null,null,null,null,null,null,null,null,null,null,null,null,""]
[]
[null,null,null,null,null,null,null,null,null,{"$f":"BM362","v":""},null,null,null,{"$f":"AR362","v":""},null,null,null,null,null,null,null,null,null,null,null,null,null,null,null,null,null,null,null,null,null,null,null,null,null,null,null,null,null,{"$f":"SUBSTITUTE($AY362,\",\",\", \")","v":""},null,null,null,null,null,null,null,null,null,"{Roach_Infestation6(19)}",null,null,null,null,null,null,null,null,null,null,{"$f":"SUBSTITUTE(BI362,\",\",\", \")","v":""}]
[null,null,null,null,null,null,null,null,null,null,null,null,null,null,null,null,null,null,null,null,null,null,null,null,null,null,null,null,null,null,null,null,""]
[]
[null,null,null,null,null,null,null,null,null,{"$f":"BM365","v":""},null,null,null,{"$f":"AR365","v":""},null,null,null,null,null,null,null,null,null,null,null,null,null,null,null,null,null,null,null,null,null,null,null,null,null,null,null,null,null,{"$f":"SUBSTITUTE($AY365,\",\",\", \")","v":""},null,null,null,null,null,null,null,null,null,"{Roach_Infestation6(20)}",null,null,null,null,null,null,null,null,null,null,{"$f":"SUBSTITUTE(BI365,\",\",\", \")","v":""}]
[null,null,null,null,null,null,null,null,null,null,null,null,null,null,null,null,null,null,null,null,null,null,null,null,null,null,null,null,null,null,null,null,""]
[]
[null,null,null,null,null,null,null,null,null,{"$f":"BM368","v":""},null,null,null,{"$f":"AR368","v":""},null,null,null,null,null,null,null,null,null,null,null,null,null,null,null,null,null,null,null,null,null,null,null,null,null,null,null,null,null,{"$f":"SUBSTITUTE($AY368,\",\",\", \")","v":""},null,null,null,null,null,null,null,null,null,"{Roach_Infestation7(1)}",null,null,null,null,null,null,null,null,null,null,{"$f":"SUBSTITUTE(BI368,\",\",\", \")","v":""}]
[null,null,null,null,null,null,null,null,null,null,null,null,null,null,null,null,null,null,null,null,null,null,null,null,null,null,null,null,null,null,null,null,""]
[]
[null,null,null,null,null,null,null,null,null,{"$f":"BM371","v":""},null,null,null,{"$f":"AR371","v":""},null,null,null,null,null,null,null,null,null,null,null,null,null,null,null,null,null,null,null,null,null,null,null,null,null,null,null,null,null,{"$f":"SUBSTITUTE($AY371,\",\",\", \")","v":""},null,null,null,null,null,null,null,null,null,"{Roach_Infestation7(2)}",null,null,null,null,null,null,null,null,null,null,{"$f":"SUBSTITUTE(BI371,\",\",\", \")","v":""}]
[null,null,null,null,null,null,null,null,null,null,null,null,null,null,null,null,null,null,null,null,null,null,null,null,null,null,null,null,null,null,null,null,""]
[]
[null,null,null,null,null,null,null,null,null,{"$f":"BM374","v":""},null,null,null,{"$f":"AR374","v":""},null,null,null,null,null,null,null,null,null,null,null,null,null,null,null,null,null,null,null,null,null,null,null,null,null,null,null,null,null,{"$f":"SUBSTITUTE($AY374,\",\",\", \")","v":""},null,null,null,null,null,null,null,null,null,"{Roach_Infestation7(3)}",null,null,null,null,null,null,null,null,null,null,{"$f":"SUBSTITUTE(BI374,\",\",\", \")","v":""}]
[null,null,null,null,null,null,null,null,null,null,null,null,null,null,null,null,null,null,null,null,null,null,null,null,null,null,null,null,null,null,null,null,""]
[]
[null,null,null,null,null,null,null,null,null,{"$f":"BM377","v":""},null,null,null,{"$f":"AR377","v":""},null,null,null,null,null,null,null,null,null,null,null,null,null,null,null,null,null,null,null,null,null,null,null,null,null,null,null,null,null,{"$f":"SUBSTITUTE($AY377,\",\",\", \")","v":""},null,null,null,null,null,null,null,null,null,"{Roach_Infestation7(4)}",null,null,null,null,null,null,null,null,null,null,{"$f":"SUBSTITUTE(BI377,\",\",\", \")","v":""}]
[null,null,null,null,null,null,null,null,null,null,null,null,null,null,null,null,null,null,null,null,null,null,null,null,null,null,null,null,null,null,null,null,""]
[]
[null,null,null,null,null,null,null,null,null,{"$f":"BM380","v":""},null,null,null,{"$f":"AR380","v":""},null,null,null,null,null,null,null,null,null,null,null,null,null,null,null,null,null,null,null,null,null,null,null,null,null,null,null,null,null,{"$f":"SUBSTITUTE($AY380,\",\",\", \")","v":""},null,null,null,null,null,null,null,null,null,"{Roach_Infestation7(5)}",null,null,null,null,null,null,null,null,null,null,{"$f":"SUBSTITUTE(BI380,\",\",\", \")","v":""}]
[null,null,null,null,null,null,null,null,null,null,null,null,null,null,null,null,null,null,null,null,null,null,null,null,null,null,null,null,null,null,null,null,""]
[]
[null,null,null,null,null,null,null,null,null,{"$f":"BM383","v":""},null,null,null,{"$f":"AR383","v":""},null,null,null,null,null,null,null,null,null,null,null,null,null,null,null,null,null,null,null,null,null,null,null,null,null,null,null,null,null,{"$f":"SUBSTITUTE($AY383,\",\",\", \")","v":""},null,null,null,null,null,null,null,null,null,"{Roach_Infestation7(6)}",null,null,null,null,null,null,null,null,null,null,{"$f":"SUBSTITUTE(BI383,\",\",\", \")","v":""}]
[null,null,null,null,null,null,null,null,null,null,null,null,null,null,null,null,null,null,null,null,null,null,null,null,null,null,null,null,null,null,null,null,""]
[]
[null,null,null,null,null,null,null,null,null,{"$f":"BM386","v":""},null,null,null,{"$f":"AR386","v":""},null,null,null,null,null,null,null,null,null,null,null,null,null,null,null,null,null,null,null,null,null,null,null,null,null,null,null,null,null,{"$f":"SUBSTITUTE($AY386,\",\",\", \")","v":""},null,null,null,null,null,null,null,null,null,"{Roach_Infestation7(7)}",null,null,null,null,null,null,null,null,null,null,{"$f":"SUBSTITUTE(BI386,\",\",\", \")","v":""}]
[null,null,null,null,null,null,null,null,null,null,null,null,null,null,null,null,null,null,null,null,null,null,null,null,null,null,null,null,null,null,null,null,""]
[]
[null,null,null,null,null,null,null,null,null,{"$f":"BM389","v":""},null,null,null,{"$f":"AR389","v":""},null,null,null,null,null,null,null,null,null,null,null,null,null,null,null,null,null,null,null,null,null,null,null,null,null,null,null,null,null,{"$f":"SUBSTITUTE($AY389,\",\",\", \")","v":""},null,null,null,null,null,null,null,null,null,"{Roach_Infestation7(8)}",null,null,null,null,null,null,null,null,null,null,{"$f":"SUBSTITUTE(BI389,\",\",\", \")","v":""}]
[null,null,null,null,null,null,null,null,null,null,null,null,null,null,null,null,null,null,null,null,null,null,null,null,null,null,null,null,null,null,null,null,""]
[]
[null,null,null,null,null,null,null,null,null,{"$f":"BM392","v":""},null,null,null,{"$f":"AR392","v":""},null,null,null,null,null,null,null,null,null,null,null,null,null,null,null,null,null,null,null,null,null,null,null,null,null,null,null,null,null,{"$f":"SUBSTITUTE($AY392,\",\",\", \")","v":""},null,null,null,null,null,null,null,null,null,"{Roach_Infestation7(9)}",null,null,null,null,null,null,null,null,null,null,{"$f":"SUBSTITUTE(BI392,\",\",\", \")","v":""}]
[null,null,null,null,null,null,null,null,null,null,null,null,null,null,null,null,null,null,null,null,null,null,null,null,null,null,null,null,null,null,null,null,""]
[]
[null,null,null,null,null,null,null,null,null,{"$f":"BM395","v":""},null,null,null,{"$f":"AR395","v":""},null,null,null,null,null,null,null,null,null,null,null,null,null,null,null,null,null,null,null,null,null,null,null,null,null,null,null,null,null,{"$f":"SUBSTITUTE($AY395,\",\",\", \")","v":""},null,null,null,null,null,null,null,null,null,"{Roach_Infestation7(10)}",null,null,null,null,null,null,null,null,null,null,{"$f":"SUBSTITUTE(BI395,\",\",\", \")","v":""}]
[null,null,null,null,null,null,null,null,null,null,null,null,null,null,null,null,null,null,null,null,null,null,null,null,null,null,null,null,null,null,null,null,""]
[]
[null,null,null,null,null,null,null,null,null,{"$f":"BM398","v":""},null,null,null,{"$f":"AR398","v":""},null,null,null,null,null,null,null,null,null,null,null,null,null,null,null,null,null,null,null,null,null,null,null,null,null,null,null,null,null,{"$f":"SUBSTITUTE($AY398,\",\",\", \")","v":""},null,null,null,null,null,null,null,null,null,"{Roach_Infestation7(11)}",null,null,null,null,null,null,null,null,null,null,{"$f":"SUBSTITUTE(BI398,\",\",\", \")","v":""}]
[null,null,null,null,null,null,null,null,null,null,null,null,null,null,null,null,null,null,null,null,null,null,null,null,null,null,null,null,null,null,null,null,""]
[]
[null,null,null,null,null,null,null,null,null,{"$f":"BM401","v":""},null,null,null,{"$f":"AR401","v":""},null,null,null,null,null,null,null,null,null,null,null,null,null,null,null,null,null,null,null,null,null,null,null,null,null,null,null,null,null,{"$f":"SUBSTITUTE($AY401,\",\",\", \")","v":""},null,null,null,null,null,null,null,null,null,"{Roach_Infestation7(12)}",null,null,null,null,null,null,null,null,null,null,{"$f":"SUBSTITUTE(BI401,\",\",\", \")","v":""}]
[null,null,null,null,null,null,null,null,null,null,null,null,null,null,null,null,null,null,null,null,null,null,null,null,null,null,null,null,null,null,null,null,""]
[]
[null,null,null,null,null,null,null,null,null,{"$f":"BM404","v":""},null,null,null,{"$f":"AR404","v":""},null,null,null,null,null,null,null,null,null,null,null,null,null,null,null,null,null,null,null,null,null,null,null,null,null,null,null,null,null,{"$f":"SUBSTITUTE($AY404,\",\",\", \")","v":""},null,null,null,null,null,null,null,null,null,"{Roach_Infestation7(13)}",null,null,null,null,null,null,null,null,null,null,{"$f":"SUBSTITUTE(BI404,\",\",\", \")","v":""}]
[null,null,null,null,null,null,null,null,null,null,null,null,null,null,null,null,null,null,null,null,null,null,null,null,null,null,null,null,null,null,null,null,""]
[]
[null,null,null,null,null,null,null,null,null,{"$f":"BM407","v":""},null,null,null,{"$f":"AR407","v":""},null,null,null,null,null,null,null,null,null,null,null,null,null,null,null,null,null,null,null,null,null,null,null,null,null,null,null,null,null,{"$f":"SUBSTITUTE($AY407,\",\",\", \")","v":""},null,null,null,null,null,null,null,null,null,"{Roach_Infestation7(14)}",null,null,null,null,null,null,null,null,null,null,{"$f":"SUBSTITUTE(BI407,\",\",\", \")","v":""}]
[null,null,null,null,null,null,null,null,null,null,null,null,null,null,null,null,null,null,null,null,null,null,null,null,null,null,null,null,null,null,null,null,""]
[]
[null,null,null,null,null,null,null,null,null,{"$f":"BM410","v":""},null,null,null,{"$f":"AR410","v":""},null,null,null,null,null,null,null,null,null,null,null,null,null,null,null,null,null,null,null,null,null,null,null,null,null,null,null,null,null,{"$f":"SUBSTITUTE($AY410,\",\",\", \")","v":""},null,null,null,null,null,null,null,null,null,"{Roach_Infestation7(15)}",null,null,null,null,null,null,null,null,null,null,{"$f":"SUBSTITUTE(BI410,\",\",\", \")","v":""}]
[null,null,null,null,null,null,null,null,null,null,null,null,null,null,null,null,null,null,null,null,null,null,null,null,null,null,null,null,null,null,null,null,""]
[]
[null,null,null,null,null,null,null,null,null,{"$f":"BM413","v":""},null,null,null,{"$f":"AR413","v":""},null,null,null,null,null,null,null,null,null,null,null,null,null,null,null,null,null,null,null,null,null,null,null,null,null,null,null,null,null,{"$f":"SUBSTITUTE($AY413,\",\",\", \")","v":""},null,null,null,null,null,null,null,null,null,"{Roach_Infestation7(16)}",null,null,null,null,null,null,null,null,null,null,{"$f":"SUBSTITUTE(BI413,\",\",\", \")","v":""}]
[null,null,null,null,null,null,null,null,null,null,null,null,null,null,null,null,null,null,null,null,null,null,null,null,null,null,null,null,null,null,null,null,""]
[]
[null,null,null,null,null,null,null,null,null,{"$f":"BM416","v":""},null,null,null,{"$f":"AR416","v":""},null,null,null,null,null,null,null,null,null,null,null,null,null,null,null,null,null,null,null,null,null,null,null,null,null,null,null,null,null,{"$f":"SUBSTITUTE($AY416,\",\",\", \")","v":""},null,null,null,null,null,null,null,null,null,"{Roach_Infestation7(17)}",null,null,null,null,null,null,null,null,null,null,{"$f":"SUBSTITUTE(BI416,\",\",\", \")","v":""}]
[null,null,null,null,null,null,null,null,null,null,null,null,null,null,null,null,null,null,null,null,null,null,null,null,null,null,null,null,null,null,null,null,""]
[]
[null,null,null,null,null,null,null,null,null,{"$f":"BM419","v":""},null,null,null,{"$f":"AR419","v":""},null,null,null,null,null,null,null,null,null,null,null,null,null,null,null,null,null,null,null,null,null,null,null,null,null,null,null,null,null,{"$f":"SUBSTITUTE($AY419,\",\",\", \")","v":""},null,null,null,null,null,null,null,null,null,"{Roach_Infestation7(18)}",null,null,null,null,null,null,null,null,null,null,{"$f":"SUBSTITUTE(BI419,\",\",\", \")","v":""}]
[null,null,null,null,null,null,null,null,null,null,null,null,null,null,null,null,null,null,null,null,null,null,null,null,null,null,null,null,null,null,null,null,""]
[]
[null,null,null,null,null,null,null,null,null,{"$f":"BM422","v":""},null,null,null,{"$f":"AR422","v":""},null,null,null,null,null,null,null,null,null,null,null,null,null,null,null,null,null,null,null,null,null,null,null,null,null,null,null,null,null,{"$f":"SUBSTITUTE($AY422,\",\",\", \")","v":""},null,null,null,null,null,null,null,null,null,"{Roach_Infestation7(19)}",null,null,null,null,null,null,null,null,null,null,{"$f":"SUBSTITUTE(BI422,\",\",\", \")","v":""}]
[null,null,null,null,null,null,null,null,null,null,null,null,null,null,null,null,null,null,null,null,null,null,null,null,null,null,null,null,null,null,null,null,""]
[]
[null,null,null,null,null,null,null,null,null,{"$f":"BM425","v":""},null,null,null,{"$f":"AR425","v":""},null,null,null,null,null,null,null,null,null,null,null,null,null,null,null,null,null,null,null,null,null,null,null,null,null,null,null,null,null,{"$f":"SUBSTITUTE($AY425,\",\",\", \")","v":""},null,null,null,null,null,null,null,null,null,"{Roach_Infestation7(20)}",null,null,null,null,null,null,null,null,null,null,{"$f":"SUBSTITUTE(BI425,\",\",\", \")","v":""}]
[null,null,null,null,null,null,null,null,null,null,null,null,null,null,null,null,null,null,null,null,null,null,null,null,null,null,null,null,null,null,null,null,""]
[]
[null,null,null,null,null,null,null,null,null,{"$f":"BM428","v":""},null,null,null,{"$f":"AR428","v":""},null,null,null,null,null,null,null,null,null,null,null,null,null,null,null,null,null,null,null,null,null,null,null,null,null,null,null,null,null,{"$f":"SUBSTITUTE($AY428,\",\",\", \")","v":""},null,null,null,null,null,null,null,null,null,"{Roach_Infestation7(1)}",null,null,null,null,null,null,null,null,null,null,{"$f":"SUBSTITUTE(BI428,\",\",\", \")","v":""}]
[null,null,null,null,null,null,null,null,null,null,null,null,null,null,null,null,null,null,null,null,null,null,null,null,null,null,null,null,null,null,null,null,""]
[]
[null,null,null,null,null,null,null,null,null,{"$f":"BM431","v":""},null,null,null,{"$f":"AR431","v":""},null,null,null,null,null,null,null,null,null,null,null,null,null,null,null,null,null,null,null,null,null,null,null,null,null,null,null,null,null,{"$f":"SUBSTITUTE($AY431,\",\",\", \")","v":""},null,null,null,null,null,null,null,null,null,"{Roach_Infestation7(2)}",null,null,null,null,null,null,null,null,null,null,{"$f":"SUBSTITUTE(BI431,\",\",\", \")","v":""}]
[null,null,null,null,null,null,null,null,null,null,null,null,null,null,null,null,null,null,null,null,null,null,null,null,null,null,null,null,null,null,null,null,""]
[]
[null,null,null,null,null,null,null,null,null,{"$f":"BM434","v":""},null,null,null,{"$f":"AR434","v":""},null,null,null,null,null,null,null,null,null,null,null,null,null,null,null,null,null,null,null,null,null,null,null,null,null,null,null,null,null,{"$f":"SUBSTITUTE($AY434,\",\",\", \")","v":""},null,null,null,null,null,null,null,null,null,"{Roach_Infestation7(3)}",null,null,null,null,null,null,null,null,null,null,{"$f":"SUBSTITUTE(BI434,\",\",\", \")","v":""}]
[null,null,null,null,null,null,null,null,null,null,null,null,null,null,null,null,null,null,null,null,null,null,null,null,null,null,null,null,null,null,null,null,""]
[]
[null,null,null,null,null,null,null,null,null,{"$f":"BM437","v":""},null,null,null,{"$f":"AR437","v":""},null,null,null,null,null,null,null,null,null,null,null,null,null,null,null,null,null,null,null,null,null,null,null,null,null,null,null,null,null,{"$f":"SUBSTITUTE($AY437,\",\",\", \")","v":""},null,null,null,null,null,null,null,null,null,"{Roach_Infestation7(4)}",null,null,null,null,null,null,null,null,null,null,{"$f":"SUBSTITUTE(BI437,\",\",\", \")","v":""}]
[null,null,null,null,null,null,null,null,null,null,null,null,null,null,null,null,null,null,null,null,null,null,null,null,null,null,null,null,null,null,null,null,""]
[]
[null,null,null,null,null,null,null,null,null,{"$f":"BM440","v":""},null,null,null,{"$f":"AR440","v":""},null,null,null,null,null,null,null,null,null,null,null,null,null,null,null,null,null,null,null,null,null,null,null,null,null,null,null,null,null,{"$f":"SUBSTITUTE($AY440,\",\",\", \")","v":""},null,null,null,null,null,null,null,null,null,"{Roach_Infestation7(5)}",null,null,null,null,null,null,null,null,null,null,{"$f":"SUBSTITUTE(BI440,\",\",\", \")","v":""}]
[null,null,null,null,null,null,null,null,null,null,null,null,null,null,null,null,null,null,null,null,null,null,null,null,null,null,null,null,null,null,null,null,""]
[]
[null,null,null,null,null,null,null,null,null,{"$f":"BM443","v":""},null,null,null,{"$f":"AR443","v":""},null,null,null,null,null,null,null,null,null,null,null,null,null,null,null,null,null,null,null,null,null,null,null,null,null,null,null,null,null,{"$f":"SUBSTITUTE($AY443,\",\",\", \")","v":""},null,null,null,null,null,null,null,null,null,"{Roach_Infestation7(6)}",null,null,null,null,null,null,null,null,null,null,{"$f":"SUBSTITUTE(BI443,\",\",\", \")","v":""}]
[null,null,null,null,null,null,null,null,null,null,null,null,null,null,null,null,null,null,null,null,null,null,null,null,null,null,null,null,null,null,null,null,""]
[]
[null,null,null,null,null,null,null,null,null,{"$f":"BM446","v":""},null,null,null,{"$f":"AR446","v":""},null,null,null,null,null,null,null,null,null,null,null,null,null,null,null,null,null,null,null,null,null,null,null,null,null,null,null,null,null,{"$f":"SUBSTITUTE($AY446,\",\",\", \")","v":""},null,null,null,null,null,null,null,null,null,"{Roach_Infestation7(7)}",null,null,null,null,null,null,null,null,null,null,{"$f":"SUBSTITUTE(BI446,\",\",\", \")","v":""}]
[null,null,null,null,null,null,null,null,null,null,null,null,null,null,null,null,null,null,null,null,null,null,null,null,null,null,null,null,null,null,null,null,""]
[]
[null,null,null,null,null,null,null,null,null,{"$f":"BM449","v":""},null,null,null,{"$f":"AR449","v":""},null,null,null,null,null,null,null,null,null,null,null,null,null,null,null,null,null,null,null,null,null,null,null,null,null,null,null,null,null,{"$f":"SUBSTITUTE($AY449,\",\",\", \")","v":""},null,null,null,null,null,null,null,null,null,"{Roach_Infestation7(8)}",null,null,null,null,null,null,null,null,null,null,{"$f":"SUBSTITUTE(BI449,\",\",\", \")","v":""}]
[null,null,null,null,null,null,null,null,null,null,null,null,null,null,null,null,null,null,null,null,null,null,null,null,null,null,null,null,null,null,null,null,""]
[]
[null,null,null,null,null,null,null,null,null,{"$f":"BM452","v":""},null,null,null,{"$f":"AR452","v":""},null,null,null,null,null,null,null,null,null,null,null,null,null,null,null,null,null,null,null,null,null,null,null,null,null,null,null,null,null,{"$f":"SUBSTITUTE($AY452,\",\",\", \")","v":""},null,null,null,null,null,null,null,null,null,"{Roach_Infestation7(9)}",null,null,null,null,null,null,null,null,null,null,{"$f":"SUBSTITUTE(BI452,\",\",\", \")","v":""}]
[null,null,null,null,null,null,null,null,null,null,null,null,null,null,null,null,null,null,null,null,null,null,null,null,null,null,null,null,null,null,null,null,""]
[]
[null,null,null,null,null,null,null,null,null,{"$f":"BM455","v":""},null,null,null,{"$f":"AR455","v":""},null,null,null,null,null,null,null,null,null,null,null,null,null,null,null,null,null,null,null,null,null,null,null,null,null,null,null,null,null,{"$f":"SUBSTITUTE($AY455,\",\",\", \")","v":""},null,null,null,null,null,null,null,null,null,"{Roach_Infestation7(10)}",null,null,null,null,null,null,null,null,null,null,{"$f":"SUBSTITUTE(BI455,\",\",\", \")","v":""}]
[null,null,null,null,null,null,null,null,null,null,null,null,null,null,null,null,null,null,null,null,null,null,null,null,null,null,null,null,null,null,null,null,""]
[]
[null,null,null,null,null,null,null,null,null,{"$f":"BM458","v":""},null,null,null,{"$f":"AR458","v":""},null,null,null,null,null,null,null,null,null,null,null,null,null,null,null,null,null,null,null,null,null,null,null,null,null,null,null,null,null,{"$f":"SUBSTITUTE($AY458,\",\",\", \")","v":""},null,null,null,null,null,null,null,null,null,"{Roach_Infestation7(11)}",null,null,null,null,null,null,null,null,null,null,{"$f":"SUBSTITUTE(BI458,\",\",\", \")","v":""}]
[null,null,null,null,null,null,null,null,null,null,null,null,null,null,null,null,null,null,null,null,null,null,null,null,null,null,null,null,null,null,null,null,""]
[]
[null,null,null,null,null,null,null,null,null,{"$f":"BM461","v":""},null,null,null,{"$f":"AR461","v":""},null,null,null,null,null,null,null,null,null,null,null,null,null,null,null,null,null,null,null,null,null,null,null,null,null,null,null,null,null,{"$f":"SUBSTITUTE($AY461,\",\",\", \")","v":""},null,null,null,null,null,null,null,null,null,"{Roach_Infestation7(12)}",null,null,null,null,null,null,null,null,null,null,{"$f":"SUBSTITUTE(BI461,\",\",\", \")","v":""}]
[null,null,null,null,null,null,null,null,null,null,null,null,null,null,null,null,null,null,null,null,null,null,null,null,null,null,null,null,null,null,null,null,""]
[]
[null,null,null,null,null,null,null,null,null,{"$f":"BM464","v":""},null,null,null,{"$f":"AR464","v":""},null,null,null,null,null,null,null,null,null,null,null,null,null,null,null,null,null,null,null,null,null,null,null,null,null,null,null,null,null,{"$f":"SUBSTITUTE($AY464,\",\",\", \")","v":""},null,null,null,null,null,null,null,null,null,"{Roach_Infestation7(13)}",null,null,null,null,null,null,null,null,null,null,{"$f":"SUBSTITUTE(BI464,\",\",\", \")","v":""}]
[null,null,null,null,null,null,null,null,null,null,null,null,null,null,null,null,null,null,null,null,null,null,null,null,null,null,null,null,null,null,null,null,""]
[]
[null,null,null,null,null,null,null,null,null,{"$f":"BM467","v":""},null,null,null,{"$f":"AR467","v":""},null,null,null,null,null,null,null,null,null,null,null,null,null,null,null,null,null,null,null,null,null,null,null,null,null,null,null,null,null,{"$f":"SUBSTITUTE($AY467,\",\",\", \")","v":""},null,null,null,null,null,null,null,null,null,"{Roach_Infestation7(14)}",null,null,null,null,null,null,null,null,null,null,{"$f":"SUBSTITUTE(BI467,\",\",\", \")","v":""}]
[null,null,null,null,null,null,null,null,null,null,null,null,null,null,null,null,null,null,null,null,null,null,null,null,null,null,null,null,null,null,null,null,""]
[]
[null,null,null,null,null,null,null,null,null,{"$f":"BM470","v":""},null,null,null,{"$f":"AR470","v":""},null,null,null,null,null,null,null,null,null,null,null,null,null,null,null,null,null,null,null,null,null,null,null,null,null,null,null,null,null,{"$f":"SUBSTITUTE($AY470,\",\",\", \")","v":""},null,null,null,null,null,null,null,null,null,"{Roach_Infestation7(15)}",null,null,null,null,null,null,null,null,null,null,{"$f":"SUBSTITUTE(BI470,\",\",\", \")","v":""}]
[null,null,null,null,null,null,null,null,null,null,null,null,null,null,null,null,null,null,null,null,null,null,null,null,null,null,null,null,null,null,null,null,""]
[]
[null,null,null,null,null,null,null,null,null,{"$f":"BM473","v":""},null,null,null,{"$f":"AR473","v":""},null,null,null,null,null,null,null,null,null,null,null,null,null,null,null,null,null,null,null,null,null,null,null,null,null,null,null,null,null,{"$f":"SUBSTITUTE($AY473,\",\",\", \")","v":""},null,null,null,null,null,null,null,null,null,"{Roach_Infestation7(16)}",null,null,null,null,null,null,null,null,null,null,{"$f":"SUBSTITUTE(BI473,\",\",\", \")","v":""}]
[null,null,null,null,null,null,null,null,null,null,null,null,null,null,null,null,null,null,null,null,null,null,null,null,null,null,null,null,null,null,null,null,""]
[]
[null,null,null,null,null,null,null,null,null,{"$f":"BM476","v":""},null,null,null,{"$f":"AR476","v":""},null,null,null,null,null,null,null,null,null,null,null,null,null,null,null,null,null,null,null,null,null,null,null,null,null,null,null,null,null,{"$f":"SUBSTITUTE($AY476,\",\",\", \")","v":""},null,null,null,null,null,null,null,null,null,"{Roach_Infestation7(17)}",null,null,null,null,null,null,null,null,null,null,{"$f":"SUBSTITUTE(BI476,\",\",\", \")","v":""}]
[null,null,null,null,null,null,null,null,null,null,null,null,null,null,null,null,null,null,null,null,null,null,null,null,null,null,null,null,null,null,null,null,""]
[]
[null,null,null,null,null,null,null,null,null,{"$f":"BM479","v":""},null,null,null,{"$f":"AR479","v":""},null,null,null,null,null,null,null,null,null,null,null,null,null,null,null,null,null,null,null,null,null,null,null,null,null,null,null,null,null,{"$f":"SUBSTITUTE($AY479,\",\",\", \")","v":""},null,null,null,null,null,null,null,null,null,"{Roach_Infestation7(18)}",null,null,null,null,null,null,null,null,null,null,{"$f":"SUBSTITUTE(BI479,\",\",\", \")","v":""}]
[null,null,null,null,null,null,null,null,null,null,null,null,null,null,null,null,null,null,null,null,null,null,null,null,null,null,null,null,null,null,null,null,""]
[]
[null,null,null,null,null,null,null,null,null,{"$f":"BM482","v":""},null,null,null,{"$f":"AR482","v":""},null,null,null,null,null,null,null,null,null,null,null,null,null,null,null,null,null,null,null,null,null,null,null,null,null,null,null,null,null,{"$f":"SUBSTITUTE($AY482,\",\",\", \")","v":""},null,null,null,null,null,null,null,null,null,"{Roach_Infestation7(19)}",null,null,null,null,null,null,null,null,null,null,{"$f":"SUBSTITUTE(BI482,\",\",\", \")","v":""}]
[null,null,null,null,null,null,null,null,null,null,null,null,null,null,null,null,null,null,null,null,null,null,null,null,null,null,null,null,null,null,null,null,""]
[]
[null,null,null,null,null,null,null,null,null,{"$f":"BM485","v":""},null,null,null,{"$f":"AR485","v":""},null,null,null,null,null,null,null,null,null,null,null,null,null,null,null,null,null,null,null,null,null,null,null,null,null,null,null,null,null,{"$f":"SUBSTITUTE($AY485,\",\",\", \")","v":""},null,null,null,null,null,null,null,null,null,"{Roach_Infestation7(20)}",null,null,null,null,null,null,null,null,null,null,{"$f":"SUBSTITUTE(BI485,\",\",\", \")","v":""}]
[null,null,null,null,null,null,null,null,null,null,null,null,null,null,null,null,null,null,null,null,null,null,null,null,null,null,null,null,null,null,null,null,""]

{"sheet":"Sanitation Report","index":2,"n_rows":169,"n_cols":30,"rows_kept":169,"cut":false,"hidden":true,"merged":[[23,29,23,35],[24,29,24,35],[25,29,25,35],[26,29,26,35],[27,29,27,35],[28,29,28,35],[17,29,17,35],[18,29,18,35],[19,29,19,35],[20,29,20,35],[21,29,21,35],[22,29,22,35],[11,29,11,35],[12,29,12,35],[13,29,13,35],[14,29,14,35],[15,29,15,35],[16,29,16,35],[28,19,28,20],[30,19,30,20],[19,23,19,27],[20,23,20,27],[21,23,21,27],[22,23,22,27],[23,23,23,27],[24,23,24,27],[10,23,10,27],[11,23,11,27],[12,23,12,27],[13,23,13,27],[14,23,14,27],[15,23,15,27],[16,23,16,27],[17,23,17,27],[18,23,18,27],[25,23,25,27],[26,23,26,27],[27,23,27,27],[28,23,28,27],[30,23,30,27],[18,19,18,20],[19,19,19,20],[20,19,20,20],[21,19,21,20],[22,19,22,20],[23,19,23,20],[10,19,10,20],[11,19,11,20],[12,19,12,20],[24,11,24,13],[25,11,25,13],[26,11,26,13],[27,11,27,13],[28,11,28,13],[18,11,18,13],[19,11,19,13],[20,11,20,13],[21,11,21,13],[22,11,22,13],[23,11,23,13],[13,19,13,20],[14,19,14,20],[15,19,15,20],[16,19,16,20],[17,19,17,20],[24,19,24,20],[25,19,25,20],[26,19,26,20],[23,16,23,18],[24,16,24,18],[25,16,25,18],[26,16,26,18],[27,16,27,18],[28,16,28,18],[17,16,17,18],[18,16,18,18],[19,16,19,18],[20,16,20,18],[21,16,21,18],[22,16,22,18],[27,19,27,20],[17,14,17,15],[18,14,18,15],[25,14,25,15],[26,14,26,15],[27,14,27,15],[28,14,28,15],[19,14,19,15],[20,14,20,15],[21,14,21,15],[22,14,22,15],[23,14,23,15],[24,14,24,15],[11,16,11,18],[12,16,12,18],[13,16,13,18],[14,16,14,18],[15,16,15,18],[16,16,16,18],[27,4,27,6],[28,4,28,6],[25,4,25,6],[26,4,26,6],[23,4,23,6],[24,4,24,6],[21,4,21,6],[22,4,22,6],[19,4,19,6],[20,4,20,6],[17,4,17,6],[18,4,18,6],[23,7,23,9],[24,7,24,9],[25,7,25,9],[26,7,26,9],[27,7,27,9],[28,7,28,9],[17,7,17,9],[18,7,18,9],[19,7,19,9],[20,7,20,9],[21,7,21,9],[22,7,22,9],[17,11,17,13],[7,4,7,6],[8,4,8,6],[8,7,8,15],[9,14,9,15],[9,16,9,18],[9,19,9,20],[9,23,9,27],[9,29,9,35],[10,7,10,9],[10,16,10,18],[10,29,10,35],[7,7,7,9],[7,11,7,13],[7,14,7,15],[7,16,7,18],[7,19,7,20],[7,22,7,28],[7,29,7,35],[9,7,9,9],[9,11,9,13],[10,11,10,13],[8,16,8,21],[8,22,8,27],[8,28,8,33],[10,14,10,15],[11,14,11,15],[12,14,12,15],[13,14,13,15],[14,14,14,15],[15,14,15,15],[16,14,16,15],[29,16,29,18],[29,19,29,20],[29,23,29,27],[29,29,29,35],[17,1,17,3],[18,1,18,3],[19,1,19,3],[20,1,20,3],[15,4,15,6],[16,4,16,6],[13,4,13,6],[14,4,14,6],[11,4,11,6],[12,4,12,6],[9,4,9,6],[10,4,10,6],[1,1,1,2],[4,1,4,4],[11,7,11,9],[12,7,12,9],[13,7,13,9],[14,7,14,9],[15,7,15,9],[16,7,16,9],[1,3,1,13],[7,1,7,3],[11,11,11,13],[12,11,12,13],[13,11,13,13],[14,11,14,13],[15,11,15,13],[16,11,16,13],[8,1,8,3],[9,1,9,3],[10,1,10,3],[11,1,11,3],[12,1,12,3],[13,1,13,3],[14,1,14,3],[15,1,15,3],[16,1,16,3],[30,29,30,35],[31,1,31,3],[31,4,31,6],[31,7,31,9],[31,11,31,13],[31,14,31,15],[31,16,31,18],[31,19,31,20],[31,23,31,27],[31,29,31,35],[21,1,21,3],[22,1,22,3],[23,1,23,3],[24,1,24,3],[25,1,25,3],[26,1,26,3],[27,1,27,3],[28,1,28,3],[29,1,29,3],[29,4,29,6],[29,7,29,9],[29,11,29,13],[29,14,29,15],[32,1,32,3],[32,4,32,6],[32,7,32,9],[32,11,32,13],[32,14,32,15],[32,16,32,18],[32,19,32,20],[32,23,32,27],[32,29,32,35],[30,1,30,3],[30,4,30,6],[30,7,30,9],[30,11,30,13],[30,14,30,15],[30,16,30,18],[33,1,33,3],[33,4,33,6],[33,7,33,9],[33,11,33,13],[33,14,33,15],[33,16,33,18],[33,19,33,20],[33,23,33,27],[33,29,33,35],[34,1,34,3],[34,4,34,6],[34,7,34,9],[34,11,34,13],[34,14,34,15],[34,16,34,18],[34,19,34,20],[34,23,34,27],[34,29,34,35],[35,1,35,3],[35,4,35,6],[35,7,35,9],[35,11,35,13],[35,14,35,15],[35,16,35,18],[35,19,35,20],[35,23,35,27],[35,29,35,35],[36,1,36,3],[36,4,36,6],[36,7,36,9],[36,11,36,13],[36,14,36,15],[36,16,36,18],[36,19,36,20],[36,23,36,27],[36,29,36,35],[37,1,37,3],[37,4,37,6],[37,7,37,9],[37,11,37,13],[37,14,37,15],[37,16,37,18],[37,19,37,20],[37,23,37,27],[37,29,37,35],[38,1,38,3],[38,4,38,6],[38,7,38,9],[38,11,38,13],[38,14,38,15],[38,16,38,18],[38,19,38,20],[38,23,38,27],[38,29,38,35],[39,1,39,3],[39,4,39,6],[39,7,39,9],[39,11,39,13],[39,14,39,15],[39,16,39,18],[39,19,39,20],[39,23,39,27],[39,29,39,35],[40,1,40,3],[40,4,40,6],[40,7,40,9],[40,11,40,13],[40,14,40,15],[40,16,40,18],[40,19,40,20],[40,23,40,27],[40,29,40,35],[41,1,41,3],[41,4,41,6],[41,7,41,9],[41,11,41,13],[41,14,41,15],[41,16,41,18],[41,19,41,20],[41,23,41,27],[41,29,41,35],[42,1,42,3],[42,4,42,6],[42,7,42,9],[42,11,42,13],[42,14,42,15],[42,16,42,18],[42,19,42,20],[42,23,42,27],[42,29,42,35],[43,1,43,3],[43,4,43,6],[43,7,43,9],[43,11,43,13],[43,14,43,15],[43,16,43,18],[43,19,43,20],[43,23,43,27],[43,29,43,35],[44,1,44,3],[44,4,44,6],[44,7,44,9],[44,11,44,13],[44,14,44,15],[44,16,44,18],[44,19,44,20],[44,23,44,27],[44,29,44,35],[45,1,45,3],[45,4,45,6],[45,7,45,9],[45,11,45,13],[45,14,45,15],[45,16,45,18],[45,19,45,20],[45,23,45,27],[45,29,45,35],[46,1,46,3],[46,4,46,6],[46,7,46,9],[46,11,46,13],[46,14,46,15],[46,16,46,18],[46,19,46,20],[46,23,46,27],[46,29,46,35],[47,1,47,3],[47,4,47,6],[47,7,47,9],[47,11,47,13],[47,14,47,15],[47,16,47,18],[47,19,47,20],[47,23,47,27],[47,29,47,35],[48,1,48,3],[48,4,48,6],[48,7,48,9],[48,11,48,13],[48,14,48,15],[48,16,48,18],[48,19,48,20],[48,23,48,27],[48,29,48,35],[49,1,49,3],[49,4,49,6],[49,7,49,9],[49,11,49,13],[49,14,49,15],[49,16,49,18],[49,19,49,20],[49,23,49,27],[49,29,49,35],[50,1,50,3],[50,4,50,6],[50,7,50,9],[50,11,50,13],[50,14,50,15],[50,16,50,18],[50,19,50,20],[50,23,50,27],[50,29,50,35],[51,1,51,3],[51,4,51,6],[51,7,51,9],[51,11,51,13],[51,14,51,15],[51,16,51,18],[51,19,51,20],[51,23,51,27],[51,29,51,35],[52,1,52,3],[52,4,52,6],[52,7,52,9],[52,11,52,13],[52,14,52,15],[52,16,52,18],[52,19,52,20],[52,23,52,27],[52,29,52,35],[53,1,53,3],[53,4,53,6],[53,7,53,9],[53,11,53,13],[53,14,53,15],[53,16,53,18],[53,19,53,20],[53,23,53,27],[53,29,53,35],[54,1,54,3],[54,4,54,6],[54,7,54,9],[54,11,54,13],[54,14,54,15],[54,16,54,18],[54,19,54,20],[54,23,54,27],[54,29,54,35],[55,1,55,3],[55,4,55,6],[55,7,55,9],[55,11,55,13],[55,14,55,15],[55,16,55,18],[55,19,55,20],[55,23,55,27],[55,29,55,35],[56,1,56,3],[56,4,56,6],[56,7,56,9],[56,11,56,13],[56,14,56,15],[56,16,56,18],[56,19,56,20],[56,23,56,27],[56,29,56,35],[57,1,57,3],[57,4,57,6],[57,7,57,9],[57,11,57,13],[57,14,57,15],[57,16,57,18],[57,19,57,20],[57,23,57,27],[57,29,57,35],[58,1,58,3],[58,4,58,6],[58,7,58,9],[58,11,58,13],[58,14,58,15],[58,16,58,18],[58,19,58,20],[58,23,58,27],[58,29,58,35],[59,1,59,3],[59,4,59,6],[59,7,59,9],[59,11,59,13],[59,14,59,15],[59,16,59,18],[59,19,59,20],[59,23,59,27],[59,29,59,35],[60,1,60,3],[60,4,60,6],[60,7,60,9],[60,11,60,13],[60,14,60,15],[60,16,60,18],[60,19,60,20],[60,23,60,27],[60,29,60,35],[61,1,61,3],[61,4,61,6],[61,7,61,9],[61,11,61,13],[61,14,61,15],[61,16,61,18],[61,19,61,20],[61,23,61,27],[61,29,61,35],[62,1,62,3],[62,4,62,6],[62,7,62,9],[62,11,62,13],[62,14,62,15],[62,16,62,18],[62,19,62,20],[62,23,62,27],[62,29,62,35],[63,1,63,3],[63,4,63,6],[63,7,63,9],[63,11,63,13],[63,14,63,15],[63,16,63,18],[63,19,63,20],[63,23,63,27],[63,29,63,35],[64,1,64,3],[64,4,64,6],[64,7,64,9],[64,11,64,13],[64,14,64,15],[64,16,64,18],[64,19,64,20],[64,23,64,27],[64,29,64,35],[65,1,65,3],[65,4,65,6],[65,7,65,9],[65,11,65,13],[65,14,65,15],[65,16,65,18],[65,19,65,20],[65,23,65,27],[65,29,65,35],[66,1,66,3],[66,4,66,6],[66,7,66,9],[66,11,66,13],[66,14,66,15],[66,16,66,18],[66,19,66,20],[66,23,66,27],[66,29,66,35],[67,1,67,3],[67,4,67,6],[67,7,67,9],[67,11,67,13],[67,14,67,15],[67,16,67,18],[67,19,67,20],[67,23,67,27],[67,29,67,35],[68,1,68,3],[68,4,68,6],[68,7,68,9],[68,11,68,13],[68,14,68,15],[68,16,68,18],[68,19,68,20],[68,23,68,27],[68,29,68,35],[69,1,69,3],[69,4,69,6],[69,7,69,9],[69,11,69,13],[69,14,69,15],[69,16,69,18],[69,19,69,20],[69,23,69,27],[69,29,69,35],[70,1,70,3],[70,4,70,6],[70,7,70,9],[70,11,70,13],[70,14,70,15],[70,16,70,18],[70,19,70,20],[70,23,70,27],[70,29,70,35],[71,1,71,3],[71,4,71,6],[71,7,71,9],[71,11,71,13],[71,14,71,15],[71,16,71,18],[71,19,71,20],[71,23,71,27],[71,29,71,35],[72,1,72,3],[72,4,72,6],[72,7,72,9],[72,11,72,13],[72,14,72,15],[72,16,72,18],[72,19,72,20],[72,23,72,27],[72,29,72,35],[73,1,73,3],[73,4,73,6],[73,7,73,9],[73,11,73,13],[73,14,73,15],[73,16,73,18],[73,19,73,20],[73,23,73,27],[73,29,73,35],[74,1,74,3],[74,4,74,6],[74,7,74,9],[74,11,74,13],[74,14,74,15],[74,16,74,18],[74,19,74,20],[74,23,74,27],[74,29,74,35],[75,1,75,3],[75,4,75,6],[75,7,75,9],[75,11,75,13],[75,14,75,15],[75,16,75,18],[75,19,75,20],[75,23,75,27],[75,29,75,35],[76,1,76,3],[76,4,76,6],[76,7,76,9],[76,11,76,13],[76,14,76,15],[76,16,76,18],[76,19,76,20],[76,23,76,27],[76,29,76,35],[77,1,77,3],[77,4,77,6],[77,7,77,9],[77,11,77,13],[77,14,77,15],[77,16,77,18],[77,19,77,20],[77,23,77,27],[77,29,77,35],[78,1,78,3],[78,4,78,6],[78,7,78,9],[78,11,78,13],[78,14,78,15],[78,16,78,18],[78,19,78,20],[78,23,78,27],[78,29,78,35],[79,1,79,3],[79,4,79,6],[79,7,79,9],[79,11,79,13],[79,14,79,15],[79,16,79,18],[79,19,79,20],[79,23,79,27],[79,29,79,35],[80,1,80,3],[80,4,80,6],[80,7,80,9],[80,11,80,13],[80,14,80,15],[80,16,80,18],[80,19,80,20],[80,23,80,27],[80,29,80,35],[81,1,81,3],[81,4,81,6],[81,7,81,9],[81,11,81,13],[81,14,81,15],[81,16,81,18],[81,19,81,20],[81,23,81,27],[81,29,81,35],[82,1,82,3],[82,4,82,6],[82,7,82,9],[82,11,82,13],[82,14,82,15],[82,16,82,18],[82,19,82,20],[82,23,82,27],[82,29,82,35],[83,1,83,3],[83,4,83,6],[83,7,83,9],[83,11,83,13],[83,14,83,15],[83,16,83,18],[83,19,83,20],[83,23,83,27],[83,29,83,35],[84,1,84,3],[84,4,84,6],[84,7,84,9],[84,11,84,13],[84,14,84,15],[84,16,84,18],[84,19,84,20],[84,23,84,27],[84,29,84,35],[85,1,85,3],[85,4,85,6],[85,7,85,9],[85,11,85,13],[85,14,85,15],[85,16,85,18],[85,19,85,20],[85,23,85,27],[85,29,85,35],[86,1,86,3],[86,4,86,6],[86,7,86,9],[86,11,86,13],[86,14,86,15],[86,16,86,18],[86,19,86,20],[86,23,86,27],[86,29,86,35],[87,1,87,3],[87,4,87,6],[87,7,87,9],[87,11,87,13],[87,14,87,15],[87,16,87,18],[87,19,87,20],[87,23,87,27],[87,29,87,35],[88,1,88,3],[88,4,88,6],[88,7,88,9],[88,11,88,13],[88,14,88,15],[88,16,88,18],[88,19,88,20],[88,23,88,27],[88,29,88,35],[89,1,89,3],[89,4,89,6],[89,7,89,9],[89,11,89,13],[89,14,89,15],[89,16,89,18],[89,19,89,20],[89,23,89,27],[89,29,89,35],[90,1,90,3],[90,4,90,6],[90,7,90,9],[90,11,90,13],[90,14,90,15],[90,16,90,18],[90,19,90,20],[90,23,90,27],[90,29,90,35],[91,1,91,3],[91,4,91,6],[91,7,91,9],[91,11,91,13],[91,14,91,15],[91,16,91,18],[91,19,91,20],[91,23,91,27],[91,29,91,35],[92,1,92,3],[92,4,92,6],[92,7,92,9],[92,11,92,13],[92,14,92,15],[92,16,92,18],[92,19,92,20],[92,23,92,27],[92,29,92,35],[93,1,93,3],[93,4,93,6],[93,7,93,9],[93,11,93,13],[93,14,93,15],[93,16,93,18],[93,19,93,20],[93,23,93,27],[93,29,93,35],[94,1,94,3],[94,4,94,6],[94,7,94,9],[94,11,94,13],[94,14,94,15],[94,16,94,18],[94,19,94,20],[94,23,94,27],[94,29,94,35],[95,1,95,3],[95,4,95,6],[95,7,95,9],[95,11,95,13],[95,14,95,15],[95,16,95,18],[95,19,95,20],[95,23,95,27],[95,29,95,35],[96,1,96,3],[96,4,96,6],[96,7,96,9],[96,11,96,13],[96,14,96,15],[96,16,96,18],[96,19,96,20],[96,23,96,27],[96,29,96,35],[97,1,97,3],[97,4,97,6],[97,7,97,9],[97,11,97,13],[97,14,97,15],[97,16,97,18],[97,19,97,20],[97,23,97,27],[97,29,97,35],[98,1,98,3],[98,4,98,6],[98,7,98,9],[98,11,98,13],[98,14,98,15],[98,16,98,18],[98,19,98,20],[98,23,98,27],[98,29,98,35],[99,1,99,3],[99,4,99,6],[99,7,99,9],[99,11,99,13],[99,14,99,15],[99,16,99,18],[99,19,99,20],[99,23,99,27],[99,29,99,35],[100,1,100,3],[100,4,100,6],[100,7,100,9],[100,11,100,13],[100,14,100,15],[100,16,100,18],[100,19,100,20],[100,23,100,27],[100,29,100,35],[101,1,101,3],[101,4,101,6],[101,7,101,9],[101,11,101,13],[101,14,101,15],[101,16,101,18],[101,19,101,20],[101,23,101,27],[101,29,101,35],[102,1,102,3],[102,4,102,6],[102,7,102,9],[102,11,102,13],[102,14,102,15],[102,16,102,18],[102,19,102,20],[102,23,102,27],[102,29,102,35],[103,1,103,3],[103,4,103,6],[103,7,103,9],[103,11,103,13],[103,14,103,15],[103,16,103,18],[103,19,103,20],[103,23,103,27],[103,29,103,35],[104,1,104,3],[104,4,104,6],[104,7,104,9],[104,11,104,13],[104,14,104,15],[104,16,104,18],[104,19,104,20],[104,23,104,27],[104,29,104,35],[105,1,105,3],[105,4,105,6],[105,7,105,9],[105,11,105,13],[105,14,105,15],[105,16,105,18],[105,19,105,20],[105,23,105,27],[105,29,105,35],[106,1,106,3],[106,4,106,6],[106,7,106,9],[106,11,106,13],[106,14,106,15],[106,16,106,18],[106,19,106,20],[106,23,106,27],[106,29,106,35],[107,1,107,3],[107,4,107,6],[107,7,107,9],[107,11,107,13],[107,14,107,15],[107,16,107,18],[107,19,107,20],[107,23,107,27],[107,29,107,35],[108,1,108,3],[108,4,108,6],[108,7,108,9],[108,11,108,13],[108,14,108,15],[108,16,108,18],[108,19,108,20],[108,23,108,27],[108,29,108,35],[109,1,109,3],[109,4,109,6],[109,7,109,9],[109,11,109,13],[109,14,109,15],[109,16,109,18],[109,19,109,20],[109,23,109,27],[109,29,109,35],[110,1,110,3],[110,4,110,6],[110,7,110,9],[110,11,110,13],[110,14,110,15],[110,16,110,18],[110,19,110,20],[110,23,110,27],[110,29,110,35],[111,1,111,3],[111,4,111,6],[111,7,111,9],[111,11,111,13],[111,14,111,15],[111,16,111,18],[111,19,111,20],[111,23,111,27],[111,29,111,35],[112,1,112,3],[112,4,112,6],[112,7,112,9],[112,11,112,13],[112,14,112,15],[112,16,112,18],[112,19,112,20],[112,23,112,27],[112,29,112,35],[113,1,113,3],[113,4,113,6],[113,7,113,9],[113,11,113,13],[113,14,113,15],[113,16,113,18],[113,19,113,20],[113,23,113,27],[113,29,113,35],[114,1,114,3],[114,4,114,6],[114,7,114,9],[114,11,114,13],[114,14,114,15],[114,16,114,18],[114,19,114,20],[114,23,114,27],[114,29,114,35],[115,1,115,3],[115,4,115,6],[115,7,115,9],[115,11,115,13],[115,14,115,15],[115,16,115,18],[115,19,115,20],[115,23,115,27],[115,29,115,35],[116,1,116,3],[116,4,116,6],[116,7,116,9],[116,11,116,13],[116,14,116,15],[116,16,116,18],[116,19,116,20],[116,23,116,27],[116,29,116,35],[117,1,117,3],[117,4,117,6],[117,7,117,9],[117,11,117,13],[117,14,117,15],[117,16,117,18],[117,19,117,20],[117,23,117,27],[117,29,117,35],[118,1,118,3]],"merged_total":1469,"flags":["merged_cut"]}
[null,null,null,null,null,null,null,null,null,null,null,null,null,null,null,null,null,null,null,"Conditions Conducive Legend"]
[null,"Date: ",null,"02/19/2016",null,null,null,null,null,null,null,null,null,null,null,null,null,null,null,"ER - Excess Rubbish in Unit",null,null,null,null,null,null,null,"RNC - Rubbish not in container"]
[null,"Complex Name:",null,null,null,"Rowan Towers",null,null,null,null,null,null,null,null,null,null,null,null,null,"DD - Dirty Dishes",null,null,null,null,null,null,null,"DL - Dirty Laundry"]
[null,null,null,null,null,null,null,null,null,null,null,null,null,null,null,null,null,null,null,"OF - Open Foods in Unit",null,null,null,null,null,null,null,"SA - Stored/stacked articles"]
[null,"Technician(s):",null,null,null,"Leroy Baker demikia smith",null,null,null,null,null,null,null,null,null,null,null,null,null,"G/F-STC - Grease/Food Debris on stove, table or countertops",null,null,null,null,null,null,null,"G/F-FW - Grease/Food on floors or walls"]
[]
[null,null,null,null,{"$f":"160-COUNTBLANK(E10:E169)","v":19.0}]
["Desired No.","Building\nStreet\nFloor",null,null,"Unit #  . ",null,null,"Unit Access  .",null,null,"Conditions Conducive.","   Treatment\n    Location",null,null,"Roach Infestation .",null,"        Mice",null,null,"Pets  .",null,"NJ Decal  .","Resident's Signature",null,null,null,null,null,null,"PCT Comments"]
[]
[1,"{Building_Street1(1)}",null,null,null,null,null,"Yes",null,null,"{Conditions_Conducive1(1)}","Kitchen & Bathroom",null,null,"{Roach_Infestation1(1)}",null,"{mice_treatment_type1(1)}",null,null,"{Pets1(1)}",null,"Yes",{"$f":"IF(ISERROR(VLOOKUP(A10,#REF!,7,FALSE)),\"\",VLOOKUP(A10,#REF!,7,FALSE))","v":""},"",null,null,null,null,{"$f":"IF(ISERROR(VLOOKUP(A10,#REF!,8,FALSE)),\"\",VLOOKUP(A10,#REF!,8,FALSE))","v":""}]
[2,"{Building_Street1(2)}",null,null,"8l",null,null,"Keyed",null,null,"{Conditions_Conducive1(2)}","Kitchen & Bathroom",null,null,"{Roach_Infestation1(2)}",null,"{mice_treatment_type1(2)}",null,null,"{Pets1(2)}",null,"Yes",null,""]
[3,"{Building_Street1(3)}",null,null,"8n",null,null,"Keyed",null,null,"{Conditions_Conducive1(3)}","Kitchen & Bathroom",null,null,"{Roach_Infestation1(3)}",null,"{mice_treatment_type1(3)}",null,null,"{Pets1(3)}",null,"Yes",null,""]
[4,"{Building_Street1(4)}",null,null,"8D",null,null,"Keyed",null,null,"{Conditions_Conducive1(4)}","Kitchen & Bathroom",null,null,"{Roach_Infestation1(4)}",null,"{mice_treatment_type1(4)}",null,null,"{Pets1(4)}",null,"Yes",null,""]
[5,"{Building_Street1(5)}",null,null,"8f",null,null,"Keyed",null,null,"{Conditions_Conducive1(5)}","Kitchen & Bathroom",null,null,"{Roach_Infestation1(5)}",null,"{mice_treatment_type1(5)}",null,null,"{Pets1(5)}",null,"Yes",null,""]
[6,"{Building_Street1(6)}",null,null,"8K",null,null,"Keyed",null,null,"{Conditions_Conducive1(6)}","Kitchen & Bathroom",null,null,"{Roach_Infestation1(6)}",null,"{mice_treatment_type1(6)}",null,null,"{Pets1(6)}",null,"Yes",null,""]
[7,"{Building_Street1(7)}",null,null,"7F",null,null,"Keyed",null,null,"{Conditions_Conducive1(7)}","Kitchen & Bathroom",null,null,"{Roach_Infestation1(7)}",null,"{mice_treatment_type1(7)}",null,null,"{Pets1(7)}",null,"Yes",null,""]
[8,"{Building_Street1(8)}",null,null,"7b",null,null,"Yes",null,null,"{Conditions_Conducive1(8)}","Kitchen & Bathroom",null,null,"{Roach_Infestation1(8)}",null,"{mice_treatment_type1(8)}",null,null,"{Pets1(8)}",null,"Yes",null,"",null,null,null,null,null,"Tenet him 7B claims the problem has worsened and would appreciate the follow up"]
[9,"{Building_Street1(9)}",null,null,"7J",null,null,"Yes",null,null,"{Conditions_Conducive1(9)}","Kitchen & Bathroom",null,null,"{Roach_Infestation1(9)}",null,"{mice_treatment_type1(9)}",null,null,"{Pets1(9)}",null,"Yes",null,""]
[10,"{Building_Street1(10)}",null,null,"7a",null,null,"Keyed",null,null,"{Conditions_Conducive1(10)}","Kitchen & Bathroom",null,null,"{Roach_Infestation1(10)}",null,"{mice_treatment_type1(10)}",null,null,"{Pets1(10)}",null,"Yes",null,""]
[11,"{Building_Street1(11)}",null,null,"Y7l",null,null,"Yes",null,null,"{Conditions_Conducive1(11)}","Kitchen & Bathroom",null,null,"{Roach_Infestation1(11)}",null,"{mice_treatment_type1(11)}",null,null,"{Pets1(11)}",null,"Yes",null,""]
[12,"{Building_Street1(12)}",null,null,"7M",null,null,"Yes",null,null,"{Conditions_Conducive1(12)}","Kitchen & Bathroom",null,null,"{Roach_Infestation1(12)}",null,"{mice_treatment_type1(12)}",null,null,"{Pets1(12)}",null,"Yes",null,""]
[13,"{Building_Street1(13)}",null,null,"7N",null,null,"Yes",null,null,"{Conditions_Conducive1(13)}","Kitchen & Bathroom",null,null,"{Roach_Infestation1(13)}",null,"{mice_treatment_type1(13)}",null,null,"{Pets1(13)}",null,"Yes",null,""]
[14,"{Building_Street1(14)}",null,null,"7p",null,null,"Keyed",null,null,"{Conditions_Conducive1(14)}","Kitchen & Bathroom",null,null,"{Roach_Infestation1(14)}",null,"{mice_treatment_type1(14)}",null,null,"{Pets1(14)}",null,"Yes",null,""]
[15,"{Building_Street1(15)}",null,null,"7G",null,null,"Yes",null,null,"{Conditions_Conducive1(15)}","Kitchen & Bathroom",null,null,"{Roach_Infestation1(15)}",null,"{mice_treatment_type1(15)}",null,null,"{Pets1(15)}",null,"Yes",null,""]
[16,"{Building_Street1(16)}",null,null,"7D",null,null,"Keyed",null,null,"{Conditions_Conducive1(16)}","Kitchen & Bathroom",null,null,"{Roach_Infestation1(16)}",null,"{mice_treatment_type1(16)}",null,null,"{Pets1(16)}",null,"Yes",null,""]
[17,"{Building_Street1(17)}",null,null,"6g",null,null,"Yes",null,null,"{Conditions_Conducive1(17)}","Kitchen & Bathroom",null,null,"{Roach_Infestation1(17)}",null,"{mice_treatment_type1(17)}",null,null,"{Pets1(17)}",null,"Yes",null,""]
[18,"{Building_Street1(18)}",null,null,"6J",null,null,"Keyed",null,null,"{Conditions_Conducive1(18)}","Kitchen & Bathroom",null,null,"{Roach_Infestation1(18)}",null,"{mice_treatment_type1(18)}",null,null,"{Pets1(18)}",null,"Yes",null,""]
[19,"{Building_Street1(19)}",null,null,"6B",null,null,"Keyed",null,null,"{Conditions_Conducive1(19)}","Kitchen & Bathroom",null,null,"{Roach_Infestation1(19)}",null,"{mice_treatment_type1(19)}",null,null,"{Pets1(19)}",null,"Yes",null,""]
[20,"{Building_Street1(20)}",null,null,"6L",null,null,"Keyed",null,null,"{Conditions_Conducive1(20)}","Kitchen & Bathroom",null,null,"{Roach_Infestation1(20)}",null,"{mice_treatment_type1(20)}",null,null,"{Pets1(20)}",null,"Yes",null,""]
[1,"{Building_Street2(1)}",null,null,null,null,null,null,null,null,"{Conditions_Conducive2(1)}",null,null,null,"{Roach_Infestation2(1)}",null,"{mice_treatment_type2(1)}",null,null,"{Pets2(1)}",null,null,{"$f":"IF(ISERROR(VLOOKUP(A30,#REF!,7,FALSE)),\"\",VLOOKUP(A30,#REF!,7,FALSE))","v":""},"",null,null,null,null,{"$f":"IF(ISERROR(VLOOKUP(A30,#REF!,8,FALSE)),\"\",VLOOKUP(A30,#REF!,8,FALSE))","v":""}]
[2,"{Building_Street2(2)}",null,null,null,null,null,null,null,null,"{Conditions_Conducive2(2)}",null,null,null,"{Roach_Infestation2(2)}",null,"{mice_treatment_type2(2)}",null,null,"{Pets2(2)}",null,null,null,""]
[3,"{Building_Street2(3)}",null,null,null,null,null,null,null,null,"{Conditions_Conducive2(3)}",null,null,null,"{Roach_Infestation2(3)}",null,"{mice_treatment_type2(3)}",null,null,"{Pets2(3)}",null,null,null,""]
[4,"{Building_Street2(4)}",null,null,null,null,null,null,null,null,"{Conditions_Conducive2(4)}",null,null,null,"{Roach_Infestation2(4)}",null,"{mice_treatment_type2(4)}",null,null,"{Pets2(4)}",null,null,null,""]
[5,"{Building_Street2(5)}",null,null,null,null,null,null,null,null,"{Conditions_Conducive2(5)}",null,null,null,"{Roach_Infestation2(5)}",null,"{mice_treatment_type2(5)}",null,null,"{Pets2(5)}",null,null,null,""]
[6,"{Building_Street2(6)}",null,null,null,null,null,null,null,null,"{Conditions_Conducive2(6)}",null,null,null,"{Roach_Infestation2(6)}",null,"{mice_treatment_type2(6)}",null,null,"{Pets2(6)}",null,null,null,""]
[7,"{Building_Street2(7)}",null,null,null,null,null,null,null,null,"{Conditions_Conducive2(7)}",null,null,null,"{Roach_Infestation2(7)}",null,"{mice_treatment_type2(7)}",null,null,"{Pets2(7)}",null,null,null,""]
[8,"{Building_Street2(8)}",null,null,null,null,null,null,null,null,"{Conditions_Conducive2(8)}",null,null,null,"{Roach_Infestation2(8)}",null,"{mice_treatment_type2(8)}",null,null,"{Pets2(8)}",null,null,null,""]
[9,"{Building_Street2(9)}",null,null,null,null,null,null,null,null,"{Conditions_Conducive2(9)}",null,null,null,"{Roach_Infestation2(9)}",null,"{mice_treatment_type2(9)}",null,null,"{Pets2(9)}",null,null,null,""]
[10,"{Building_Street2(10)}",null,null,null,null,null,null,null,null,"{Conditions_Conducive2(10)}",null,null,null,"{Roach_Infestation2(10)}",null,"{mice_treatment_type2(10)}",null,null,"{Pets2(10)}",null,null,null,""]
[11,"{Building_Street2(11)}",null,null,null,null,null,null,null,null,"{Conditions_Conducive2(11)}",null,null,null,"{Roach_Infestation2(11)}",null,"{mice_treatment_type2(11)}",null,null,"{Pets2(11)}",null,null,null,""]
[12,"{Building_Street2(12)}",null,null,null,null,null,null,null,null,"{Conditions_Conducive2(12)}",null,null,null,"{Roach_Infestation2(12)}",null,"{mice_treatment_type2(12)}",null,null,"{Pets2(12)}",null,null,null,""]
[13,"{Building_Street2(13)}",null,null,null,null,null,null,null,null,"{Conditions_Conducive2(13)}",null,null,null,"{Roach_Infestation2(13)}",null,"{mice_treatment_type2(13)}",null,null,"{Pets2(13)}",null,null,null,""]
[14,"{Building_Street2(14)}",null,null,null,null,null,null,null,null,"{Conditions_Conducive2(14)}",null,null,null,"{Roach_Infestation2(14)}",null,"{mice_treatment_type2(14)}",null,null,"{Pets2(14)}",null,null,null,""]
[15,"{Building_Street2(15)}",null,null,null,null,null,null,null,null,"{Conditions_Conducive2(15)}",null,null,null,"{Roach_Infestation2(15)}",null,"{mice_treatment_type2(15)}",null,null,"{Pets2(15)}",null,null,null,""]
[16,"{Building_Street2(16)}",null,null,null,null,null,null,null,null,"{Conditions_Conducive2(16)}",null,null,null,"{Roach_Infestation2(16)}",null,"{mice_treatment_type2(16)}",null,null,"{Pets2(16)}",null,null,null,""]
[17,"{Building_Street2(17)}",null,null,null,null,null,null,null,null,"{Conditions_Conducive2(17)}",null,null,null,"{Roach_Infestation2(17)}",null,"{mice_treatment_type2(17)}",null,null,"{Pets2(17)}",null,null,null,""]
[18,"{Building_Street2(18)}",null,null,null,null,null,null,null,null,"{Conditions_Conducive2(18)}",null,null,null,"{Roach_Infestation2(18)}",null,"{mice_treatment_type2(18)}",null,null,"{Pets2(18)}",null,null,null,""]
[19,"{Building_Street2(19)}",null,null,null,null,null,null,null,null,"{Conditions_Conducive2(19)}",null,null,null,"{Roach_Infestation2(19)}",null,"{mice_treatment_type2(19)}",null,null,"{Pets2(19)}",null,null,null,""]
[20,"{Building_Street2(20)}",null,null,null,null,null,null,null,null,"{Conditions_Conducive2(20)}",null,null,null,"{Roach_Infestation2(20)}",null,"{mice_treatment_type2(20)}",null,null,"{Pets2(20)}",null,null,null,""]
[1,"{Building_Street3(1)}",null,null,null,null,null,null,null,null,"{Conditions_Conducive3(1)}",null,null,null,"{Roach_Infestation3(1)}",null,"{mice_treatment_type3(1)}",null,null,"{Pets3(1)}",null,null,{"$f":"IF(ISERROR(VLOOKUP(A50,#REF!,7,FALSE)),\"\",VLOOKUP(A50,#REF!,7,FALSE))","v":""},"",null,null,null,null,{"$f":"IF(ISERROR(VLOOKUP(A50,#REF!,8,FALSE)),\"\",VLOOKUP(A50,#REF!,8,FALSE))","v":""}]
[2,"{Building_Street3(2)}",null,null,null,null,null,null,null,null,"{Conditions_Conducive3(2)}",null,null,null,"{Roach_Infestation3(2)}",null,"{mice_treatment_type3(2)}",null,null,"{Pets3(2)}",null,null,null,""]
[3,"{Building_Street3(3)}",null,null,null,null,null,null,null,null,"{Conditions_Conducive3(3)}",null,null,null,"{Roach_Infestation3(3)}",null,"{mice_treatment_type3(3)}",null,null,"{Pets3(3)}",null,null,null,""]
[4,"{Building_Street3(4)}",null,null,null,null,null,null,null,null,"{Conditions_Conducive3(4)}",null,null,null,"{Roach_Infestation3(4)}",null,"{mice_treatment_type3(4)}",null,null,"{Pets3(4)}",null,null,null,""]
[5,"{Building_Street3(5)}",null,null,null,null,null,null,null,null,"{Conditions_Conducive3(5)}",null,null,null,"{Roach_Infestation3(5)}",null,"{mice_treatment_type3(5)}",null,null,"{Pets3(5)}",null,null,null,""]
[6,"{Building_Street3(6)}",null,null,null,null,null,null,null,null,"{Conditions_Conducive3(6)}",null,null,null,"{Roach_Infestation3(6)}",null,"{mice_treatment_type3(6)}",null,null,"{Pets3(6)}",null,null,null,""]
[7,"{Building_Street3(7)}",null,null,null,null,null,null,null,null,"{Conditions_Conducive3(7)}",null,null,null,"{Roach_Infestation3(7)}",null,"{mice_treatment_type3(7)}",null,null,"{Pets3(7)}",null,null,null,""]
[8,"{Building_Street3(8)}",null,null,null,null,null,null,null,null,"{Conditions_Conducive3(8)}",null,null,null,"{Roach_Infestation3(8)}",null,"{mice_treatment_type3(8)}",null,null,"{Pets3(8)}",null,null,null,""]
[9,"{Building_Street3(9)}",null,null,null,null,null,null,null,null,"{Conditions_Conducive3(9)}",null,null,null,"{Roach_Infestation3(9)}",null,"{mice_treatment_type3(9)}",null,null,"{Pets3(9)}",null,null,null,""]
[10,"{Building_Street3(10)}",null,null,null,null,null,null,null,null,"{Conditions_Conducive3(10)}",null,null,null,"{Roach_Infestation3(10)}",null,"{mice_treatment_type3(10)}",null,null,"{Pets3(10)}",null,null,null,""]
[11,"{Building_Street3(11)}",null,null,null,null,null,null,null,null,"{Conditions_Conducive3(11)}",null,null,null,"{Roach_Infestation3(11)}",null,"{mice_treatment_type3(11)}",null,null,"{Pets3(11)}",null,null,null,""]
[12,"{Building_Street3(12)}",null,null,null,null,null,null,null,null,"{Conditions_Conducive3(12)}",null,null,null,"{Roach_Infestation3(12)}",null,"{mice_treatment_type3(12)}",null,null,"{Pets3(12)}",null,null,null,""]
[13,"{Building_Street3(13)}",null,null,null,null,null,null,null,null,"{Conditions_Conducive3(13)}",null,null,null,"{Roach_Infestation3(13)}",null,"{mice_treatment_type3(13)}",null,null,"{Pets3(13)}",null,null,null,""]
[14,"{Building_Street3(14)}",null,null,null,null,null,null,null,null,"{Conditions_Conducive3(14)}",null,null,null,"{Roach_Infestation3(14)}",null,"{mice_treatment_type3(14)}",null,null,"{Pets3(14)}",null,null,null,""]
[15,"{Building_Street3(15)}",null,null,null,null,null,null,null,null,"{Conditions_Conducive3(15)}",null,null,null,"{Roach_Infestation3(15)}",null,"{mice_treatment_type3(15)}",null,null,"{Pets3(15)}",null,null,null,""]
[16,"{Building_Street3(16)}",null,null,null,null,null,null,null,null,"{Conditions_Conducive3(16)}",null,null,null,"{Roach_Infestation3(16)}",null,"{mice_treatment_type3(16)}",null,null,"{Pets3(16)}",null,null,null,""]
[17,"{Building_Street3(17)}",null,null,null,null,null,null,null,null,"{Conditions_Conducive3(17)}",null,null,null,"{Roach_Infestation3(17)}",null,"{mice_treatment_type3(17)}",null,null,"{Pets3(17)}",null,null,null,""]
[18,"{Building_Street3(18)}",null,null,null,null,null,null,null,null,"{Conditions_Conducive3(18)}",null,null,null,"{Roach_Infestation3(18)}",null,"{mice_treatment_type3(18)}",null,null,"{Pets3(18)}",null,null,null,""]
[19,"{Building_Street3(19)}",null,null,null,null,null,null,null,null,"{Conditions_Conducive3(19)}",null,null,null,"{Roach_Infestation3(19)}",null,"{mice_treatment_type3(19)}",null,null,"{Pets3(19)}",null,null,null,""]
[20,"{Building_Street3(20)}",null,null,null,null,null,null,null,null,"{Conditions_Conducive3(20)}",null,null,null,"{Roach_Infestation3(20)}",null,"{mice_treatment_type3(20)}",null,null,"{Pets3(20)}",null,null,null,""]
[1,"{Building_Street4(1)}",null,null,null,null,null,null,null,null,"{Conditions_Conducive4(1)}",null,null,null,"{Roach_Infestation4(1)}",null,"{mice_treatment_type4(1)}",null,null,"{Pets4(1)}",null,null,{"$f":"IF(ISERROR(VLOOKUP(A70,#REF!,7,FALSE)),\"\",VLOOKUP(A70,#REF!,7,FALSE))","v":""},"",null,null,null,null,{"$f":"IF(ISERROR(VLOOKUP(A70,#REF!,8,FALSE)),\"\",VLOOKUP(A70,#REF!,8,FALSE))","v":""}]
[2,"{Building_Street4(2)}",null,null,null,null,null,null,null,null,"{Conditions_Conducive4(2)}",null,null,null,"{Roach_Infestation4(2)}",null,"{mice_treatment_type4(2)}",null,null,"{Pets4(2)}",null,null,null,""]
[3,"{Building_Street4(3)}",null,null,null,null,null,null,null,null,"{Conditions_Conducive4(3)}",null,null,null,"{Roach_Infestation4(3)}",null,"{mice_treatment_type4(3)}",null,null,"{Pets4(3)}",null,null,null,""]
[4,"{Building_Street4(4)}",null,null,null,null,null,null,null,null,"{Conditions_Conducive4(4)}",null,null,null,"{Roach_Infestation4(4)}",null,"{mice_treatment_type4(4)}",null,null,"{Pets4(4)}",null,null,null,""]
[5,"{Building_Street4(5)}",null,null,null,null,null,null,null,null,"{Conditions_Conducive4(5)}",null,null,null,"{Roach_Infestation4(5)}",null,"{mice_treatment_type4(5)}",null,null,"{Pets4(5)}",null,null,null,""]
[6,"{Building_Street4(6)}",null,null,null,null,null,null,null,null,"{Conditions_Conducive4(6)}",null,null,null,"{Roach_Infestation4(6)}",null,"{mice_treatment_type4(6)}",null,null,"{Pets4(6)}",null,null,null,""]
[7,"{Building_Street4(7)}",null,null,null,null,null,null,null,null,"{Conditions_Conducive4(7)}",null,null,null,"{Roach_Infestation4(7)}",null,"{mice_treatment_type4(7)}",null,null,"{Pets4(7)}",null,null,null,""]
[8,"{Building_Street4(8)}",null,null,null,null,null,null,null,null,"{Conditions_Conducive4(8)}",null,null,null,"{Roach_Infestation4(8)}",null,"{mice_treatment_type4(8)}",null,null,"{Pets4(8)}",null,null,null,""]
[9,"{Building_Street4(9)}",null,null,null,null,null,null,null,null,"{Conditions_Conducive4(9)}",null,null,null,"{Roach_Infestation4(9)}",null,"{mice_treatment_type4(9)}",null,null,"{Pets4(9)}",null,null,null,""]
[10,"{Building_Street4(10)}",null,null,null,null,null,null,null,null,"{Conditions_Conducive4(10)}",null,null,null,"{Roach_Infestation4(10)}",null,"{mice_treatment_type4(10)}",null,null,"{Pets4(10)}",null,null,null,""]
[11,"{Building_Street4(11)}",null,null,null,null,null,null,null,null,"{Conditions_Conducive4(11)}",null,null,null,"{Roach_Infestation4(11)}",null,"{mice_treatment_type4(11)}",null,null,"{Pets4(11)}",null,null,null,""]
[12,"{Building_Street4(12)}",null,null,null,null,null,null,null,null,"{Conditions_Conducive4(12)}",null,null,null,"{Roach_Infestation4(12)}",null,"{mice_treatment_type4(12)}",null,null,"{Pets4(12)}",null,null,null,""]
[13,"{Building_Street4(13)}",null,null,null,null,null,null,null,null,"{Conditions_Conducive4(13)}",null,null,null,"{Roach_Infestation4(13)}",null,"{mice_treatment_type4(13)}",null,null,"{Pets4(13)}",null,null,null,""]
[14,"{Building_Street4(14)}",null,null,null,null,null,null,null,null,"{Conditions_Conducive4(14)}",null,null,null,"{Roach_Infestation4(14)}",null,"{mice_treatment_type4(14)}",null,null,"{Pets4(14)}",null,null,null,""]
[15,"{Building_Street4(15)}",null,null,null,null,null,null,null,null,"{Conditions_Conducive4(15)}",null,null,null,"{Roach_Infestation4(15)}",null,"{mice_treatment_type4(15)}",null,null,"{Pets4(15)}",null,null,null,""]
[16,"{Building_Street4(16)}",null,null,null,null,null,null,null,null,"{Conditions_Conducive4(16)}",null,null,null,"{Roach_Infestation4(16)}",null,"{mice_treatment_type4(16)}",null,null,"{Pets4(16)}",null,null,null,""]
[17,"{Building_Street4(17)}",null,null,null,null,null,null,null,null,"{Conditions_Conducive4(17)}",null,null,null,"{Roach_Infestation4(17)}",null,"{mice_treatment_type4(17)}",null,null,"{Pets4(17)}",null,null,null,""]
[18,"{Building_Street4(18)}",null,null,null,null,null,null,null,null,"{Conditions_Conducive4(18)}",null,null,null,"{Roach_Infestation4(18)}",null,"{mice_treatment_type4(18)}",null,null,"{Pets4(18)}",null,null,null,""]
[19,"{Building_Street4(19)}",null,null,null,null,null,null,null,null,"{Conditions_Conducive4(19)}",null,null,null,"{Roach_Infestation4(19)}",null,"{mice_treatment_type4(19)}",null,null,"{Pets4(19)}",null,null,null,""]
[20,"{Building_Street4(20)}",null,null,null,null,null,null,null,null,"{Conditions_Conducive4(20)}",null,null,null,"{Roach_Infestation4(20)}",null,"{mice_treatment_type4(20)}",null,null,"{Pets4(20)}",null,null,null,""]
[1,"{Building_Street5(1)}",null,null,null,null,null,null,null,null,"{Conditions_Conducive5(1)}",null,null,null,"{Roach_Infestation5(1)}",null,"{mice_treatment_type5(1)}",null,null,"{Pets5(1)}",null,null,{"$f":"IF(ISERROR(VLOOKUP(A90,#REF!,7,FALSE)),\"\",VLOOKUP(A90,#REF!,7,FALSE))","v":""},"",null,null,null,null,{"$f":"IF(ISERROR(VLOOKUP(A90,#REF!,8,FALSE)),\"\",VLOOKUP(A90,#REF!,8,FALSE))","v":""}]
[2,"{Building_Street5(2)}",null,null,null,null,null,null,null,null,"{Conditions_Conducive5(2)}",null,null,null,"{Roach_Infestation5(2)}",null,"{mice_treatment_type5(2)}",null,null,"{Pets5(2)}",null,null,null,""]
[3,"{Building_Street5(3)}",null,null,null,null,null,null,null,null,"{Conditions_Conducive5(3)}",null,null,null,"{Roach_Infestation5(3)}",null,"{mice_treatment_type5(3)}",null,null,"{Pets5(3)}",null,null,null,""]
[4,"{Building_Street5(4)}",null,null,null,null,null,null,null,null,"{Conditions_Conducive5(4)}",null,null,null,"{Roach_Infestation5(4)}",null,"{mice_treatment_type5(4)}",null,null,"{Pets5(4)}",null,null,null,""]
[5,"{Building_Street5(5)}",null,null,null,null,null,null,null,null,"{Conditions_Conducive5(5)}",null,null,null,"{Roach_Infestation5(5)}",null,"{mice_treatment_type5(5)}",null,null,"{Pets5(5)}",null,null,null,""]
[6,"{Building_Street5(6)}",null,null,null,null,null,null,null,null,"{Conditions_Conducive5(6)}",null,null,null,"{Roach_Infestation5(6)}",null,"{mice_treatment_type5(6)}",null,null,"{Pets5(6)}",null,null,null,""]
[7,"{Building_Street5(7)}",null,null,null,null,null,null,null,null,"{Conditions_Conducive5(7)}",null,null,null,"{Roach_Infestation5(7)}",null,"{mice_treatment_type5(7)}",null,null,"{Pets5(7)}",null,null,null,""]
[8,"{Building_Street5(8)}",null,null,null,null,null,null,null,null,"{Conditions_Conducive5(8)}",null,null,null,"{Roach_Infestation5(8)}",null,"{mice_treatment_type5(8)}",null,null,"{Pets5(8)}",null,null,null,""]
[9,"{Building_Street5(9)}",null,null,null,null,null,null,null,null,"{Conditions_Conducive5(9)}",null,null,null,"{Roach_Infestation5(9)}",null,"{mice_treatment_type5(9)}",null,null,"{Pets5(9)}",null,null,null,""]
[10,"{Building_Street5(10)}",null,null,null,null,null,null,null,null,"{Conditions_Conducive5(10)}",null,null,null,"{Roach_Infestation5(10)}",null,"{mice_treatment_type5(10)}",null,null,"{Pets5(10)}",null,null,null,""]
[11,"{Building_Street5(11)}",null,null,null,null,null,null,null,null,"{Conditions_Conducive5(11)}",null,null,null,"{Roach_Infestation5(11)}",null,"{mice_treatment_type5(11)}",null,null,"{Pets5(11)}",null,null,null,""]
[12,"{Building_Street5(12)}",null,null,null,null,null,null,null,null,"{Conditions_Conducive5(12)}",null,null,null,"{Roach_Infestation5(12)}",null,"{mice_treatment_type5(12)}",null,null,"{Pets5(12)}",null,null,null,""]
[13,"{Building_Street5(13)}",null,null,null,null,null,null,null,null,"{Conditions_Conducive5(13)}",null,null,null,"{Roach_Infestation5(13)}",null,"{mice_treatment_type5(13)}",null,null,"{Pets5(13)}",null,null,null,""]
[14,"{Building_Street5(14)}",null,null,null,null,null,null,null,null,"{Conditions_Conducive5(14)}",null,null,null,"{Roach_Infestation5(14)}",null,"{mice_treatment_type5(14)}",null,null,"{Pets5(14)}",null,null,null,""]
[15,"{Building_Street5(15)}",null,null,null,null,null,null,null,null,"{Conditions_Conducive5(15)}",null,null,null,"{Roach_Infestation5(15)}",null,"{mice_treatment_type5(15)}",null,null,"{Pets5(15)}",null,null,null,""]
[16,"{Building_Street5(16)}",null,null,null,null,null,null,null,null,"{Conditions_Conducive5(16)}",null,null,null,"{Roach_Infestation5(16)}",null,"{mice_treatment_type5(16)}",null,null,"{Pets5(16)}",null,null,null,""]
[17,"{Building_Street5(17)}",null,null,null,null,null,null,null,null,"{Conditions_Conducive5(17)}",null,null,null,"{Roach_Infestation5(17)}",null,"{mice_treatment_type5(17)}",null,null,"{Pets5(17)}",null,null,null,""]
[18,"{Building_Street5(18)}",null,null,null,null,null,null,null,null,"{Conditions_Conducive5(18)}",null,null,null,"{Roach_Infestation5(18)}",null,"{mice_treatment_type5(18)}",null,null,"{Pets5(18)}",null,null,null,""]
[19,"{Building_Street5(19)}",null,null,null,null,null,null,null,null,"{Conditions_Conducive5(19)}",null,null,null,"{Roach_Infestation5(19)}",null,"{mice_treatment_type5(19)}",null,null,"{Pets5(19)}",null,null,null,""]
[20,"{Building_Street5(20)}",null,null,null,null,null,null,null,null,"{Conditions_Conducive5(20)}",null,null,null,"{Roach_Infestation5(20)}",null,"{mice_treatment_type5(20)}",null,null,"{Pets5(20)}",null,null,null,""]
[1,"{Building_Street6(1)}",null,null,null,null,null,null,null,null,"{Conditions_Conducive6(1)}",null,null,null,"{Roach_Infestation6(1)}",null,"{mice_treatment_type6(1)}",null,null,"{Pets6(1)}",null,null,{"$f":"IF(ISERROR(VLOOKUP(A110,#REF!,7,FALSE)),\"\",VLOOKUP(A110,#REF!,7,FALSE))","v":""},"",null,null,null,null,{"$f":"IF(ISERROR(VLOOKUP(A110,#REF!,8,FALSE)),\"\",VLOOKUP(A110,#REF!,8,FALSE))","v":""}]
[2,"{Building_Street6(2)}",null,null,null,null,null,null,null,null,"{Conditions_Conducive6(2)}",null,null,null,"{Roach_Infestation6(2)}",null,"{mice_treatment_type6(2)}",null,null,"{Pets6(2)}",null,null,null,""]
[3,"{Building_Street6(3)}",null,null,null,null,null,null,null,null,"{Conditions_Conducive6(3)}",null,null,null,"{Roach_Infestation6(3)}",null,"{mice_treatment_type6(3)}",null,null,"{Pets6(3)}",null,null,null,""]
[4,"{Building_Street6(4)}",null,null,null,null,null,null,null,null,"{Conditions_Conducive6(4)}",null,null,null,"{Roach_Infestation6(4)}",null,"{mice_treatment_type6(4)}",null,null,"{Pets6(4)}",null,null,null,""]
[5,"{Building_Street6(5)}",null,null,null,null,null,null,null,null,"{Conditions_Conducive6(5)}",null,null,null,"{Roach_Infestation6(5)}",null,"{mice_treatment_type6(5)}",null,null,"{Pets6(5)}",null,null,null,""]
[6,"{Building_Street6(6)}",null,null,null,null,null,null,null,null,"{Conditions_Conducive6(6)}",null,null,null,"{Roach_Infestation6(6)}",null,"{mice_treatment_type6(6)}",null,null,"{Pets6(6)}",null,null,null,""]
[7,"{Building_Street6(7)}",null,null,null,null,null,null,null,null,"{Conditions_Conducive6(7)}",null,null,null,"{Roach_Infestation6(7)}",null,"{mice_treatment_type6(7)}",null,null,"{Pets6(7)}",null,null,null,""]
[8,"{Building_Street6(8)}",null,null,null,null,null,null,null,null,"{Conditions_Conducive6(8)}",null,null,null,"{Roach_Infestation6(8)}",null,"{mice_treatment_type6(8)}",null,null,"{Pets6(8)}",null,null,null,""]
[9,"{Building_Street6(9)}",null,null,null,null,null,null,null,null,"{Conditions_Conducive6(9)}",null,null,null,"{Roach_Infestation6(9)}",null,"{mice_treatment_type6(9)}",null,null,"{Pets6(9)}",null,null,null,""]
[10,"{Building_Street6(10)}",null,null,null,null,null,null,null,null,"{Conditions_Conducive6(10)}",null,null,null,"{Roach_Infestation6(10)}",null,"{mice_treatment_type6(10)}",null,null,"{Pets6(10)}",null,null,null,""]
[11,"{Building_Street6(11)}",null,null,null,null,null,null,null,null,"{Conditions_Conducive6(11)}",null,null,null,"{Roach_Infestation6(11)}",null,"{mice_treatment_type6(11)}",null,null,"{Pets6(11)}",null,null,null,""]
[12,"{Building_Street6(12)}",null,null,null,null,null,null,null,null,"{Conditions_Conducive6(12)}",null,null,null,"{Roach_Infestation6(12)}",null,"{mice_treatment_type6(12)}",null,null,"{Pets6(12)}",null,null,null,""]
[13,"{Building_Street6(13)}",null,null,null,null,null,null,null,null,"{Conditions_Conducive6(13)}",null,null,null,"{Roach_Infestation6(13)}",null,"{mice_treatment_type6(13)}",null,null,"{Pets6(13)}",null,null,null,""]
[14,"{Building_Street6(14)}",null,null,null,null,null,null,null,null,"{Conditions_Conducive6(14)}",null,null,null,"{Roach_Infestation6(14)}",null,"{mice_treatment_type6(14)}",null,null,"{Pets6(14)}",null,null,null,""]
[15,"{Building_Street6(15)}",null,null,null,null,null,null,null,null,"{Conditions_Conducive6(15)}",null,null,null,"{Roach_Infestation6(15)}",null,"{mice_treatment_type6(15)}",null,null,"{Pets6(15)}",null,null,null,""]
[16,"{Building_Street6(16)}",null,null,null,null,null,null,null,null,"{Conditions_Conducive6(16)}",null,null,null,"{Roach_Infestation6(16)}",null,"{mice_treatment_type6(16)}",null,null,"{Pets6(16)}",null,null,null,""]
[17,"{Building_Street6(17)}",null,null,null,null,null,null,null,null,"{Conditions_Conducive6(17)}",null,null,null,"{Roach_Infestation6(17)}",null,"{mice_treatment_type6(17)}",null,null,"{Pets6(17)}",null,null,null,""]
[18,"{Building_Street6(18)}",null,null,null,null,null,null,null,null,"{Conditions_Conducive6(18)}",null,null,null,"{Roach_Infestation6(18)}",null,"{mice_treatment_type6(18)}",null,null,"{Pets6(18)}",null,null,null,""]
[19,"{Building_Street6(19)}",null,null,null,null,null,null,null,null,"{Conditions_Conducive6(19)}",null,null,null,"{Roach_Infestation6(19)}",null,"{mice_treatment_type6(19)}",null,null,"{Pets6(19)}",null,null,null,""]
[20,"{Building_Street6(20)}",null,null,null,null,null,null,null,null,"{Conditions_Conducive6(20)}",null,null,null,"{Roach_Infestation6(20)}",null,"{mice_treatment_type6(20)}",null,null,"{Pets6(20)}",null,null,null,""]
[1,"{Building_Street7(1)}",null,null,null,null,null,null,null,null,"{Conditions_Conducive7(1)}",null,null,null,"{Roach_Infestation7(1)}",null,"{mice_treatment_type7(1)}",null,null,"{Pets7(1)}",null,null,{"$f":"IF(ISERROR(VLOOKUP(A130,#REF!,7,FALSE)),\"\",VLOOKUP(A130,#REF!,7,FALSE))","v":""},"",null,null,null,null,{"$f":"IF(ISERROR(VLOOKUP(A130,#REF!,8,FALSE)),\"\",VLOOKUP(A130,#REF!,8,FALSE))","v":""}]
[2,"{Building_Street7(2)}",null,null,null,null,null,null,null,null,"{Conditions_Conducive7(2)}",null,null,null,"{Roach_Infestation7(2)}",null,"{mice_treatment_type7(2)}",null,null,"{Pets7(2)}",null,null,null,""]
[3,"{Building_Street7(3)}",null,null,null,null,null,null,null,null,"{Conditions_Conducive7(3)}",null,null,null,"{Roach_Infestation7(3)}",null,"{mice_treatment_type7(3)}",null,null,"{Pets7(3)}",null,null,null,""]
[4,"{Building_Street7(4)}",null,null,null,null,null,null,null,null,"{Conditions_Conducive7(4)}",null,null,null,"{Roach_Infestation7(4)}",null,"{mice_treatment_type7(4)}",null,null,"{Pets7(4)}",null,null,null,""]
[5,"{Building_Street7(5)}",null,null,null,null,null,null,null,null,"{Conditions_Conducive7(5)}",null,null,null,"{Roach_Infestation7(5)}",null,"{mice_treatment_type7(5)}",null,null,"{Pets7(5)}",null,null,null,""]
[6,"{Building_Street7(6)}",null,null,null,null,null,null,null,null,"{Conditions_Conducive7(6)}",null,null,null,"{Roach_Infestation7(6)}",null,"{mice_treatment_type7(6)}",null,null,"{Pets7(6)}",null,null,null,""]
[7,"{Building_Street7(7)}",null,null,null,null,null,null,null,null,"{Conditions_Conducive7(7)}",null,null,null,"{Roach_Infestation7(7)}",null,"{mice_treatment_type7(7)}",null,null,"{Pets7(7)}",null,null,null,""]
[8,"{Building_Street7(8)}",null,null,null,null,null,null,null,null,"{Conditions_Conducive7(8)}",null,null,null,"{Roach_Infestation7(8)}",null,"{mice_treatment_type7(8)}",null,null,"{Pets7(8)}",null,null,null,""]
[9,"{Building_Street7(9)}",null,null,null,null,null,null,null,null,"{Conditions_Conducive7(9)}",null,null,null,"{Roach_Infestation7(9)}",null,"{mice_treatment_type7(9)}",null,null,"{Pets7(9)}",null,null,null,""]
[10,"{Building_Street7(10)}",null,null,null,null,null,null,null,null,"{Conditions_Conducive7(10)}",null,null,null,"{Roach_Infestation7(10)}",null,"{mice_treatment_type7(10)}",null,null,"{Pets7(10)}",null,null,null,""]
[11,"{Building_Street7(11)}",null,null,null,null,null,null,null,null,"{Conditions_Conducive7(11)}",null,null,null,"{Roach_Infestation7(11)}",null,"{mice_treatment_type7(11)}",null,null,"{Pets7(11)}",null,null,null,""]
[12,"{Building_Street7(12)}",null,null,null,null,null,null,null,null,"{Conditions_Conducive7(12)}",null,null,null,"{Roach_Infestation7(12)}",null,"{mice_treatment_type7(12)}",null,null,"{Pets7(12)}",null,null,null,""]
[13,"{Building_Street7(13)}",null,null,null,null,null,null,null,null,"{Conditions_Conducive7(13)}",null,null,null,"{Roach_Infestation7(13)}",null,"{mice_treatment_type7(13)}",null,null,"{Pets7(13)}",null,null,null,""]
[14,"{Building_Street7(14)}",null,null,null,null,null,null,null,null,"{Conditions_Conducive7(14)}",null,null,null,"{Roach_Infestation7(14)}",null,"{mice_treatment_type7(14)}",null,null,"{Pets7(14)}",null,null,null,""]
[15,"{Building_Street7(15)}",null,null,null,null,null,null,null,null,"{Conditions_Conducive7(15)}",null,null,null,"{Roach_Infestation7(15)}",null,"{mice_treatment_type7(15)}",null,null,"{Pets7(15)}",null,null,null,""]
[16,"{Building_Street7(16)}",null,null,null,null,null,null,null,null,"{Conditions_Conducive7(16)}",null,null,null,"{Roach_Infestation7(16)}",null,"{mice_treatment_type7(16)}",null,null,"{Pets7(16)}",null,null,null,""]
[17,"{Building_Street7(17)}",null,null,null,null,null,null,null,null,"{Conditions_Conducive7(17)}",null,null,null,"{Roach_Infestation7(17)}",null,"{mice_treatment_type7(17)}",null,null,"{Pets7(17)}",null,null,null,""]
[18,"{Building_Street7(18)}",null,null,null,null,null,null,null,null,"{Conditions_Conducive7(18)}",null,null,null,"{Roach_Infestation7(18)}",null,"{mice_treatment_type7(18)}",null,null,"{Pets7(18)}",null,null,null,""]
[19,"{Building_Street7(19)}",null,null,null,null,null,null,null,null,"{Conditions_Conducive7(19)}",null,null,null,"{Roach_Infestation7(19)}",null,"{mice_treatment_type7(19)}",null,null,"{Pets7(19)}",null,null,null,""]
[20,"{Building_Street7(20)}",null,null,null,null,null,null,null,null,"{Conditions_Conducive7(20)}",null,null,null,"{Roach_Infestation7(20)}",null,"{mice_treatment_type7(20)}",null,null,"{Pets7(20)}",null,null,null,""]
[1,"{Building_Street8(1)}",null,null,null,null,null,null,null,null,"{Conditions_Conducive8(1)}",null,null,null,"{Roach_Infestation8(1)}",null,"{mice_treatment_type8(1)}",null,null,"{Pets8(1)}",null,null,{"$f":"IF(ISERROR(VLOOKUP(A150,#REF!,7,FALSE)),\"\",VLOOKUP(A150,#REF!,7,FALSE))","v":""},"",null,null,null,null,{"$f":"IF(ISERROR(VLOOKUP(A150,#REF!,8,FALSE)),\"\",VLOOKUP(A150,#REF!,8,FALSE))","v":""}]
[2,"{Building_Street8(2)}",null,null,null,null,null,null,null,null,"{Conditions_Conducive8(2)}",null,null,null,"{Roach_Infestation8(2)}",null,"{mice_treatment_type8(2)}",null,null,"{Pets8(2)}",null,null,null,""]
[3,"{Building_Street8(3)}",null,null,null,null,null,null,null,null,"{Conditions_Conducive8(3)}",null,null,null,"{Roach_Infestation8(3)}",null,"{mice_treatment_type8(3)}",null,null,"{Pets8(3)}",null,null,null,""]
[4,"{Building_Street8(4)}",null,null,null,null,null,null,null,null,"{Conditions_Conducive8(4)}",null,null,null,"{Roach_Infestation8(4)}",null,"{mice_treatment_type8(4)}",null,null,"{Pets8(4)}",null,null,null,""]
[5,"{Building_Street8(5)}",null,null,null,null,null,null,null,null,"{Conditions_Conducive8(5)}",null,null,null,"{Roach_Infestation8(5)}",null,"{mice_treatment_type8(5)}",null,null,"{Pets8(5)}",null,null,null,""]
[6,"{Building_Street8(6)}",null,null,null,null,null,null,null,null,"{Conditions_Conducive8(6)}",null,null,null,"{Roach_Infestation8(6)}",null,"{mice_treatment_type8(6)}",null,null,"{Pets8(6)}",null,null,null,""]
[7,"{Building_Street8(7)}",null,null,null,null,null,null,null,null,"{Conditions_Conducive8(7)}",null,null,null,"{Roach_Infestation8(7)}",null,"{mice_treatment_type8(7)}",null,null,"{Pets8(7)}",null,null,null,""]
[8,"{Building_Street8(8)}",null,null,null,null,null,null,null,null,"{Conditions_Conducive8(8)}",null,null,null,"{Roach_Infestation8(8)}",null,"{mice_treatment_type8(8)}",null,null,"{Pets8(8)}",null,null,null,""]
[9,"{Building_Street8(9)}",null,null,null,null,null,null,null,null,"{Conditions_Conducive8(9)}",null,null,null,"{Roach_Infestation8(9)}",null,"{mice_treatment_type8(9)}",null,null,"{Pets8(9)}",null,null,null,""]
[10,"{Building_Street8(10)}",null,null,null,null,null,null,null,null,"{Conditions_Conducive8(10)}",null,null,null,"{Roach_Infestation8(10)}",null,"{mice_treatment_type8(10)}",null,null,"{Pets8(10)}",null,null,null,""]
[11,"{Building_Street8(11)}",null,null,null,null,null,null,null,null,"{Conditions_Conducive8(11)}",null,null,null,"{Roach_Infestation8(11)}",null,"{mice_treatment_type8(11)}",null,null,"{Pets8(11)}",null,null,null,""]
[12,"{Building_Street8(12)}",null,null,null,null,null,null,null,null,"{Conditions_Conducive8(12)}",null,null,null,"{Roach_Infestation8(12)}",null,"{mice_treatment_type8(12)}",null,null,"{Pets8(12)}",null,null,null,""]
[13,"{Building_Street8(13)}",null,null,null,null,null,null,null,null,"{Conditions_Conducive8(13)}",null,null,null,"{Roach_Infestation8(13)}",null,"{mice_treatment_type8(13)}",null,null,"{Pets8(13)}",null,null,null,""]
[14,"{Building_Street8(14)}",null,null,null,null,null,null,null,null,"{Conditions_Conducive8(14)}",null,null,null,"{Roach_Infestation8(14)}",null,"{mice_treatment_type8(14)}",null,null,"{Pets8(14)}",null,null,null,""]
[15,"{Building_Street8(15)}",null,null,null,null,null,null,null,null,"{Conditions_Conducive8(15)}",null,null,null,"{Roach_Infestation8(15)}",null,"{mice_treatment_type8(15)}",null,null,"{Pets8(15)}",null,null,null,""]
[16,"{Building_Street8(16)}",null,null,null,null,null,null,null,null,"{Conditions_Conducive8(16)}",null,null,null,"{Roach_Infestation8(16)}",null,"{mice_treatment_type8(16)}",null,null,"{Pets8(16)}",null,null,null,""]
[17,"{Building_Street8(17)}",null,null,null,null,null,null,null,null,"{Conditions_Conducive8(17)}",null,null,null,"{Roach_Infestation8(17)}",null,"{mice_treatment_type8(17)}",null,null,"{Pets8(17)}",null,null,null,""]
[18,"{Building_Street8(18)}",null,null,null,null,null,null,null,null,"{Conditions_Conducive8(18)}",null,null,null,"{Roach_Infestation8(18)}",null,"{mice_treatment_type8(18)}",null,null,"{Pets8(18)}",null,null,null,""]
[19,"{Building_Street8(19)}",null,null,null,null,null,null,null,null,"{Conditions_Conducive8(19)}",null,null,null,"{Roach_Infestation8(19)}",null,"{mice_treatment_type8(19)}",null,null,"{Pets8(19)}",null,null,null,""]
[20,"{Building_Street8(20)}",null,null,null,null,null,null,null,null,"{Conditions_Conducive8(20)}",null,null,null,"{Roach_Infestation8(20)}",null,"{mice_treatment_type8(20)}",null,null,"{Pets8(20)}",null,null,null,""]